{"text_format":"1","workbook":"xlsx","n_sheets":11,"sheets":["公式記録用ﾁｪｯｸｼｰﾄ","公式記録用ﾁｪｯｸｼｰﾄ (記入例)","ＧＪ用ショット集計表","ＧＪ用ショット集計表 (記入例)","GameSheet","GameSheet2枚目","TeamA","TeamB","List","参考（略語解説)","追加・削除用"],"not_rendered":{"charts":0,"images":5,"macros":1,"external_links":0,"defined_names":27,"comments":3,"pivot_tables":0},"unopened":[],"bounds":{"document_bytes":16777216,"sheet_cells":100000,"rows_first":2000,"rows_last":500,"rows_between":2000,"halvings":0,"cell_chars":16384,"cell_head_chars":4096},"cells_cut":0,"cells_raw":0,"read":"whole","date_system":"1900"}

{"sheet":"公式記録用ﾁｪｯｸｼｰﾄ","index":0,"n_rows":9,"n_cols":20,"rows_kept":9,"cut":false,"hidden":false,"merged":[[59,5,59,6],[59,7,59,8],[59,9,59,10],[59,11,59,12],[59,17,59,18],[59,19,59,20],[58,5,58,6],[58,7,58,8],[58,9,58,10],[58,11,58,12],[58,17,58,18],[58,19,58,20],[57,5,57,6],[57,7,57,8],[57,9,57,10],[57,11,57,12],[57,17,57,18],[57,19,57,20],[56,5,56,6],[56,7,56,8],[56,9,56,10],[56,11,56,12],[56,17,56,18],[56,19,56,20],[54,19,54,20],[55,5,55,6],[55,7,55,8],[55,9,55,10],[55,11,55,12],[55,17,55,18],[55,19,55,20],[50,19,50,20],[51,11,51,12],[51,19,51,20],[52,11,52,12],[52,19,52,20],[53,11,53,12],[53,19,53,20],[51,5,51,6],[51,7,51,8],[51,9,51,10],[51,17,51,18],[53,5,53,6],[53,7,53,8],[52,5,52,6],[52,7,52,8],[52,9,52,10],[52,17,52,18],[46,19,46,20],[47,11,47,12],[47,19,47,20],[48,19,48,20],[49,11,49,12],[49,19,49,20],[46,11,46,12],[48,11,48,12],[46,17,46,18],[47,17,47,18],[48,17,48,18],[43,19,43,20],[44,19,44,20],[45,11,45,12],[45,19,45,20],[42,11,42,12],[42,17,42,18],[44,11,44,12],[43,17,43,18],[44,17,44,18],[45,17,45,18],[40,19,40,20],[41,11,41,12],[41,19,41,20],[39,17,39,18],[41,17,41,18],[42,19,42,20],[37,19,37,20],[38,11,38,12],[38,19,38,20],[37,17,37,18],[39,11,39,12],[39,19,39,20],[34,19,34,20],[35,11,35,12],[35,19,35,20],[33,17,33,18],[35,17,35,18],[36,11,36,12],[36,19,36,20],[31,19,31,20],[32,11,32,12],[32,19,32,20],[31,17,31,18],[33,11,33,12],[33,19,33,20],[28,19,28,20],[29,11,29,12],[29,19,29,20],[27,17,27,18],[29,17,29,18],[30,11,30,12],[30,19,30,20],[25,19,25,20],[26,11,26,12],[26,19,26,20],[25,17,25,18],[27,11,27,12],[27,19,27,20],[22,19,22,20],[23,11,23,12],[23,19,23,20],[21,17,21,18],[23,17,23,18],[24,11,24,12],[24,19,24,20],[19,19,19,20],[20,11,20,12],[20,19,20,20],[19,17,19,18],[21,11,21,12],[21,19,21,20],[7,3,7,4],[12,17,12,18],[16,19,16,20],[17,11,17,12],[17,19,17,20],[15,17,15,18],[17,17,17,18],[18,11,18,12],[18,19,18,20],[13,19,13,20],[14,11,14,12],[14,19,14,20],[13,17,13,18],[15,11,15,12],[15,19,15,20],[12,5,12,6],[12,7,12,8],[12,9,12,10],[11,11,11,12],[11,19,11,20],[12,11,12,12],[12,19,12,20],[11,17,11,18],[11,5,11,6],[6,19,6,20],[9,11,9,12],[10,9,10,10],[7,19,7,20],[8,11,8,12],[8,19,8,20],[6,17,6,18],[7,15,7,16],[7,17,7,18],[10,11,10,12],[9,19,9,20],[10,19,10,20],[6,9,7,10],[6,11,7,12],[0,17,0,20],[1,7,2,9],[1,11,1,12],[1,13,1,15],[1,19,1,20],[2,11,2,12],[2,13,2,15],[2,19,2,20],[5,1,5,10],[5,11,5,20],[1,1,1,5],[1,17,1,18],[2,17,2,18],[11,7,11,8],[11,9,11,10],[8,5,8,6],[8,7,8,8],[8,9,8,10],[10,17,10,18],[7,5,7,6],[7,7,7,8],[6,5,6,6],[6,7,6,8],[8,17,8,18],[9,5,9,6],[9,7,9,8],[9,9,9,10],[9,17,9,18],[10,5,10,6],[10,7,10,8],[13,5,13,6],[13,7,13,8],[13,9,13,10],[13,11,13,12],[14,5,14,6],[14,7,14,8],[14,9,14,10],[14,17,14,18],[15,5,15,6],[15,7,15,8],[15,9,15,10],[16,5,16,6],[16,7,16,8],[16,9,16,10],[16,17,16,18],[17,5,17,6],[17,7,17,8],[17,9,17,10],[16,11,16,12],[18,5,18,6],[18,7,18,8],[18,9,18,10],[18,17,18,18],[19,5,19,6],[19,7,19,8],[19,9,19,10],[19,11,19,12],[20,5,20,6],[20,7,20,8],[20,9,20,10],[20,17,20,18],[21,5,21,6],[21,7,21,8],[21,9,21,10],[22,5,22,6],[22,7,22,8],[22,9,22,10],[22,17,22,18],[23,5,23,6],[23,7,23,8],[23,9,23,10],[22,11,22,12],[24,5,24,6],[24,7,24,8],[24,9,24,10],[24,17,24,18],[25,5,25,6],[25,7,25,8],[25,9,25,10],[25,11,25,12],[26,5,26,6],[26,7,26,8],[26,9,26,10],[26,17,26,18],[27,5,27,6],[27,7,27,8],[27,9,27,10],[28,5,28,6],[28,7,28,8],[28,9,28,10],[28,17,28,18],[29,5,29,6],[29,7,29,8],[29,9,29,10],[28,11,28,12],[30,5,30,6],[30,7,30,8],[30,9,30,10],[30,17,30,18],[31,5,31,6],[31,7,31,8],[31,9,31,10],[31,11,31,12],[32,5,32,6],[32,7,32,8],[32,9,32,10],[32,17,32,18],[33,5,33,6],[33,7,33,8],[33,9,33,10],[34,5,34,6],[34,7,34,8],[34,9,34,10],[34,17,34,18],[35,5,35,6],[35,7,35,8],[35,9,35,10],[34,11,34,12],[36,5,36,6],[36,7,36,8],[36,9,36,10],[36,17,36,18],[37,5,37,6],[37,7,37,8],[37,9,37,10],[37,11,37,12],[38,5,38,6],[38,7,38,8],[38,9,38,10],[38,17,38,18],[39,5,39,6],[39,7,39,8],[39,9,39,10],[40,5,40,6],[40,7,40,8],[40,9,40,10],[40,17,40,18],[41,5,41,6],[41,7,41,8],[41,9,41,10],[40,11,40,12],[43,5,43,6],[43,7,43,8],[43,9,43,10],[42,5,42,6],[42,7,42,8],[42,9,42,10],[43,11,43,12],[48,5,48,6],[48,7,48,8],[48,9,48,10],[44,5,44,6],[44,7,44,8],[44,9,44,10],[46,5,46,6],[47,5,47,6],[47,7,47,8],[47,9,47,10],[45,5,45,6],[45,7,45,8],[45,9,45,10],[46,7,46,8],[46,9,46,10],[53,9,53,10],[53,17,53,18],[54,5,54,6],[54,7,54,8],[54,9,54,10],[54,17,54,18],[54,11,54,12],[49,5,49,6],[49,7,49,8],[49,9,49,10],[49,17,49,18],[50,5,50,6],[50,7,50,8],[50,9,50,10],[50,17,50,18],[50,11,50,12]]}
[null,null,null,null,null,null,null,null,null,null,null,null,null,null,null,null,null,"kihf　　競技委員会"]
[null,"公式記録用チェックシート",null,null,null,null,"記入者",null,null,null,null,"日付",null,null,null,null,null,"開始時刻"]
[null,null,null,null,null,null,null,null,null,null,null,"試合番号",null,null,null,null,null,"終了時刻"]
[]
[]
[null,"Home Team (A)   ",null,null,null,null,null,null,null,null,null,"Visiting Team (B)    "]
[null,"G","A1","A2","＃","GS",null,"GK",null,"Time",null,"表示時間",null,"G","A1","A2","＃","GS",null,"GK"]
[null,"No.","Min","Offence",null,"Start",null,"End",null,null,null,null,null,"No.","Min","Offence",null,"Start",null,"End"]
[null,null,"-","-",null,"-",null,null,null,"0:00"]

{"sheet":"公式記録用ﾁｪｯｸｼｰﾄ (記入例)","index":1,"n_rows":49,"n_cols":24,"rows_kept":49,"cut":false,"hidden":false,"merged":[[58,19,58,20],[59,5,59,6],[59,7,59,8],[59,9,59,10],[59,11,59,12],[59,17,59,18],[59,19,59,20],[58,5,58,6],[58,7,58,8],[58,9,58,10],[58,11,58,12],[58,17,58,18],[51,5,51,6],[51,7,51,8],[51,11,51,12],[51,17,51,18],[39,9,39,10],[40,5,40,6],[40,7,40,8],[40,11,40,12],[40,17,40,18],[44,17,44,18],[47,5,47,6],[47,7,47,8],[47,11,47,12],[47,17,47,18],[57,9,57,10],[1,13,1,15],[2,13,2,15],[1,11,1,12],[2,11,2,12],[1,7,2,9],[55,7,55,8],[55,9,55,10],[55,11,55,12],[34,9,34,10],[50,9,50,10],[51,9,51,10],[52,9,52,10],[53,9,53,10],[54,9,54,10],[35,9,35,10],[36,9,36,10],[37,9,37,10],[38,9,38,10],[21,9,21,10],[22,9,22,10],[23,9,23,10],[24,9,24,10],[40,9,40,10],[5,1,5,10],[5,11,5,20],[6,9,7,10],[8,9,8,10],[9,9,9,10],[10,9,10,10],[6,5,6,6],[6,7,6,8],[6,11,7,12],[6,17,6,18],[6,19,6,20],[7,3,7,4],[7,5,7,6],[7,7,7,8],[7,15,7,16],[7,17,7,18],[7,19,7,20],[8,5,8,6],[8,7,8,8],[8,11,8,12],[8,17,8,18],[8,19,8,20],[9,5,9,6],[9,7,9,8],[9,11,9,12],[9,17,9,18],[9,19,9,20],[10,5,10,6],[10,7,10,8],[10,11,10,12],[10,17,10,18],[10,19,10,20],[11,5,11,6],[11,7,11,8],[11,11,11,12],[11,17,11,18],[11,19,11,20],[11,9,11,10],[12,5,12,6],[12,7,12,8],[12,11,12,12],[12,17,12,18],[12,19,12,20],[13,5,13,6],[13,7,13,8],[13,11,13,12],[13,17,13,18],[13,19,13,20],[12,9,12,10],[13,9,13,10],[18,9,18,10],[18,15,18,16],[17,5,17,6],[17,7,17,8],[14,5,14,6],[14,7,14,8],[14,11,14,12],[14,17,14,18],[14,19,14,20],[15,17,15,18],[15,19,15,20],[15,5,15,6],[15,7,15,8],[15,11,15,12],[14,9,14,10],[15,9,15,10],[16,9,16,10],[22,17,22,18],[22,19,22,20],[23,5,23,6],[23,7,23,8],[23,11,23,12],[23,17,23,18],[23,19,23,20],[19,19,19,20],[20,5,20,6],[20,7,20,8],[20,11,20,12],[20,17,20,18],[20,19,20,20],[19,9,19,10],[20,9,20,10],[21,5,21,6],[21,7,21,8],[21,11,21,12],[21,17,21,18],[21,19,21,20],[24,17,24,18],[24,19,24,20],[25,11,25,12],[25,17,25,18],[25,19,25,20],[26,5,26,6],[26,7,26,8],[26,11,26,12],[26,17,26,18],[26,19,26,20],[25,9,25,10],[26,9,26,10],[28,5,28,6],[28,7,28,8],[28,11,28,12],[28,17,28,18],[28,19,28,20],[27,9,27,10],[28,9,28,10],[29,5,29,6],[29,7,29,8],[29,11,29,12],[29,17,29,18],[29,19,29,20],[29,9,29,10],[30,5,30,6],[30,7,30,8],[30,11,30,12],[30,17,30,18],[30,19,30,20],[31,5,31,6],[31,7,31,8],[31,11,31,12],[31,17,31,18],[31,19,31,20],[30,9,30,10],[31,9,31,10],[32,5,32,6],[32,7,32,8],[32,11,32,12],[32,17,32,18],[32,19,32,20],[33,5,33,6],[33,7,33,8],[33,11,33,12],[33,17,33,18],[33,19,33,20],[32,9,32,10],[33,9,33,10],[34,5,34,6],[34,7,34,8],[34,11,34,12],[34,17,34,18],[34,19,34,20],[35,5,35,6],[35,7,35,8],[35,11,35,12],[35,17,35,18],[35,19,35,20],[36,5,36,6],[36,7,36,8],[36,11,36,12],[36,17,36,18],[36,19,36,20],[37,5,37,6],[37,7,37,8],[37,11,37,12],[37,17,37,18],[37,19,37,20],[38,5,38,6],[38,7,38,8],[38,11,38,12],[38,17,38,18],[38,19,38,20],[39,5,39,6],[39,7,39,8],[39,11,39,12],[39,17,39,18],[39,19,39,20],[40,19,40,20],[41,5,41,6],[41,7,41,8],[41,11,41,12],[41,17,41,18],[41,19,41,20],[42,19,42,20],[41,9,41,10],[43,5,43,6],[43,7,43,8],[43,11,43,12],[43,17,43,18],[43,19,43,20],[50,19,50,20],[49,9,49,10],[44,19,44,20],[43,9,43,10],[45,5,45,6],[45,7,45,8],[45,11,45,12],[45,17,45,18],[45,19,45,20],[46,17,46,18],[46,19,46,20],[45,9,45,10],[49,5,49,6],[49,7,49,8],[49,11,49,12],[49,17,49,18],[52,19,52,20],[53,5,53,6],[53,7,53,8],[53,11,53,12],[53,17,53,18],[53,19,53,20],[51,19,51,20],[1,17,1,18],[2,17,2,18],[1,19,1,20],[2,19,2,20],[17,15,17,16],[49,19,49,20],[27,17,27,18],[27,19,27,20],[19,17,19,18],[47,19,47,20],[48,17,48,18],[48,19,48,20],[47,9,47,10],[50,5,50,6],[50,7,50,8],[50,11,50,12],[50,17,50,18],[57,5,57,6],[57,7,57,8],[57,11,57,12],[57,17,57,18],[57,19,57,20],[10,15,10,16],[54,5,54,6],[54,7,54,8],[54,11,54,12],[54,17,54,18],[54,19,54,20],[56,5,56,6],[56,7,56,8],[56,11,56,12],[56,17,56,18],[56,19,56,20],[56,9,56,10],[55,5,55,6],[55,17,55,18],[55,19,55,20],[52,5,52,6],[52,7,52,8],[52,11,52,12],[52,17,52,18],[21,3,21,4],[20,15,20,16],[21,15,21,16],[22,15,22,16],[27,3,27,4],[27,5,27,6],[27,7,27,8],[27,11,27,12],[25,5,25,6],[25,7,25,8],[24,5,24,6],[24,7,24,8],[24,11,24,12],[22,5,22,6],[22,7,22,8],[22,11,22,12],[1,1,1,5],[0,17,0,20],[20,3,20,4],[11,3,11,4],[14,3,14,4],[14,15,14,16],[16,3,16,4],[19,5,19,6],[19,7,19,8],[19,11,19,12],[16,5,16,6],[16,7,16,8],[16,11,16,12],[16,17,16,18],[16,19,16,20],[17,17,17,18],[17,19,17,20],[17,11,17,12],[18,5,18,6],[18,7,18,8],[18,11,18,12],[18,17,18,18],[18,19,18,20],[17,9,17,10]]}
[null,null,null,null,null,null,null,null,null,null,null,null,null,null,null,null,null,"kihf　　競技委員会"]
[null,"公式記録用チェックシート",null,null,null,null,"記入者","石山卓男",null,null,null,"日付",null,"2017-09-02",null,null,null,"開始時刻",null,"22:36:00"]
[null,null,null,null,null,null,null,null,null,null,null,"試合番号",null,"5-3",null,null,null,"終了時刻",null,"23:55:00"]
[]
[]
[null,"Home Team (A)      神奈川レッドスターズ",null,null,null,null,null,null,null,null,null,"Visiting Team (B)    新横浜ブルーインパルス"]
[null,"G","A1","A2","＃","GS",null,"GK",null,"Time",null,"表示時間",null,"G","A1","A2","＃","GS",null,"GK",null,null,"色","は、GKの情報です。   変化するたびに記入します。"]
[null,"No.","Min","Offence",null,"Start",null,"End",null,null,null,null,null,"No.","Min","Offence",null,"Start",null,"End"]
[null,null,"-","-",null,"-",null,33,null,"0:00",null,"15：00",null,null,null,null,null,null,null,1,null,null,"色","は、得点時の情報です。　　＃の①②③・・があると見つけ易いです。"]
[null,"5","13","-","①","EQ",null,null,null,812,null,648]
[null,null,null,null,null,null,null,null,null,1206,null,254,null,"23","2","HOLD",null,1206,null,1406,null,null,"色","は、反則時の情報です。　TRIPなど反則名があると見つけ易いです。"]
[null,"25","2","TRIP",null,1300,null,1430,null,1300,null,200]
[null,null,null,null,null,null,null,null,null,1430,null,130,null,"16","-","-","①","＋１",null,null,null,null,"真ん中のTimeが試合開始から終了までの時系列の情報です。"]
[null,null,null,null,null,null,null,33,null,1500,null,1500,null,null,null,null,null,null,null,77]
[null,"14","2","INTRF",null,1633,null,1833,null,1633,null,1327,null,"18","2","ROUGH",null,1633,null,1833]
[null,null,null,null,null,null,null,null,null,2045,null,915,null,"19","6",15,"②","EQ"]
[null,"3","-","HOOK",null,"-",null,"-",null,2305,null,655,null,"16","-","-","③"]
[null,null,null,null,null,null,null,null,null,2500,null,500,null,"20","2","CHE-B",null,2500,null,2550]
[null,null,null,null,null,null,null,null,null,null,null,null,null,"20","10","MISC",null,2550,null,3550]
[null,"16","15",19,"②","＋１",null,null,null,2550,null,410]
[null,"10","2","ROUGH",null,2800,null,3000,null,2800,null,200,null,"25","2","ROUGH",null,2800,null,2920]
[null,"12","2","ROUGH",null,2800,null,3000,null,null,null,null,null,"26","2","ROUGH",null,2800,null,3000]
[null,null,null,null,null,null,null,null,null,null,null,null,null,"28","2","ROUGH",null,2800,null,3000]
[null,"15","16","-","③","＋１",null,null,null,2920,null,40]
[null,null,null,null,null,null,null,null,null,4000,null,500,null,"16","-","-","④","EQ"]
[null,null,null,null,null,null,null,"-",null,4420,null,40,null,null,null,null,null,null,null,77]
[null,null,null,null,null,null,null,"33",null,4444,null,16,null,"16","15",19,"⑤","EN",null,77]
[null,"25","2","ROUGH",null,4450,null,4500,null,4450,null,10]
[null,null,null,null,null,null,null,"-",null,4500,null,0,null,null,null,null,null,null,null,"-"]
[]
[]
[]
[]
[]
[]
[]
[]
[]
[]
[]
[]
[]
[null,null,"色","は、GKの情報です。   変化するたびに記入します。"]
[]
[null,null,"色","は、得点時の情報です。　　＃の①②③・・があると見つけ易いです。"]
[]
[null,null,"色","は、反則時の情報です。　TRIPなど反則名があると見つけ易いです。"]
[]
[null,null,"真ん中のTimeが試合開始から終了までの時系列の情報です。"]

{"sheet":"ＧＪ用ショット集計表","index":2,"n_rows":49,"n_cols":32,"rows_kept":49,"cut":false,"hidden":false,"merged":[[35,31,40,31],[38,18,40,18],[38,29,40,29],[38,30,40,30],[41,17,46,17],[41,18,43,18],[41,29,43,29],[41,30,43,30],[41,31,46,31],[44,18,46,18],[35,17,40,17],[35,18,37,18],[35,29,37,29],[35,30,37,30],[48,1,51,15],[44,29,46,29],[44,30,46,30],[44,2,46,2],[44,13,46,13],[44,14,46,14],[41,1,46,1],[41,2,43,2],[41,13,43,13],[41,14,43,14],[41,15,46,15],[25,17,34,17],[25,18,29,18],[25,29,29,29],[25,30,29,30],[25,31,34,31],[30,18,34,18],[30,29,34,29],[30,30,34,30],[15,17,24,17],[15,18,19,18],[15,29,19,29],[15,30,19,30],[15,31,24,31],[20,18,24,18],[20,29,24,29],[20,30,24,30],[2,17,2,31],[5,17,14,17],[5,18,9,18],[5,29,9,29],[5,30,9,30],[5,31,14,31],[10,18,14,18],[10,29,14,29],[10,30,14,30],[38,13,40,13],[35,14,37,14],[38,14,40,14],[35,15,40,15],[2,1,2,15],[25,13,29,13],[25,14,29,14],[25,15,34,15],[30,13,34,13],[30,14,34,14],[35,13,37,13],[5,13,9,13],[10,13,14,13],[5,14,9,14],[10,14,14,14],[5,15,14,15],[15,13,19,13],[15,14,19,14],[15,15,24,15],[20,13,24,13],[20,14,24,14],[25,1,34,1],[25,2,29,2],[30,2,34,2],[35,2,37,2],[38,2,40,2],[35,1,40,1],[5,2,9,2],[10,2,14,2],[5,1,14,1],[15,1,24,1],[15,2,19,2],[20,2,24,2]]}
[null,"試合番号",null,null,null,null,null,null,null,null,null,null,null,null,null,null,null,"試合番号"]
[]
[null,"　　Ａチーム名",null,null,null,null,null,null,null,null,null,null,null,null,null,null,null,"　　Ｂチーム名"]
[]
[null,"Ｐ","No.",1,2,3,4,5,6,7,8,9,0,"セーブ数","失点","相手チームシュート数",null,"Ｐ","No.",1,2,3,4,5,6,7,8,9,0,"セーブ数","失点","相手チームシュート数"]
[null,"１Ｐ",null,null,null,null,null,null,null,null,null,null,null,null,null,null,null,"１Ｐ"]
[]
[]
[]
[]
[]
[]
[]
[]
[]
[null,"２Ｐ",null,null,null,null,null,null,null,null,null,null,null,null,null,null,null,"２Ｐ"]
[]
[]
[]
[]
[]
[]
[]
[]
[]
[null,"３Ｐ",null,null,null,null,null,null,null,null,null,null,null,null,null,null,null,"３Ｐ"]
[]
[]
[]
[]
[]
[]
[]
[]
[]
[null,"ＯＴ",null,null,null,null,null,null,null,null,null,null,null,null,null,null,null,"ＯＴ"]
[]
[]
[]
[]
[]
[null,"合計",null,null,null,null,null,null,null,null,null,null,null,null,null,null,null,"合計"]
[]
[]
[]
[]
[]
[]
[null,"印刷して用紙を半分に切り離して、ＧＪが使用して下さい。　　　　　　　　　　　　　　　ピリオド毎に用紙を交換して１チームを追っかけて下さい。"]

{"sheet":"ＧＪ用ショット集計表 (記入例)","index":3,"n_rows":45,"n_cols":32,"rows_kept":45,"cut":false,"hidden":false,"merged":[[41,18,43,18],[41,29,43,29],[41,30,43,30],[41,31,46,31],[44,2,46,2],[44,13,46,13],[44,14,46,14],[44,18,46,18],[44,29,46,29],[44,30,46,30],[41,17,46,17],[41,1,46,1],[41,2,43,2],[41,13,43,13],[41,14,43,14],[41,15,46,15],[35,18,37,18],[35,29,37,29],[35,30,37,30],[35,31,40,31],[38,2,40,2],[38,13,40,13],[38,14,40,14],[38,18,40,18],[38,29,40,29],[38,30,40,30],[35,17,40,17],[35,1,40,1],[35,2,37,2],[35,13,37,13],[35,14,37,14],[35,15,40,15],[25,18,29,18],[25,29,29,29],[25,30,29,30],[25,31,34,31],[30,2,34,2],[30,13,34,13],[30,14,34,14],[30,18,34,18],[30,29,34,29],[30,30,34,30],[25,17,34,17],[25,1,34,1],[25,2,29,2],[25,13,29,13],[25,14,29,14],[25,15,34,15],[15,31,24,31],[20,2,24,2],[20,13,24,13],[20,14,24,14],[20,18,24,18],[20,29,24,29],[20,30,24,30],[15,17,24,17],[10,29,14,29],[10,30,14,30],[15,1,24,1],[15,2,19,2],[15,13,19,13],[15,14,19,14],[15,15,24,15],[15,18,19,18],[15,29,19,29],[15,30,19,30],[2,1,2,15],[2,17,2,31],[5,1,14,1],[5,2,9,2],[5,13,9,13],[5,14,9,14],[5,15,14,15],[5,17,14,17],[5,18,9,18],[5,29,9,29],[5,30,9,30],[5,31,14,31],[10,2,14,2],[10,13,14,13],[10,14,14,14],[10,18,14,18]]}
[null,"試合番号","5－1",null,null,null,null,null,null,null,null,null,null,null,null,null,null,"試合番号","5－1"]
[]
[null,"　　Ａチーム名　　　　　神奈川レッドスターズ",null,null,null,null,null,null,null,null,null,null,null,null,null,null,null,"　　Ｂチーム名　　　新横浜ブルーインパルス"]
[]
[null,"Ｐ","No.",1,2,3,4,5,6,7,8,9,0,"セーブ数","失点","相手チームシュート数",null,"Ｐ","No.",1,2,3,4,5,6,7,8,9,0,"セーブ数","失点","相手チームシュート数"]
[null,"１Ｐ",33,null,null,null,null,null,null,null,null,null,null,12,1,13,null,"１Ｐ",55,null,null,null,null,null,null,null,null,null,null,16,0,16]
[]
[]
[]
[]
[null,null,"ー",null,null,null,null,null,null,null,null,null,null,"ー","ー",null,null,null,"ー",null,null,null,null,null,null,null,null,null,null,"ー","ー"]
[]
[]
[]
[]
[null,"２Ｐ",33,null,null,null,null,null,null,null,null,null,null,16,0,16,null,"２Ｐ",55,null,null,null,null,null,null,null,null,null,null,15,1,25]
[]
[]
[]
[]
[null,null,"ー",null,null,null,null,null,null,null,null,null,null,"ー","ー",null,null,null,30,null,null,null,null,null,null,null,null,null,null,8,1]
[]
[]
[]
[]
[null,"３Ｐ","ー",null,null,null,null,null,null,null,null,null,null,"ー","ー",20,null,"３Ｐ","ー",null,null,null,null,null,null,null,null,null,null,"ー","ー",21]
[]
[]
[]
[]
[null,null,1,null,null,null,null,null,null,null,null,null,null,18,2,null,null,null,30,null,null,null,null,null,null,null,null,null,null,20,1]
[]
[]
[]
[]
[null,"ＯＴ","ー",null,null,null,null,null,null,null,null,null,null,"ー","ー",7,null,"ＯＴ",55,null,null,null,null,null,null,null,null,null,null,4,1,11]
[]
[]
[null,null,1,null,null,null,null,null,null,null,null,null,null,7,0,null,null,null,30,null,null,null,null,null,null,null,null,null,null,6,0]
[]
[]
[null,"合計",33,null,null,null,null,null,null,null,null,null,null,28,1,56,null,"合計",55,null,null,null,null,null,null,null,null,null,null,35,2,73]
[]
[]
[null,null,1,null,null,null,null,null,null,null,null,null,null,25,2,null,null,null,30,null,null,null,null,null,null,null,null,null,null,34,2]

{"sheet":"GameSheet","index":4,"n_rows":109,"n_cols":56,"rows_kept":109,"cut":false,"hidden":false,"merged":[[91,0,92,5],[91,6,92,20],[59,18,59,19],[63,0,63,5],[60,11,60,12],[60,15,60,16],[76,22,76,24],[60,30,60,34],[59,0,59,1],[83,22,83,24],[86,22,86,24],[81,22,81,24],[79,22,79,24],[59,30,59,34],[66,0,66,5],[60,13,60,14],[62,6,62,17],[63,6,63,17],[63,31,63,34],[59,15,59,16],[66,6,66,17],[86,4,86,19],[68,0,68,4],[82,33,82,34],[58,18,58,19],[78,33,78,34],[64,0,64,5],[65,0,65,5],[87,22,87,24],[87,33,87,34],[73,21,74,28],[73,29,74,34],[83,33,83,34],[85,22,85,24],[81,33,81,34],[86,33,86,34],[75,33,75,34],[79,33,79,34],[85,33,85,34],[62,0,62,5],[65,6,65,17],[64,6,64,17],[59,13,59,14],[59,11,59,12],[60,27,60,28],[40,22,40,24],[46,19,46,20],[55,27,55,28],[54,21,54,22],[55,15,55,16],[55,13,55,14],[55,21,55,22],[52,22,52,24],[53,21,53,24],[49,19,49,20],[53,19,53,20],[52,19,52,20],[51,19,51,20],[55,18,55,19],[50,19,50,20],[48,1,48,13],[48,14,48,18],[43,19,43,20],[45,14,45,18],[54,0,54,1],[53,16,53,17],[53,0,53,11],[53,12,53,15],[50,1,50,13],[46,22,46,24],[45,22,45,24],[41,22,41,24],[75,22,75,24],[45,33,45,34],[46,33,46,34],[42,33,42,34],[43,33,43,34],[42,22,42,24],[49,22,49,24],[47,22,47,24],[56,21,56,22],[59,25,59,26],[59,27,59,28],[60,25,60,26],[60,23,60,24],[59,21,59,22],[58,21,58,22],[57,21,57,22],[27,35,27,40],[52,35,52,40],[40,33,40,34],[41,33,41,34],[34,33,34,34],[48,33,48,34],[31,33,31,34],[37,33,37,34],[36,33,36,34],[27,29,27,34],[38,33,38,34],[37,22,37,24],[38,22,38,24],[32,33,32,34],[34,22,34,24],[55,25,55,26],[56,25,56,26],[56,27,56,28],[54,27,54,28],[11,1,11,13],[12,14,12,18],[13,14,13,18],[44,33,44,34],[45,1,45,13],[43,1,43,13],[44,1,44,13],[30,1,30,13],[41,1,41,13],[36,1,36,13],[11,33,11,34],[12,33,12,34],[26,22,26,24],[36,22,36,24],[43,22,43,24],[44,22,44,24],[39,22,39,24],[65,52,65,53],[33,33,33,34],[35,33,35,34],[50,22,50,24],[51,22,51,24],[48,22,48,24],[33,22,33,24],[39,33,39,34],[62,18,62,23],[63,18,63,23],[60,18,60,19],[63,47,63,49],[64,47,64,49],[64,50,64,51],[63,52,63,53],[61,25,61,26],[36,14,36,18],[37,14,37,18],[39,19,39,20],[35,22,35,24],[37,19,37,20],[34,14,34,18],[34,19,34,20],[66,47,66,49],[63,41,63,46],[63,35,63,40],[65,47,65,49],[59,23,59,24],[66,18,66,23],[78,22,78,24],[68,6,68,53],[65,50,65,51],[66,52,66,53],[66,50,66,51],[64,35,66,40],[64,41,66,46],[60,21,60,22],[62,52,62,53],[60,52,60,53],[64,31,66,34],[65,18,65,23],[61,0,61,20],[61,21,61,22],[61,23,61,24],[60,0,60,1],[63,24,63,30],[61,27,61,28],[54,2,54,4],[52,1,52,13],[52,14,52,18],[49,14,49,18],[50,14,50,18],[54,5,54,7],[54,8,54,10],[51,1,51,13],[49,1,49,13],[51,14,51,18],[54,17,54,20],[54,11,54,16],[55,0,55,1],[56,0,56,1],[42,1,42,13],[31,1,31,13],[18,1,18,13],[17,1,17,13],[15,1,15,13],[58,0,58,1],[58,15,58,16],[58,13,58,14],[32,14,32,18],[42,14,42,18],[55,11,55,12],[57,0,57,1],[56,15,56,16],[56,11,56,12],[56,18,56,19],[57,18,57,19],[57,13,57,14],[57,15,57,16],[56,13,56,14],[57,11,57,12],[58,11,58,12],[33,1,33,13],[34,1,34,13],[38,1,38,13],[26,1,26,13],[25,1,25,13],[40,1,40,13],[27,1,27,13],[39,1,39,13],[35,1,35,13],[37,1,37,13],[48,19,48,20],[46,14,46,18],[43,14,43,18],[44,19,44,20],[46,1,46,13],[47,1,47,13],[47,19,47,20],[35,14,35,18],[38,14,38,18],[41,14,41,18],[39,14,39,18],[35,19,35,20],[38,19,38,20],[36,19,36,20],[42,19,42,20],[44,14,44,18],[45,19,45,20],[47,14,47,18],[40,14,40,18],[33,14,33,18],[30,14,30,18],[25,19,25,20],[25,14,25,18],[26,14,26,18],[31,19,31,20],[31,14,31,18],[27,14,27,18],[33,19,33,20],[32,19,32,20],[22,33,22,34],[13,22,13,24],[15,33,15,34],[15,22,15,24],[9,22,9,24],[10,19,10,20],[9,19,9,20],[41,19,41,20],[40,19,40,20],[20,33,20,34],[21,33,21,34],[28,29,29,34],[27,22,27,24],[21,22,21,24],[22,22,22,24],[23,22,23,24],[24,22,24,24],[23,33,23,34],[24,33,24,34],[30,33,30,34],[32,22,32,24],[25,33,25,34],[26,33,26,34],[24,19,24,20],[8,50,8,51],[12,41,12,43],[12,46,12,49],[9,50,9,51],[5,52,5,53],[5,50,5,51],[5,41,5,43],[5,46,5,49],[21,14,21,18],[20,22,20,24],[18,22,18,24],[19,22,19,24],[9,52,9,53],[13,52,13,53],[11,52,11,53],[12,52,12,53],[11,50,11,51],[13,50,13,51],[10,22,10,24],[12,22,12,24],[11,22,11,24],[16,33,16,34],[14,22,14,24],[13,46,13,49],[1,40,1,42],[1,49,1,51],[6,52,6,53],[7,52,7,53],[7,50,7,51],[1,0,1,1],[1,2,1,18],[1,46,1,48],[1,38,1,39],[3,21,4,28],[3,6,4,20],[3,29,4,34],[1,22,1,29],[7,22,7,24],[7,19,7,20],[6,19,6,20],[6,33,6,34],[7,33,7,34],[6,41,6,43],[1,30,1,31],[1,32,1,37],[1,43,1,45],[6,50,6,51],[6,46,6,49],[5,14,5,18],[6,14,6,18],[7,1,7,13],[7,46,7,49],[5,19,5,20],[9,33,9,34],[9,1,9,13],[10,46,10,49],[8,19,8,20],[7,41,7,43],[8,1,8,13],[8,46,8,49],[8,22,8,24],[5,33,5,34],[6,1,6,13],[6,22,6,24],[5,22,5,24],[5,1,5,13],[7,14,7,18],[25,22,25,24],[16,22,16,24],[17,22,17,24],[19,19,19,20],[20,19,20,20],[22,19,22,20],[23,19,23,20],[17,19,17,20],[18,19,18,20],[21,19,21,20],[12,1,12,13],[13,1,13,13],[9,14,9,18],[11,14,11,18],[10,1,10,13],[15,50,15,51],[21,50,21,51],[11,19,11,20],[10,14,10,18],[10,33,10,34],[14,1,14,13],[15,14,15,18],[16,14,16,18],[13,41,13,43],[16,19,16,20],[14,19,14,20],[13,19,13,20],[16,41,16,43],[3,35,26,40],[23,41,23,43],[8,33,8,34],[17,14,17,18],[15,19,15,20],[12,19,12,20],[21,46,21,49],[13,33,13,34],[14,41,14,43],[18,41,18,43],[17,41,17,43],[18,33,18,34],[17,46,17,49],[21,41,21,43],[20,46,20,49],[10,41,10,43],[11,41,11,43],[8,14,8,18],[11,46,11,49],[19,33,19,34],[17,33,17,34],[15,41,15,43],[9,41,9,43],[8,41,8,43],[14,14,14,18],[9,46,9,49],[21,52,21,53],[22,50,22,51],[14,33,14,34],[20,41,20,43],[23,50,23,51],[15,52,15,53],[14,46,14,49],[19,52,19,53],[20,52,20,53],[17,52,17,53],[16,52,16,53],[18,50,18,51],[22,41,22,43],[18,52,18,53],[17,50,17,51],[14,50,14,51],[14,52,14,53],[20,50,20,51],[18,46,18,49],[19,46,19,49],[15,46,15,49],[16,50,16,51],[19,50,19,51],[16,46,16,49],[23,52,23,53],[22,52,22,53],[32,46,32,49],[31,46,31,49],[30,46,30,49],[22,46,22,49],[23,46,23,49],[25,52,25,53],[31,50,31,51],[27,52,27,53],[27,50,27,51],[30,52,30,53],[26,46,26,49],[25,46,25,49],[31,52,31,53],[30,50,30,51],[27,46,27,49],[24,46,24,49],[33,52,33,53],[24,52,24,53],[24,50,24,51],[25,50,25,51],[27,41,27,43],[33,46,33,49],[33,41,33,43],[34,50,34,51],[34,46,34,49],[32,50,32,51],[26,50,26,51],[33,50,33,51],[32,41,32,43],[30,41,30,43],[31,41,31,43],[32,52,32,53],[26,52,26,53],[24,41,24,43],[34,41,34,43],[26,41,26,43],[28,41,29,53],[48,52,48,53],[54,30,54,31],[51,52,51,53],[50,50,50,51],[49,46,49,49],[57,52,57,53],[56,32,56,33],[56,47,56,49],[57,47,57,49],[55,36,55,37],[55,52,55,53],[55,47,55,49],[55,50,55,51],[56,52,56,53],[55,38,55,39],[56,30,56,31],[54,32,54,33],[55,32,55,33],[51,46,51,49],[48,46,48,49],[55,30,55,31],[45,52,45,53],[44,46,44,49],[43,46,43,49],[42,50,42,51],[43,52,43,53],[42,46,42,49],[45,50,45,51],[45,46,45,49],[63,50,63,51],[61,47,61,49],[58,50,58,51],[60,50,60,51],[58,47,58,49],[54,47,54,49],[52,46,52,49],[50,52,50,53],[46,52,46,53],[49,52,49,53],[51,50,51,51],[48,50,48,51],[49,50,49,51],[47,50,47,51],[47,52,47,53],[52,52,52,53],[41,46,41,49],[41,50,41,51],[38,46,38,49],[37,46,37,49],[40,46,40,49],[37,50,37,51],[36,50,36,51],[44,52,44,53],[44,50,44,51],[43,50,43,51],[36,46,36,49],[38,50,38,51],[35,50,35,51],[37,52,37,53],[39,52,39,53],[39,50,39,51],[35,52,35,53],[35,41,35,43],[38,41,38,43],[37,41,37,43],[36,52,36,53],[36,41,36,43],[35,46,35,49],[0,0,0,21],[0,24,0,40],[1,19,1,21],[3,41,4,53],[10,50,10,51],[1,52,1,53],[12,50,12,51],[40,41,40,43],[8,52,8,53],[34,52,34,53],[25,41,25,43],[28,35,51,40],[50,33,50,34],[47,33,47,34],[49,41,49,43],[51,33,51,34],[38,52,38,53],[49,33,49,34],[10,52,10,53],[41,52,41,53],[39,46,39,49],[42,52,42,53],[40,50,40,51],[40,52,40,53],[47,46,47,49],[62,47,62,49],[60,47,60,49],[54,50,54,51],[57,50,57,51],[59,47,59,49],[45,41,45,43],[44,41,44,43],[52,41,52,43],[46,50,46,51],[46,46,46,49],[60,35,60,41],[58,39,58,41],[56,40,56,41],[54,34,54,35],[56,34,56,35],[55,34,55,35],[55,40,55,41],[54,36,54,37],[56,36,56,37],[56,38,56,39],[57,36,57,38],[57,33,57,35],[58,52,58,53],[59,50,59,51],[59,52,59,53],[62,35,62,40],[62,41,62,46],[61,52,61,53],[51,41,51,43],[50,46,50,49],[56,50,56,51],[52,50,52,51],[61,50,61,51],[62,50,62,51],[58,33,58,35],[62,31,62,34],[58,30,58,32],[57,30,57,32],[57,39,57,41],[59,35,59,41],[50,41,50,43],[54,52,54,53],[62,24,62,30],[58,25,58,26],[55,23,55,24],[54,23,54,24],[58,23,58,24],[58,27,58,28],[57,25,57,26],[48,41,48,43],[96,21,96,23],[96,24,96,25],[96,26,96,27],[57,27,57,28],[56,23,56,24],[76,33,76,34],[54,25,54,26],[57,23,57,24],[82,22,82,24],[91,21,92,21],[92,22,92,45],[46,41,46,43],[54,40,54,41],[54,38,54,39],[47,41,47,43],[58,36,58,38],[43,41,43,43],[52,29,52,34],[39,41,39,43],[42,41,42,43],[41,41,41,43],[99,33,99,34],[96,42,96,43],[21,1,21,13],[22,14,22,18],[20,14,20,18],[16,1,16,13],[18,14,18,18],[19,14,19,18],[32,1,32,13],[19,41,19,43],[28,21,29,28],[31,22,31,24],[30,22,30,24],[27,19,27,20],[30,19,30,20],[26,19,26,20],[28,6,29,20],[19,1,19,13],[20,1,20,13],[22,1,22,13],[23,14,23,18],[24,14,24,18],[23,1,23,13],[24,1,24,13],[97,24,97,25],[97,26,97,27],[96,44,96,45],[98,44,98,45],[98,26,98,27],[96,35,96,36],[97,30,97,32],[97,33,97,34],[97,35,97,36],[96,30,96,32],[96,33,96,34],[96,39,96,41],[99,35,99,36],[98,30,98,32],[98,33,98,34],[97,39,97,41],[98,39,98,41],[98,42,98,43],[3,0,4,5],[28,0,29,5],[98,21,98,23],[98,35,98,36],[98,24,98,25],[91,22,91,45],[70,1,70,26],[70,29,70,52],[71,1,71,30],[91,46,92,52],[64,52,64,53],[64,24,64,30],[65,24,65,30],[66,24,66,30],[64,18,64,23],[97,42,97,43],[97,44,97,45],[97,21,97,23],[101,42,101,43],[101,44,101,45],[102,42,102,43],[102,44,102,45],[102,39,102,41],[99,39,99,41],[99,44,99,45],[105,44,105,45],[104,39,104,41],[103,39,103,41],[103,42,103,43],[103,44,103,45],[104,42,104,43],[104,44,104,45],[100,42,100,43],[100,44,100,45],[99,42,99,43],[106,39,106,41],[108,39,108,41],[100,39,100,41],[100,21,100,23],[100,24,100,25],[100,26,100,27],[107,39,107,41],[105,39,105,41],[101,26,101,27],[102,24,102,25],[102,26,102,27],[105,33,105,34],[105,35,105,36],[108,30,108,32],[108,33,108,34],[108,35,108,36],[106,30,106,32],[106,33,106,34],[106,35,106,36],[107,30,107,32],[107,33,107,34],[107,35,107,36],[101,39,101,41],[108,42,108,43],[104,21,104,23],[104,24,104,25],[104,26,104,27],[103,26,103,27],[103,21,103,23],[103,24,103,25],[105,42,105,43],[99,21,99,23],[99,24,99,25],[99,26,99,27],[101,21,101,23],[99,30,99,32],[101,24,101,25],[100,35,100,36],[101,30,101,32],[101,33,101,34],[101,35,101,36],[100,30,100,32],[100,33,100,34],[104,30,104,32],[104,33,104,34],[104,35,104,36],[105,30,105,32],[108,44,108,45],[106,42,106,43],[106,44,106,45],[107,42,107,43],[107,44,107,45],[102,21,102,23],[105,21,105,23],[105,24,105,25],[105,26,105,27],[108,21,108,23],[108,24,108,25],[108,26,108,27],[106,21,106,23],[106,24,106,25],[106,26,106,27],[107,21,107,23],[107,24,107,25],[107,26,107,27],[102,35,102,36],[103,30,103,32],[103,33,103,34],[103,35,103,36],[102,30,102,32],[102,33,102,34]]}
["OFFICIAL GAME SHEET",null,null,null,null,null,null,null,null,null,null,null,null,null,null,null,null,null,null,null,null,null,"230204",null,"KANAGAWA ICE HOCKEY FEDERATION",null,null,null,null,null,null,null,null,null,null,null,null,null,null,null,null,null,null,null,null,null,null,null,null,null,null,"K.I.H.F"]
["Event:",null,"第72回神奈川県アイスホッケー選手権",null,null,null,null,null,null,null,null,null,null,null,null,null,null,null,null,"Venue:",null,null,"横浜銀行アイスアリーナ",null,null,null,null,null,null,null,"Date:",null,"2024-09-25",null,null,null,null,null,"Start:",null,null,null,null,"Spectators:",null,null,"-",null,null,"Game No.:",null,null,null,null,null,"1500"]
[]
["Home Team (A)",null,null,null,null,null,null,null,null,null,null,null,null,null,null,null,null,null,null,null,null,"Goals",null,null,null,null,null,null,null,"Penalty Shot Shootout",null,null,null,null,null,null,null,null,null,null,null,"Penalties"]
[]
["No.","Family and Given Name",null,null,null,null,null,null,null,null,null,null,null,null,"(+BP+C/A)",null,null,null,null,"Pos",null,"#","Time",null,null,"G","A1","A2","GS","A","B","GKA","GKB","GF:GA",null,null,null,null,null,null,null,"Time",null,null,"No.","Min","Offence",null,null,null,"Start",null,"End"]
[{"$f":"IF(TeamA!C4=\"\",\"\",TeamA!C4)","v":"-"},{"$f":"IF(TeamA!D4=\"\",\"\",TeamA!D4)","v":"-"},null,null,null,null,null,null,null,null,null,null,null,null,{"$f":"IF(TeamA!E4=\"\",\"\",TeamA!E4)","v":""},null,null,null,null,{"$f":"IF(TeamA!F4=\"\",\"\",TeamA!F4)","v":"G"},null,null,null,null,null,null,null,null,null,null,null,null,null,null,null,null,null,null,null,null,null,null,null,null,null,null,null,null,null,null,{"$f":"IF(AP7=\"\",\"\",AP7)","v":""}]
[{"$f":"IF(TeamA!C5=\"\",\"\",TeamA!C5)","v":"-"},{"$f":"IF(TeamA!D5=\"\",\"\",TeamA!D5)","v":"-"},null,null,null,null,null,null,null,null,null,null,null,null,{"$f":"IF(TeamA!E5=\"\",\"\",TeamA!E5)","v":""},null,null,null,null,{"$f":"IF(TeamA!F5=\"\",\"\",TeamA!F5)","v":"-"},null,null,null,null,null,null,null,null,null,null,null,null,null,null,null,null,null,null,null,null,null,null,null,null,null,null,null,null,null,null,{"$f":"IF(AP8=\"\",\"\",AP8)","v":""}]
[{"$f":"IF(TeamA!C6=\"\",\"\",TeamA!C6)","v":"-"},{"$f":"IF(TeamA!D6=\"\",\"\",TeamA!D6)","v":"-"},null,null,null,null,null,null,null,null,null,null,null,null,{"$f":"IF(TeamA!E6=\"\",\"\",TeamA!E6)","v":""},null,null,null,null,{"$f":"IF(TeamA!F6=\"\",\"\",TeamA!F6)","v":"-"},null,null,null,null,null,null,null,null,null,null,null,null,null,null,null,null,null,null,null,null,null,null,null,null,null,null,null,null,null,null,{"$f":"IF(AP9=\"\",\"\",AP9)","v":""}]
[{"$f":"IF(TeamA!C7=\"\",\"\",TeamA!C7)","v":"-"},{"$f":"IF(TeamA!D7=\"\",\"\",TeamA!D7)","v":"-"},null,null,null,null,null,null,null,null,null,null,null,null,{"$f":"IF(TeamA!E7=\"\",\"\",TeamA!E7)","v":""},null,null,null,null,{"$f":"IF(TeamA!F7=\"\",\"\",TeamA!F7)","v":"-"},null,null,null,null,null,null,null,null,null,null,null,null,null,null,null,null,null,null,null,null,null,null,null,null,null,null,null,null,null,null,""]
[{"$f":"IF(TeamA!C8=\"\",\"\",TeamA!C8)","v":"-"},{"$f":"IF(TeamA!D8=\"\",\"\",TeamA!D8)","v":"-"},null,null,null,null,null,null,null,null,null,null,null,null,{"$f":"IF(TeamA!E8=\"\",\"\",TeamA!E8)","v":""},null,null,null,null,{"$f":"IF(TeamA!F8=\"\",\"\",TeamA!F8)","v":"-"},null,null,null,null,null,null,null,null,null,null,null,null,null,null,null,null,null,null,null,null,null,null,null,null,null,null,null,null,null,null,""]
[{"$f":"IF(TeamA!C9=\"\",\"\",TeamA!C9)","v":"-"},{"$f":"IF(TeamA!D9=\"\",\"\",TeamA!D9)","v":"-"},null,null,null,null,null,null,null,null,null,null,null,null,{"$f":"IF(TeamA!E9=\"\",\"\",TeamA!E9)","v":""},null,null,null,null,{"$f":"IF(TeamA!F9=\"\",\"\",TeamA!F9)","v":"-"},null,null,null,null,null,null,null,null,null,null,null,null,null,null,null,null,null,null,null,null,null,null,null,null,null,null,null,null,null,null,""]
[{"$f":"IF(TeamA!C10=\"\",\"\",TeamA!C10)","v":"-"},{"$f":"IF(TeamA!D10=\"\",\"\",TeamA!D10)","v":"-"},null,null,null,null,null,null,null,null,null,null,null,null,{"$f":"IF(TeamA!E10=\"\",\"\",TeamA!E10)","v":""},null,null,null,null,{"$f":"IF(TeamA!F10=\"\",\"\",TeamA!F10)","v":"-"},null,null,null,null,null,null,null,null,null,null,null,null,null,null,null,null,null,null,null,null,null,null,null,null,null,null,null,null,null,null,""]
[{"$f":"IF(TeamA!C11=\"\",\"\",TeamA!C11)","v":"-"},{"$f":"IF(TeamA!D11=\"\",\"\",TeamA!D11)","v":"-"},null,null,null,null,null,null,null,null,null,null,null,null,{"$f":"IF(TeamA!E11=\"\",\"\",TeamA!E11)","v":""},null,null,null,null,{"$f":"IF(TeamA!F11=\"\",\"\",TeamA!F11)","v":"-"},null,null,null,null,null,null,null,null,null,null,null,null,null,null,null,null,null,null,null,null,null,null,null,null,null,null,null,null,null,null,""]
[{"$f":"IF(TeamA!C12=\"\",\"\",TeamA!C12)","v":"-"},{"$f":"IF(TeamA!D12=\"\",\"\",TeamA!D12)","v":"-"},null,null,null,null,null,null,null,null,null,null,null,null,{"$f":"IF(TeamA!E12=\"\",\"\",TeamA!E12)","v":""},null,null,null,null,{"$f":"IF(TeamA!F12=\"\",\"\",TeamA!F12)","v":"-"},null,null,null,null,null,null,null,null,null,null,null,null,null,null,null,null,null,null,null,null,null,null,null,null,null,null,null,null,null,null,""]
[{"$f":"IF(TeamA!C13=\"\",\"\",TeamA!C13)","v":"-"},{"$f":"IF(TeamA!D13=\"\",\"\",TeamA!D13)","v":"-"},null,null,null,null,null,null,null,null,null,null,null,null,{"$f":"IF(TeamA!E13=\"\",\"\",TeamA!E13)","v":""},null,null,null,null,{"$f":"IF(TeamA!F13=\"\",\"\",TeamA!F13)","v":"-"},null,null,null,null,null,null,null,null,null,null,null,null,null,null,null,null,null,null,null,null,null,null,null,null,null,null,null,null,null,null,""]
[{"$f":"IF(TeamA!C14=\"\",\"\",TeamA!C14)","v":"-"},{"$f":"IF(TeamA!D14=\"\",\"\",TeamA!D14)","v":"-"},null,null,null,null,null,null,null,null,null,null,null,null,{"$f":"IF(TeamA!E14=\"\",\"\",TeamA!E14)","v":""},null,null,null,null,{"$f":"IF(TeamA!F14=\"\",\"\",TeamA!F14)","v":"-"},null,null,null,null,null,null,null,null,null,null,null,null,null,null,null,null,null,null,null,null,null,null,null,null,null,null,null,null,null,null,""]
[{"$f":"IF(TeamA!C15=\"\",\"\",TeamA!C15)","v":"-"},{"$f":"IF(TeamA!D15=\"\",\"\",TeamA!D15)","v":"-"},null,null,null,null,null,null,null,null,null,null,null,null,{"$f":"IF(TeamA!E15=\"\",\"\",TeamA!E15)","v":""},null,null,null,null,{"$f":"IF(TeamA!F15=\"\",\"\",TeamA!F15)","v":"-"},null,null,null,null,null,null,null,null,null,null,null,null,null,null,null,null,null,null,null,null,null,null,null,null,null,null,null,null,null,null,""]
[{"$f":"IF(TeamA!C16=\"\",\"\",TeamA!C16)","v":"-"},{"$f":"IF(TeamA!D16=\"\",\"\",TeamA!D16)","v":"-"},null,null,null,null,null,null,null,null,null,null,null,null,{"$f":"IF(TeamA!E16=\"\",\"\",TeamA!E16)","v":""},null,null,null,null,{"$f":"IF(TeamA!F16=\"\",\"\",TeamA!F16)","v":"-"},null,null,null,null,null,null,null,null,null,null,null,null,null,null,null,null,null,null,null,null,null,null,null,null,null,null,null,null,null,null,""]
[{"$f":"IF(TeamA!C17=\"\",\"\",TeamA!C17)","v":"-"},{"$f":"IF(TeamA!D17=\"\",\"\",TeamA!D17)","v":"-"},null,null,null,null,null,null,null,null,null,null,null,null,{"$f":"IF(TeamA!E17=\"\",\"\",TeamA!E17)","v":""},null,null,null,null,{"$f":"IF(TeamA!F17=\"\",\"\",TeamA!F17)","v":"-"},null,null,null,null,null,null,null,null,null,null,null,null,null,null,null,null,null,null,null,null,null,null,null,null,null,null,null,null,null,null,""]
[{"$f":"IF(TeamA!C18=\"\",\"\",TeamA!C18)","v":"-"},{"$f":"IF(TeamA!D18=\"\",\"\",TeamA!D18)","v":"-"},null,null,null,null,null,null,null,null,null,null,null,null,{"$f":"IF(TeamA!E18=\"\",\"\",TeamA!E18)","v":""},null,null,null,null,{"$f":"IF(TeamA!F18=\"\",\"\",TeamA!F18)","v":"-"},null,null,null,null,null,null,null,null,null,null,null,null,null,null,null,null,null,null,null,null,null,null,null,null,null,null,null,null,null,null,""]
[{"$f":"IF(TeamA!C19=\"\",\"\",TeamA!C19)","v":"-"},{"$f":"IF(TeamA!D19=\"\",\"\",TeamA!D19)","v":"-"},null,null,null,null,null,null,null,null,null,null,null,null,{"$f":"IF(TeamA!E19=\"\",\"\",TeamA!E19)","v":""},null,null,null,null,{"$f":"IF(TeamA!F19=\"\",\"\",TeamA!F19)","v":"-"},null,null,null,null,null,null,null,null,null,null,null,null,null,null,null,null,null,null,null,null,null,null,null,null,null,null,null,null,null,null,""]
[{"$f":"IF(TeamA!C20=\"\",\"\",TeamA!C20)","v":"-"},{"$f":"IF(TeamA!D20=\"\",\"\",TeamA!D20)","v":"-"},null,null,null,null,null,null,null,null,null,null,null,null,{"$f":"IF(TeamA!E20=\"\",\"\",TeamA!E20)","v":""},null,null,null,null,{"$f":"IF(TeamA!F20=\"\",\"\",TeamA!F20)","v":"-"},null,null,null,null,null,null,null,null,null,null,null,null,null,null,null,null,null,null,null,null,null,null,null,null,null,null,null,null,null,null,""]
[{"$f":"IF(TeamA!C21=\"\",\"\",TeamA!C21)","v":"-"},{"$f":"IF(TeamA!D21=\"\",\"\",TeamA!D21)","v":"-"},null,null,null,null,null,null,null,null,null,null,null,null,{"$f":"IF(TeamA!E21=\"\",\"\",TeamA!E21)","v":""},null,null,null,null,{"$f":"IF(TeamA!F21=\"\",\"\",TeamA!F21)","v":"-"},null,null,null,null,null,null,null,null,null,null,null,null,null,null,null,null,null,null,null,null,null,null,null,null,null,null,null,null,null,null,""]
[{"$f":"IF(TeamA!C22=\"\",\"\",TeamA!C22)","v":"-"},{"$f":"IF(TeamA!D22=\"\",\"\",TeamA!D22)","v":"-"},null,null,null,null,null,null,null,null,null,null,null,null,{"$f":"IF(TeamA!E22=\"\",\"\",TeamA!E22)","v":""},null,null,null,null,{"$f":"IF(TeamA!F22=\"\",\"\",TeamA!F22)","v":"-"},null,null,null,null,null,null,null,null,null,null,null,null,null,null,null,null,null,null,null,null,null,null,null,null,null,null,null,null,null,null,""]
[{"$f":"IF(TeamA!C23=\"\",\"\",TeamA!C23)","v":"-"},{"$f":"IF(TeamA!D23=\"\",\"\",TeamA!D23)","v":"-"},null,null,null,null,null,null,null,null,null,null,null,null,{"$f":"IF(TeamA!E23=\"\",\"\",TeamA!E23)","v":""},null,null,null,null,{"$f":"IF(TeamA!F23=\"\",\"\",TeamA!F23)","v":"-"},null,null,null,null,null,null,null,null,null,null,null,null,null,null,null,null,null,null,null,null,null,null,null,null,null,null,null,null,null,null,""]
[{"$f":"IF(TeamA!C24=\"\",\"\",TeamA!C24)","v":"-"},{"$f":"IF(TeamA!D24=\"\",\"\",TeamA!D24)","v":"-"},null,null,null,null,null,null,null,null,null,null,null,null,{"$f":"IF(TeamA!E24=\"\",\"\",TeamA!E24)","v":""},null,null,null,null,{"$f":"IF(TeamA!F24=\"\",\"\",TeamA!F24)","v":"-"},null,null,null,null,null,null,null,null,null,null,null,null,null,null,null,null,null,null,null,null,null,null,null,null,null,null,null,null,null,null,""]
[{"$f":"IF(TeamA!C25=\"\",\"\",TeamA!C25)","v":"-"},{"$f":"IF(TeamA!D25=\"\",\"\",TeamA!D25)","v":"-"},null,null,null,null,null,null,null,null,null,null,null,null,{"$f":"IF(TeamA!E25=\"\",\"\",TeamA!E25)","v":""},null,null,null,null,{"$f":"IF(TeamA!F25=\"\",\"\",TeamA!F25)","v":"-"},null,null,null,null,null,null,null,null,null,"Team official in bench",null,null,null,null,null,{"$f":"IF(TeamA!D27=\"\",\"\",TeamA!D27)","v":"-"},null,null,null,null,null,null,null,null,null,null,null,null,null,null,""]
["Visiting Team (B)",null,null,null,null,null,"BERKS",null,null,null,null,null,null,null,null,null,null,null,null,null,null,"Goals",null,null,null,null,null,null,null,"Penalty Shot Shootout",null,null,null,null,null,null,null,null,null,null,null,"Penalties"]
[]
["No.","Family and Given Name",null,null,null,null,null,null,null,null,null,null,null,null,"(+BP+C/A)",null,null,null,null,"Pos",null,"#","Time",null,null,"G","A1","A2","GS","A","B","GKA","GKB","GF:GA",null,null,null,null,null,null,null,"Time",null,null,"No.","Min","Offence",null,null,null,"Start",null,"End"]
[{"$f":"IF(TeamB!C4=\"\",\"\",TeamB!C4)","v":"-"},{"$f":"IF(TeamB!D4=\"\",\"\",TeamB!D4)","v":"-"},null,null,null,null,null,null,null,null,null,null,null,null,{"$f":"IF(TeamB!E4=\"\",\"\",TeamB!E4)","v":""},null,null,null,null,{"$f":"IF(TeamB!F4=\"\",\"\",TeamB!F4)","v":"G"},null,null,null,null,null,null,null,null,null,null,null,null,null,null,null,null,null,null,null,null,null,null,null,null,null,null,null,null,null,null,{"$f":"IF(AP32=\"\",\"\",AP32)","v":""}]
[{"$f":"IF(TeamB!C5=\"\",\"\",TeamB!C5)","v":"-"},{"$f":"IF(TeamB!D5=\"\",\"\",TeamB!D5)","v":"-"},null,null,null,null,null,null,null,null,null,null,null,null,{"$f":"IF(TeamB!E5=\"\",\"\",TeamB!E5)","v":""},null,null,null,null,{"$f":"IF(TeamB!F5=\"\",\"\",TeamB!F5)","v":"-"},null,null,null,null,null,null,null,null,null,null,null,null,null,null,null,null,null,null,null,null,null,null,null,null,null,null,null,null,null,null,{"$f":"IF(AP33=\"\",\"\",AP33)","v":""}]
[{"$f":"IF(TeamB!C6=\"\",\"\",TeamB!C6)","v":"-"},{"$f":"IF(TeamB!D6=\"\",\"\",TeamB!D6)","v":"-"},null,null,null,null,null,null,null,null,null,null,null,null,{"$f":"IF(TeamB!E6=\"\",\"\",TeamB!E6)","v":""},null,null,null,null,{"$f":"IF(TeamB!F6=\"\",\"\",TeamB!F6)","v":"-"},null,null,null,null,null,null,null,null,null,null,null,null,null,null,null,null,null,null,null,null,null,null,null,null,null,null,null,null,null,null,""]
[{"$f":"IF(TeamB!C7=\"\",\"\",TeamB!C7)","v":"-"},{"$f":"IF(TeamB!D7=\"\",\"\",TeamB!D7)","v":"-"},null,null,null,null,null,null,null,null,null,null,null,null,{"$f":"IF(TeamB!E7=\"\",\"\",TeamB!E7)","v":""},null,null,null,null,{"$f":"IF(TeamB!F7=\"\",\"\",TeamB!F7)","v":"-"},null,null,null,null,null,null,null,null,null,null,null,null,null,null,null,null,null,null,null,null,null,null,null,null,null,null,null,null,null,null,""]
[{"$f":"IF(TeamB!C8=\"\",\"\",TeamB!C8)","v":"-"},{"$f":"IF(TeamB!D8=\"\",\"\",TeamB!D8)","v":"-"},null,null,null,null,null,null,null,null,null,null,null,null,{"$f":"IF(TeamB!E8=\"\",\"\",TeamB!E8)","v":""},null,null,null,null,{"$f":"IF(TeamB!F8=\"\",\"\",TeamB!F8)","v":"-"},null,null,null,null,null,null,null,null,null,null,null,null,null,null,null,null,null,null,null,null,null,null,null,null,null,null,null,null,null,null,""]
[{"$f":"IF(TeamB!C9=\"\",\"\",TeamB!C9)","v":"-"},{"$f":"IF(TeamB!D9=\"\",\"\",TeamB!D9)","v":"-"},null,null,null,null,null,null,null,null,null,null,null,null,{"$f":"IF(TeamB!E9=\"\",\"\",TeamB!E9)","v":""},null,null,null,null,{"$f":"IF(TeamB!F9=\"\",\"\",TeamB!F9)","v":"-"},null,null,null,null,null,null,null,null,null,null,null,null,null,null,null,null,null,null,null,null,null,null,null,null,null,null,null,null,null,null,""]
[{"$f":"IF(TeamB!C10=\"\",\"\",TeamB!C10)","v":"-"},{"$f":"IF(TeamB!D10=\"\",\"\",TeamB!D10)","v":"-"},null,null,null,null,null,null,null,null,null,null,null,null,{"$f":"IF(TeamB!E10=\"\",\"\",TeamB!E10)","v":""},null,null,null,null,{"$f":"IF(TeamB!F10=\"\",\"\",TeamB!F10)","v":"-"},null,null,null,null,null,null,null,null,null,null,null,null,null,null,null,null,null,null,null,null,null,null,null,null,null,null,null,null,null,null,""]
[{"$f":"IF(TeamB!C11=\"\",\"\",TeamB!C11)","v":"-"},{"$f":"IF(TeamB!D11=\"\",\"\",TeamB!D11)","v":"-"},null,null,null,null,null,null,null,null,null,null,null,null,{"$f":"IF(TeamB!E11=\"\",\"\",TeamB!E11)","v":""},null,null,null,null,{"$f":"IF(TeamB!F11=\"\",\"\",TeamB!F11)","v":"-"},null,null,null,null,null,null,null,null,null,null,null,null,null,null,null,null,null,null,null,null,null,null,null,null,null,null,null,null,null,null,""]
[{"$f":"IF(TeamB!C12=\"\",\"\",TeamB!C12)","v":"-"},{"$f":"IF(TeamB!D12=\"\",\"\",TeamB!D12)","v":"-"},null,null,null,null,null,null,null,null,null,null,null,null,{"$f":"IF(TeamB!E12=\"\",\"\",TeamB!E12)","v":""},null,null,null,null,{"$f":"IF(TeamB!F12=\"\",\"\",TeamB!F12)","v":"-"},null,null,null,null,null,null,null,null,null,null,null,null,null,null,null,null,null,null,null,null,null,null,null,null,null,null,null,null,null,null,""]
[{"$f":"IF(TeamB!C13=\"\",\"\",TeamB!C13)","v":"-"},{"$f":"IF(TeamB!D13=\"\",\"\",TeamB!D13)","v":"-"},null,null,null,null,null,null,null,null,null,null,null,null,{"$f":"IF(TeamB!E13=\"\",\"\",TeamB!E13)","v":""},null,null,null,null,{"$f":"IF(TeamB!F13=\"\",\"\",TeamB!F13)","v":"-"},null,null,null,null,null,null,null,null,null,null,null,null,null,null,null,null,null,null,null,null,null,null,null,null,null,null,null,null,null,null,""]
[{"$f":"IF(TeamB!C14=\"\",\"\",TeamB!C14)","v":"-"},{"$f":"IF(TeamB!D14=\"\",\"\",TeamB!D14)","v":"-"},null,null,null,null,null,null,null,null,null,null,null,null,{"$f":"IF(TeamB!E14=\"\",\"\",TeamB!E14)","v":""},null,null,null,null,{"$f":"IF(TeamB!F14=\"\",\"\",TeamB!F14)","v":"-"},null,null,null,null,null,null,null,null,null,null,null,null,null,null,null,null,null,null,null,null,null,null,null,null,null,null,null,null,null,null,""]
[{"$f":"IF(TeamB!C15=\"\",\"\",TeamB!C15)","v":"-"},{"$f":"IF(TeamB!D15=\"\",\"\",TeamB!D15)","v":"-"},null,null,null,null,null,null,null,null,null,null,null,null,{"$f":"IF(TeamB!E15=\"\",\"\",TeamB!E15)","v":""},null,null,null,null,{"$f":"IF(TeamB!F15=\"\",\"\",TeamB!F15)","v":"-"},null,null,null,null,null,null,null,null,null,null,null,null,null,null,null,null,null,null,null,null,null,null,null,null,null,null,null,null,null,null,""]
[{"$f":"IF(TeamB!C16=\"\",\"\",TeamB!C16)","v":"-"},{"$f":"IF(TeamB!D16=\"\",\"\",TeamB!D16)","v":"-"},null,null,null,null,null,null,null,null,null,null,null,null,{"$f":"IF(TeamB!E16=\"\",\"\",TeamB!E16)","v":""},null,null,null,null,{"$f":"IF(TeamB!F16=\"\",\"\",TeamB!F16)","v":"-"},null,null,null,null,null,null,null,null,null,null,null,null,null,null,null,null,null,null,null,null,null,null,null,null,null,null,null,null,null,null,""]
[{"$f":"IF(TeamB!C17=\"\",\"\",TeamB!C17)","v":"-"},{"$f":"IF(TeamB!D17=\"\",\"\",TeamB!D17)","v":"-"},null,null,null,null,null,null,null,null,null,null,null,null,{"$f":"IF(TeamB!E17=\"\",\"\",TeamB!E17)","v":""},null,null,null,null,{"$f":"IF(TeamB!F17=\"\",\"\",TeamB!F17)","v":"-"},null,null,null,null,null,null,null,null,null,null,null,null,null,null,null,null,null,null,null,null,null,null,null,null,null,null,null,null,null,null,""]
[{"$f":"IF(TeamB!C18=\"\",\"\",TeamB!C18)","v":"-"},{"$f":"IF(TeamB!D18=\"\",\"\",TeamB!D18)","v":"-"},null,null,null,null,null,null,null,null,null,null,null,null,{"$f":"IF(TeamB!E18=\"\",\"\",TeamB!E18)","v":""},null,null,null,null,{"$f":"IF(TeamB!F18=\"\",\"\",TeamB!F18)","v":"-"},null,null,null,null,null,null,null,null,null,null,null,null,null,null,null,null,null,null,null,null,null,null,null,null,null,null,null,null,null,null,""]
[{"$f":"IF(TeamB!C19=\"\",\"\",TeamB!C19)","v":"-"},{"$f":"IF(TeamB!D19=\"\",\"\",TeamB!D19)","v":"-"},null,null,null,null,null,null,null,null,null,null,null,null,{"$f":"IF(TeamB!E19=\"\",\"\",TeamB!E19)","v":""},null,null,null,null,{"$f":"IF(TeamB!F19=\"\",\"\",TeamB!F19)","v":"-"},null,null,null,null,null,null,null,null,null,null,null,null,null,null,null,null,null,null,null,null,null,null,null,null,null,null,null,null,null,null,""]
[{"$f":"IF(TeamB!C20=\"\",\"\",TeamB!C20)","v":"-"},{"$f":"IF(TeamB!D20=\"\",\"\",TeamB!D20)","v":"-"},null,null,null,null,null,null,null,null,null,null,null,null,{"$f":"IF(TeamB!E20=\"\",\"\",TeamB!E20)","v":""},null,null,null,null,{"$f":"IF(TeamB!F20=\"\",\"\",TeamB!F20)","v":"-"},null,null,null,null,null,null,null,null,null,null,null,null,null,null,null,null,null,null,null,null,null,null,null,null,null,null,null,null,null,null,""]
[{"$f":"IF(TeamB!C21=\"\",\"\",TeamB!C21)","v":"-"},{"$f":"IF(TeamB!D21=\"\",\"\",TeamB!D21)","v":"-"},null,null,null,null,null,null,null,null,null,null,null,null,{"$f":"IF(TeamB!E21=\"\",\"\",TeamB!E21)","v":""},null,null,null,null,{"$f":"IF(TeamB!F21=\"\",\"\",TeamB!F21)","v":"-"},null,null,null,null,null,null,null,null,null,null,null,null,null,null,null,null,null,null,null,null,null,null,null,null,null,null,null,null,null,null,""]
[{"$f":"IF(TeamB!C22=\"\",\"\",TeamB!C22)","v":"-"},{"$f":"IF(TeamB!D22=\"\",\"\",TeamB!D22)","v":"-"},null,null,null,null,null,null,null,null,null,null,null,null,{"$f":"IF(TeamB!E22=\"\",\"\",TeamB!E22)","v":""},null,null,null,null,{"$f":"IF(TeamB!F22=\"\",\"\",TeamB!F22)","v":"-"},null,null,null,null,null,null,null,null,null,null,null,null,null,null,null,null,null,null,null,null,null,null,null,null,null,null,null,null,null,null,""]
[{"$f":"IF(TeamB!C23=\"\",\"\",TeamB!C23)","v":"-"},{"$f":"IF(TeamB!D23=\"\",\"\",TeamB!D23)","v":"-"},null,null,null,null,null,null,null,null,null,null,null,null,{"$f":"IF(TeamB!E23=\"\",\"\",TeamB!E23)","v":""},null,null,null,null,{"$f":"IF(TeamB!F23=\"\",\"\",TeamB!F23)","v":"-"},null,null,null,null,null,null,null,null,null,null,null,null,null,null,null,null,null,null,null,null,null,null,null,null,null,null,null,null,null,null,""]
[{"$f":"IF(TeamB!C24=\"\",\"\",TeamB!C24)","v":"-"},{"$f":"IF(TeamB!D24=\"\",\"\",TeamB!D24)","v":"-"},null,null,null,null,null,null,null,null,null,null,null,null,{"$f":"IF(TeamB!E24=\"\",\"\",TeamB!E24)","v":""},null,null,null,null,{"$f":"IF(TeamB!F24=\"\",\"\",TeamB!F24)","v":"-"},null,null,null,null,null,null,null,null,null,null,null,null,null,null,null,null,null,null,null,null,null,null,null,null,null,null,null,null,null,null,""]
[{"$f":"IF(TeamB!C25=\"\",\"\",TeamB!C25)","v":"-"},{"$f":"IF(TeamB!D25=\"\",\"\",TeamB!D25)","v":"-"},null,null,null,null,null,null,null,null,null,null,null,null,{"$f":"IF(TeamB!E25=\"\",\"\",TeamB!E25)","v":""},null,null,null,null,{"$f":"IF(TeamB!F25=\"\",\"\",TeamB!F25)","v":"-"},null,null,null,null,null,null,null,null,null,"Team official in bench",null,null,null,null,null,{"$f":"IF(TeamB!D27=\"\",\"\",TeamB!D27)","v":"-"},null,null,null,null,null,null,null,null,null,null,null,null,null,null,""]
["Game Summary",null,null,null,null,null,null,null,null,null,null,null,null,null,null,null,null,null,null,null,null,"Saves",null,null,null,null,null,null,null,null,"Goaltender Records",null,null,null,null,null,null,null,null,null,null,null,null,null,null,null,null,"Goaltenders Changes"]
["Period",null,"G A:B",null,null,"SOG A:B",null,null,"PIM A:B",null,null,"PPGF A:B",null,null,null,null,null,"SHGF A:B",null,null,null,"GKA1",null,"GKA2",null,"GKB1",null,"GKB2",null,null,"GKA",null,"MIP",null,"GA",null,"GKB",null,"MIP",null,"GA",null,null,null,null,null,null,"Time",null,null,"GKA",null,"GKB"]
[1,null,0,":",0,{"$f":"C56+(IF(ISBLANK(Z56),\"0\",SUM(Z56:AC56)))","v":0},":",{"$f":"E56+(IF(ISBLANK(V56),\"0\",SUM(V56:Y56)))","v":0},0,":",0,0,null,":",null,0,null,0,":",null,0,null,null,"-",null,null,null,"-",null,null,{"$f":"IF(AY56=\"\",\"\",AY56)","v":"-"},null,0,null,"0",null,{"$f":"IF(BA56=\"\",\"\",BA56)","v":"-"},null,0,null,"0",null,null,null,null,null,null,0,null,null,"-",null,"-"]
[2,null,0,":",0,{"$f":"C57+(IF(ISBLANK(Z57),\"0\",SUM(Z57:AC57)))","v":0},":",{"$f":"E57+(IF(ISBLANK(V57),\"0\",SUM(V57:Y57)))","v":0},0,":",0,0,null,":",null,0,null,0,":",null,0,"-",null,"-",null,"-",null,"-",null,null,"-",null,"-",null,"-",null,"-",null,"-",null,"-"]
[3,null,0,":",0,{"$f":"C58+(IF(ISBLANK(Z58),\"0\",SUM(Z58:AC58)))","v":0},":",{"$f":"E58+(IF(ISBLANK(V58),\"0\",SUM(V58:Y58)))","v":0},0,":",0,0,null,":",null,0,null,0,":",null,0,"-",null,"-",null,"-",null,"-",null,null,"Start of game:",null,null,null,null,null,"End of game:"]
["OVT",null,"-",":","-","-",":","-","-",":","-","-",null,":",null,"-",null,"-",":",null,"-","-",null,"-",null,"-",null,"-",null,null,"Timeout A:",null,null,"-",null,null,"Timeout B:",null,null,"-"]
["PSS",null,"-",":","-","-",":","-","-",":","-","-",null,":",null,"-",null,"-",":",null,"-","-",null,"-",null,"-",null,"-",null,null,"Game Supervisor :"]
["TOTAL",null,{"$f":"IF(ISBLANK(C56),\"0\",SUM(C56:C60))","v":0},":",{"$f":"IF(ISBLANK(E56),\"0\",SUM(E56:E60))","v":0},{"$f":"SUM(F56:F60)","v":0},":",{"$f":"SUM(H56:H60)","v":0},{"$f":"SUM(I56:I60)","v":0},":",{"$f":"SUM(K56:K60)","v":0},{"$f":"SUM(L56:M60)","v":0},null,":",null,{"$f":"SUM(P56:Q60)","v":0},null,{"$f":"SUM(R56:R60)","v":0},":",null,{"$f":"SUM(U56:U60)","v":0},0,null,"-",null,0,null,"-",null,null,"Referee Supervisor :",null,null,null,null,"-"]
["Head Coaches and Off-Ice Officials"]
["Head Coach A:",null,null,null,null,null,{"$f":"TeamA!D26","v":"-"},null,null,null,null,null,null,null,null,null,null,null,"Goal Judge:",null,null,null,null,null,null,null,null,null,null,null,null,"Linesperson:"]
["Head Coach B:",null,null,null,null,null,{"$f":"TeamB!D26","v":"-"},null,null,null,null,null,null,null,null,null,null,null,"Goal Judge:",null,null,null,null,null,null,null,null,null,null,null,null,"Referee:"]
["Timekeeper:",null,null,null,null,null,null,null,null,null,null,null,null,null,null,null,null,null,"Penalty Bench Attendant:",null,null,null,null,null,null,null,null,null,null,null,null,"Sign. Referee:"]
["Penalty Timekeeper:",null,null,null,null,null,null,null,null,null,null,null,null,null,null,null,null,null,"Penalty Bench Attendant:"]
["Announcer:",null,null,null,null,null,null,null,null,null,null,null,null,null,null,null,null,null,"Scorekeeper:"]
[]
["Notes"]
[]
[]
[]
[]
[null,null,null,null,null,null,null,null,null,null,null,null,null,null,null,null,null,null,null,null,null,"Goals",null,null,null,null,null,null,null,"Penalty Shot Shootout"]
[]
[null,null,null,null,null,null,null,null,null,null,null,null,null,null,null,null,null,null,null,null,null,"#","Time",null,null,"G","A1","A2","GS","*A","B","GKA","GKB","GF:GA"]
[null,null,null,null,null,null,null,null,null,null,null,null,null,null,null,null,null,null,null,null,null,null,null,null,null,null,null,null,null,9,null,null,31,"１:",null,"←","Team Aの一人目 #9 成功 (Team B のゴールテンダー は　#31)"]
[null,null,null,null,null,null,null,null,null,null,null,null,null,null,null,null,null,null,null,null,null,null,null,null,null,null,null,null,null,null,null,null,null,null,null,null,"先攻Team の左側にアスタリスクを付ける"]
[null,null,null,null,null,null,null,null,null,null,null,null,null,null,null,null,null,null,null,null,null,"#","Time",null,null,"G","A1","A2","GS","*A","B","GKA","GKB","GF:GA"]
[null,null,null,null,null,null,null,null,null,null,null,null,null,null,null,null,null,null,null,null,null,null,null,null,null,null,null,null,null,9,30,1,31,"1:1",null,"←","Team Bの一人目成功 (Team Aのゴールテンダーは #1)"]
[]
[null,null,null,null,null,null,null,null,null,null,null,null,null,null,null,null,null,null,null,null,null,"#","Time",null,null,"G","A1","A2","GS","*A","B","GKA","GKB","GF:GA"]
[null,null,null,null,null,null,null,null,null,null,null,null,null,null,null,null,null,null,null,null,null,null,null,null,null,null,null,null,null,9,30,1,31,"1:1"]
[null,null,null,null,null,null,null,null,null,null,null,null,null,null,null,null,null,null,null,null,null,null,null,null,null,null,null,null,null,15,null,null,31,"2:",null,"←","Team A の2人目成功"]
[]
[null,null,null,null,null,null,null,null,null,null,null,null,null,null,null,null,null,null,null,null,null,"#","Time",null,null,"G","A1","A2","GS","*A","B","GKA","GKB","GF:GA"]
[null,null,null,null,"PSSの場合の得点記入方法",null,null,null,null,null,null,null,null,null,null,null,null,null,null,null,"→",1,"GWG",null,null,15,"-","-","PS",9,30,1,31,"1:1"]
[null,null,null,null,null,null,null,null,null,null,null,null,null,null,null,null,null,null,null,null,null,null,null,null,null,null,null,null,null,15,2,1,31,"2:1",null,"←","Team B　の2人目失敗"]
[]
[null,null,null,null,null,null,null,null,null,null,null,null,null,null,null,null,null,null,null,null,null,"注：","PSSにて勝敗を決した場合、ゴールテンダーの失点を追加する必要があります。（自動計算：要注意）"]
[]
["Team (B)＊",null,null,null,null,null,"JOKERS'99",null,null,null,null,null,null,null,null,null,null,null,null,null,null,"←","パックトスによりホームを決めた場合：　",null,null,null,null,null,null,null,null,null,null,null,null,null,null,null,null,null,null,null,null,null,null,null,"必須項目"]
[null,null,null,null,null,null,null,null,null,null,null,null,null,null,null,null,null,null,null,null,null,null,"Team(B)の右側にアスタリスクを入れる　Team(A)の場合も同様。"]
[]
[null,null,null,null,null,null,null,null,null,null,null,null,null,null,null,null,null,null,null,null,null,"試合終了時の処理後にGoaltenders Changesのデータを追加する場合は以下の手順に従ってください"]
[null,null,null,null,null,null,null,null,null,null,null,null,null,null,null,null,null,null,null,null,null,"誤ったデータ",null,null,null,null,null,null,null,null,"45:00 以下の行と列をクリアする",null,null,null,null,null,null,null,null,"再度正しい時間を入力する"]
[null,null,null,null,null,null,null,null,null,null,null,null,null,null,null,null,null,null,null,null,null,"Time",null,null,"GKA",null,"GKB",null,null,null,"Time",null,null,"GKA",null,"GKB",null,null,null,"Time",null,null,"GKA",null,"GKB"]
[null,null,null,null,null,null,null,null,null,null,null,null,null,null,null,null,null,null,null,null,null,0,null,null,1,null,33,null,null,null,0,null,null,1,null,33,null,null,null,0,null,null,1,null,33]
[null,null,null,null,null,null,null,null,null,null,null,null,null,null,null,null,null,null,null,null,null,1500,null,null,55,null,33,null,null,null,1500,null,null,55,null,33,null,null,null,1500,null,null,55,null,33]
[null,null,null,null,null,null,null,null,null,null,null,null,null,null,null,null,null,null,null,null,null,2322,null,null,55,null,69,null,null,null,2322,null,null,55,null,69,null,null,null,2322,null,null,55,null,69]
[null,null,null,null,null,null,null,null,null,null,null,null,null,null,null,null,null,null,null,null,null,4500,null,null,"-",null,"-",null,null,null,null,null,null,null,null,null,null,null,null,4432,null,null,55,null,"-"]
[null,null,null,null,null,null,null,null,null,null,null,null,null,null,null,null,null,null,null,null,null,"-",null,null,"-",null,"-",null,null,null,null,null,null,null,null,null,null,null,null,4500,null,null,"-",null,"-"]
[null,null,null,null,null,null,null,null,null,null,null,null,null,null,null,null,null,null,null,null,null,"-",null,null,"-",null,"-",null,null,null,null,null,null,null,null,null,null,null,null,"-",null,null,"-",null,"-"]
[null,null,null,null,null,null,null,null,null,null,null,null,null,null,null,null,null,null,null,null,null,"-",null,null,"-",null,"-",null,null,null,null,null,null,null,null,null,null,null,null,"-",null,null,"-",null,"-"]
[null,null,null,null,null,null,null,null,null,null,null,null,null,null,null,null,null,null,null,null,null,"-",null,null,"-",null,"-",null,null,null,null,null,null,null,null,null,null,null,null,"-",null,null,"-",null,"-"]
[null,null,null,null,null,null,null,null,null,null,null,null,null,null,null,null,null,null,null,null,null,"-",null,null,"-",null,"-",null,null,null,null,null,null,null,null,null,null,null,null,"-",null,null,"-",null,"-"]
[null,null,null,null,null,null,null,null,null,null,null,null,null,null,null,null,null,null,null,null,null,"-",null,null,"-",null,"-",null,null,null,null,null,null,null,null,null,null,null,null,"-",null,null,"-",null,"-"]
[null,null,null,null,null,null,null,null,null,null,null,null,null,null,null,null,null,null,null,null,null,"-",null,null,"-",null,"-",null,null,null,null,null,null,null,null,null,null,null,null,"-",null,null,"-",null,"-"]
[null,null,null,null,null,null,null,null,null,null,null,null,null,null,null,null,null,null,null,null,null,"-",null,null,"-",null,"-",null,null,null,null,null,null,null,null,null,null,null,null,"-",null,null,"-",null,"-"]

{"sheet":"GameSheet2枚目","index":5,"n_rows":69,"n_cols":53,"rows_kept":69,"cut":false,"hidden":false,"merged":[[49,1,49,13],[49,14,49,18],[51,1,51,13],[43,14,43,18],[44,1,44,13],[44,14,44,18],[46,14,46,18],[48,14,48,18],[50,1,50,13],[47,1,47,13],[47,14,47,18],[48,1,48,13],[40,1,40,13],[40,14,40,18],[45,1,45,13],[45,14,45,18],[46,1,46,13],[41,1,41,13],[41,14,41,18],[42,1,42,13],[35,1,35,13],[35,14,35,18],[42,14,42,18],[43,1,43,13],[37,1,37,13],[37,14,37,18],[38,1,38,13],[38,14,38,18],[39,1,39,13],[39,14,39,18],[31,1,31,13],[31,14,31,18],[33,1,33,13],[33,14,33,18],[36,1,36,13],[36,14,36,18],[32,1,32,13],[32,14,32,18],[34,1,34,13],[34,14,34,18],[27,1,27,13],[27,14,27,18],[27,19,27,20],[30,19,30,20],[30,14,30,18],[30,1,30,13],[28,6,29,20],[28,0,29,5],[23,1,23,13],[23,14,23,18],[24,1,24,13],[24,14,24,18],[25,1,25,13],[25,14,25,18],[18,1,18,13],[18,14,18,18],[19,1,19,13],[19,14,19,18],[26,1,26,13],[26,14,26,18],[21,1,21,13],[21,14,21,18],[22,1,22,13],[22,14,22,18],[15,1,15,13],[15,14,15,18],[16,1,16,13],[16,14,16,18],[17,1,17,13],[17,14,17,18],[13,1,13,13],[13,14,13,18],[10,1,10,13],[10,14,10,18],[11,1,11,13],[11,14,11,18],[8,1,8,13],[8,14,8,18],[7,1,7,13],[7,14,7,18],[12,1,12,13],[12,14,12,18],[68,0,68,4],[68,6,68,53],[66,0,66,5],[14,1,14,13],[14,14,14,18],[66,52,66,53],[64,52,64,53],[65,52,65,53],[20,1,20,13],[20,14,20,18],[64,50,64,51],[65,47,65,49],[65,50,65,51],[66,47,66,49],[66,50,66,51],[62,41,62,46],[60,52,60,53],[61,0,61,20],[6,1,6,13],[6,14,6,18],[65,0,65,5],[9,1,9,13],[9,14,9,18],[63,0,63,5],[63,47,63,49],[63,50,63,51],[63,52,63,53],[64,0,64,5],[64,6,64,17],[64,18,64,23],[64,24,64,30],[64,31,66,34],[64,47,64,49],[62,0,62,5],[62,47,62,49],[62,50,62,51],[62,6,62,17],[62,18,62,23],[62,52,62,53],[62,24,62,30],[62,31,62,34],[62,35,62,40],[61,21,61,22],[61,23,61,24],[61,25,61,26],[61,27,61,28],[61,47,61,49],[61,50,61,51],[60,18,60,19],[60,21,60,22],[60,13,60,14],[60,15,60,16],[59,47,59,49],[59,50,59,51],[59,30,59,34],[59,35,59,41],[61,52,61,53],[60,25,60,26],[60,27,60,28],[60,47,60,49],[60,50,60,51],[59,52,59,53],[59,27,59,28],[59,0,59,1],[59,11,59,12],[59,13,59,14],[59,15,59,16],[60,11,60,12],[60,30,60,34],[60,35,60,41],[58,0,58,1],[60,23,60,24],[59,25,59,26],[59,18,59,19],[59,21,59,22],[59,23,59,24],[58,21,58,22],[60,0,60,1],[58,27,58,28],[58,52,58,53],[58,50,58,51],[58,11,58,12],[58,13,58,14],[58,15,58,16],[57,39,57,41],[57,47,57,49],[58,39,58,41],[58,47,58,49],[57,33,57,35],[57,36,57,38],[58,18,58,19],[57,18,57,19],[57,21,57,22],[58,30,58,32],[58,33,58,35],[58,36,58,38],[57,0,57,1],[57,11,57,12],[57,13,57,14],[57,15,57,16],[58,23,58,24],[58,25,58,26],[55,50,55,51],[55,52,55,53],[56,50,56,51],[56,52,56,53],[57,23,57,24],[57,25,57,26],[57,50,57,51],[57,52,57,53],[56,25,56,26],[56,27,56,28],[56,30,56,31],[56,32,56,33],[56,34,56,35],[57,27,57,28],[57,30,57,32],[56,0,56,1],[56,11,56,12],[56,13,56,14],[56,15,56,16],[55,40,55,41],[55,47,55,49],[56,36,56,37],[56,38,56,39],[56,40,56,41],[56,47,56,49],[55,25,55,26],[55,32,55,33],[55,34,55,35],[55,36,55,37],[55,38,55,39],[56,18,56,19],[56,21,56,22],[55,27,55,28],[55,30,55,31],[56,23,56,24],[54,38,54,39],[54,50,54,51],[54,52,54,53],[55,0,55,1],[55,11,55,12],[55,13,55,14],[55,15,55,16],[55,18,55,19],[55,21,55,22],[55,23,55,24],[54,21,54,22],[54,23,54,24],[54,40,54,41],[54,47,54,49],[54,25,54,26],[54,27,54,28],[54,30,54,31],[54,32,54,33],[54,34,54,35],[54,36,54,37],[50,19,50,20],[50,22,50,24],[50,33,50,34],[51,19,51,20],[51,22,51,24],[51,33,51,34],[50,14,50,18],[53,21,53,24],[54,5,54,7],[54,8,54,10],[53,12,53,15],[53,16,53,17],[53,0,53,11],[54,0,54,1],[54,2,54,4],[54,11,54,16],[54,17,54,20],[52,1,52,13],[52,14,52,18],[52,46,52,49],[53,19,53,20],[52,41,52,43],[52,19,52,20],[52,22,52,24],[52,35,52,40],[51,14,51,18],[52,52,52,53],[51,46,51,49],[51,50,51,51],[51,52,51,53],[52,50,52,51],[52,29,52,34],[51,41,51,43],[50,52,50,53],[48,52,48,53],[49,46,49,49],[49,50,49,51],[49,52,49,53],[50,46,50,49],[50,50,50,51],[48,41,48,43],[48,46,48,49],[48,50,48,51],[50,41,50,43],[49,19,49,20],[49,22,49,24],[49,33,49,34],[48,19,48,20],[48,22,48,24],[48,33,48,34],[49,41,49,43],[46,52,46,53],[47,46,47,49],[47,50,47,51],[47,52,47,53],[46,41,46,43],[46,46,46,49],[46,50,46,51],[47,41,47,43],[47,19,47,20],[47,22,47,24],[47,33,47,34],[46,19,46,20],[46,22,46,24],[46,33,46,34],[44,52,44,53],[45,46,45,49],[45,50,45,51],[45,52,45,53],[44,41,44,43],[44,46,44,49],[44,50,44,51],[45,41,45,43],[45,19,45,20],[45,22,45,24],[45,33,45,34],[44,19,44,20],[44,22,44,24],[44,33,44,34],[42,52,42,53],[43,46,43,49],[43,50,43,51],[43,52,43,53],[42,41,42,43],[42,46,42,49],[42,50,42,51],[43,41,43,43],[43,19,43,20],[43,22,43,24],[43,33,43,34],[42,19,42,20],[42,22,42,24],[42,33,42,34],[41,46,41,49],[41,50,41,51],[41,52,41,53],[40,41,40,43],[40,46,40,49],[40,50,40,51],[41,41,41,43],[41,19,41,20],[41,22,41,24],[41,33,41,34],[40,19,40,20],[40,22,40,24],[40,33,40,34],[39,19,39,20],[39,22,39,24],[39,33,39,34],[38,19,38,20],[38,22,38,24],[38,33,38,34],[39,41,39,43],[38,41,38,43],[40,52,40,53],[36,52,36,53],[37,46,37,49],[37,50,37,51],[37,52,37,53],[36,50,36,51],[36,41,36,43],[38,52,38,53],[39,46,39,49],[39,50,39,51],[39,52,39,53],[38,46,38,49],[38,50,38,51],[36,46,36,49],[33,19,33,20],[33,22,33,24],[33,33,33,34],[33,41,33,43],[30,22,30,24],[34,52,34,53],[34,46,34,49],[34,50,34,51],[37,19,37,20],[37,22,37,24],[37,33,37,34],[36,19,36,20],[36,22,36,24],[36,33,36,34],[35,46,35,49],[35,19,35,20],[35,22,35,24],[35,33,35,34],[34,41,34,43],[34,19,34,20],[34,22,34,24],[34,33,34,34],[35,50,35,51],[35,52,35,53],[31,19,31,20],[31,22,31,24],[31,33,31,34],[31,41,31,43],[30,33,30,34],[30,41,30,43],[30,46,30,49],[32,19,32,20],[32,22,32,24],[32,33,32,34],[32,41,32,43],[28,21,29,28],[28,29,29,34],[27,50,27,51],[27,52,27,53],[27,22,27,24],[27,41,27,43],[27,46,27,49],[27,35,27,40],[27,29,27,34],[28,35,51,40],[32,50,32,51],[32,52,32,53],[28,41,29,53],[33,46,33,49],[33,50,33,51],[33,52,33,53],[32,46,32,49],[30,50,30,51],[30,52,30,53],[31,52,31,53],[31,46,31,49],[31,50,31,51],[35,41,35,43],[37,41,37,43],[26,46,26,49],[26,50,26,51],[26,52,26,53],[26,19,26,20],[26,22,26,24],[25,19,25,20],[25,22,25,24],[25,33,25,34],[26,33,26,34],[26,41,26,43],[24,52,24,53],[25,41,25,43],[25,46,25,49],[25,50,25,51],[25,52,25,53],[24,41,24,43],[24,19,24,20],[24,22,24,24],[24,33,24,34],[22,52,22,53],[23,41,23,43],[23,46,23,49],[23,50,23,51],[23,52,23,53],[22,19,22,20],[21,19,21,20],[21,22,21,24],[21,33,21,34],[23,33,23,34],[22,41,22,43],[22,46,22,49],[22,22,22,24],[22,33,22,34],[23,19,23,20],[23,22,23,24],[22,50,22,51],[20,52,20,53],[21,41,21,43],[21,46,21,49],[21,50,21,51],[21,52,21,53],[20,41,20,43],[19,19,19,20],[19,22,19,24],[19,33,19,34],[19,52,19,53],[20,19,20,20],[20,22,20,24],[20,33,20,34],[16,41,16,43],[18,41,18,43],[20,46,20,49],[20,50,20,51],[19,41,19,43],[19,46,19,49],[19,50,19,51],[3,35,26,40],[17,41,17,43],[17,46,17,49],[17,50,17,51],[9,41,9,43],[7,41,7,43],[8,41,8,43],[10,41,10,43],[8,46,8,49],[6,50,6,51],[10,46,10,49],[11,41,11,43],[13,41,13,43],[12,41,12,43],[10,50,10,51],[24,46,24,49],[24,50,24,51],[16,19,16,20],[16,22,16,24],[16,33,16,34],[18,19,18,20],[18,22,18,24],[18,33,18,34],[17,19,17,20],[17,22,17,24],[17,33,17,34],[13,50,13,51],[16,50,16,51],[16,52,16,53],[15,50,15,51],[15,46,15,49],[15,52,15,53],[16,46,16,49],[17,52,17,53],[18,46,18,49],[18,50,18,51],[18,52,18,53],[15,22,15,24],[15,33,15,34],[11,52,11,53],[12,46,12,49],[12,50,12,51],[12,52,12,53],[11,50,11,51],[11,46,11,49],[11,19,11,20],[11,22,11,24],[11,33,11,34],[13,19,13,20],[13,22,13,24],[13,33,13,34],[12,19,12,20],[12,22,12,24],[12,33,12,34],[15,41,15,43],[14,41,14,43],[13,46,13,49],[13,52,13,53],[14,46,14,49],[14,50,14,51],[14,52,14,53],[7,50,7,51],[9,19,9,20],[9,22,9,24],[5,33,5,34],[10,19,10,20],[10,22,10,24],[8,19,8,20],[7,19,7,20],[8,22,8,24],[8,33,8,34],[7,33,7,34],[10,33,10,34],[6,33,6,34],[9,33,9,34],[6,19,6,20],[6,22,6,24],[10,52,10,53],[9,46,9,49],[8,50,8,51],[8,52,8,53],[9,50,9,51],[9,52,9,53],[7,46,7,49],[1,32,1,37],[7,52,7,53],[6,46,6,49],[1,43,1,45],[1,38,1,39],[1,46,1,48],[3,41,4,53],[6,41,6,43],[1,40,1,42],[1,49,1,51],[1,52,1,53],[6,52,6,53],[5,46,5,49],[5,50,5,51],[3,29,4,34],[5,52,5,53],[5,41,5,43],[0,0,0,21],[0,24,0,40],[1,0,1,1],[1,2,1,18],[1,19,1,21],[1,22,1,29],[1,30,1,31],[63,6,63,17],[63,18,63,23],[63,24,63,30],[63,31,63,34],[63,35,63,40],[5,19,5,20],[5,22,5,24],[7,22,7,24],[3,6,4,20],[3,21,4,28],[5,14,5,18],[5,1,5,13],[3,0,4,5],[14,19,14,20],[14,22,14,24],[14,33,14,34],[15,19,15,20],[63,41,63,46],[64,35,66,40],[64,41,66,46],[65,6,65,17],[65,18,65,23],[65,24,65,30],[66,6,66,17],[66,18,66,23],[66,24,66,30]]}
["OFFICIAL GAME SHEET",null,null,null,null,null,null,null,null,null,null,null,null,null,null,null,null,null,null,null,null,null,null,null,"KANAGAWA ICE HOCKEY FEDERATION",null,null,null,null,null,null,null,null,null,null,null,null,null,null,null,null,null,null,null,null,null,null,null,null,null,null,"K.I.H.F"]
["Event:",null,{"$f":"IF(GameSheet!C2=\"\",\"\",GameSheet!C2)","v":"第72回神奈川県アイスホッケー選手権"},null,null,null,null,null,null,null,null,null,null,null,null,null,null,null,null,"Venue:",null,null,{"$f":"IF(GameSheet!W2=\"\",\"\",GameSheet!W2)","v":"横浜銀行アイスアリーナ"},null,null,null,null,null,null,null,"Date:",null,{"$f":"IF(GameSheet!AG2=\"\",\"\",GameSheet!AG2)","v":"2024-09-25"},null,null,null,null,null,"Start:",null,{"$f":"IF(GameSheet!AO2=\"\",\"\",GameSheet!AO2)","v":""},null,null,"Spectators:",null,null,{"$f":"IF(GameSheet!AU2=\"\",\"\",GameSheet!AU2)","v":"-"},null,null,"Game No.:",null,null,{"$f":"IF(GameSheet!BA2=\"\",\"\",GameSheet!BA2)","v":""}]
[]
["Home Team (A)",null,null,null,null,null,{"$f":"IF(GameSheet!G4=\"\",\"\",GameSheet!G4)","v":""},null,null,null,null,null,null,null,null,null,null,null,null,null,null,"Goals",null,null,null,null,null,null,null,"Penalty Shot Shootout",null,null,null,null,null,null,null,null,null,null,null,"Penalties"]
[]
["No.","Family and Given Name",null,null,null,null,null,null,null,null,null,null,null,null,"(+BP+C/A)",null,null,null,null,"Pos",null,"#","Time",null,null,"G","A1","A2","GS","A","B","GKA","GKB","GF:GA",null,null,null,null,null,null,null,"Time",null,null,"No.","Min","Offence",null,null,null,"Start",null,"End"]
[{"$f":"IF(TeamA!C4=\"\",\"\",TeamA!C4)","v":"-"},{"$f":"IF(TeamA!D4=\"\",\"\",TeamA!D4)","v":"-"},null,null,null,null,null,null,null,null,null,null,null,null,{"$f":"IF(TeamA!E4=\"\",\"\",TeamA!E4)","v":""},null,null,null,null,{"$f":"IF(TeamA!F4=\"\",\"\",TeamA!F4)","v":"G"},null,null,null,null,null,null,null,null,null,null,null,null,null,null,null,null,null,null,null,null,null,null,null,null,null,null,null,null,null,null,{"$f":"IF(AP7=\"\",\"\",AP7)","v":""}]
[{"$f":"IF(TeamA!C5=\"\",\"\",TeamA!C5)","v":"-"},{"$f":"IF(TeamA!D5=\"\",\"\",TeamA!D5)","v":"-"},null,null,null,null,null,null,null,null,null,null,null,null,{"$f":"IF(TeamA!E5=\"\",\"\",TeamA!E5)","v":""},null,null,null,null,{"$f":"IF(TeamA!F5=\"\",\"\",TeamA!F5)","v":"-"},null,null,null,null,null,null,null,null,null,null,null,null,null,null,null,null,null,null,null,null,null,null,null,null,null,null,null,null,null,null,{"$f":"IF(AP8=\"\",\"\",AP8)","v":""}]
[{"$f":"IF(TeamA!C6=\"\",\"\",TeamA!C6)","v":"-"},{"$f":"IF(TeamA!D6=\"\",\"\",TeamA!D6)","v":"-"},null,null,null,null,null,null,null,null,null,null,null,null,{"$f":"IF(TeamA!E6=\"\",\"\",TeamA!E6)","v":""},null,null,null,null,{"$f":"IF(TeamA!F6=\"\",\"\",TeamA!F6)","v":"-"},null,null,null,null,null,null,null,null,null,null,null,null,null,null,null,null,null,null,null,null,null,null,null,null,null,null,null,null,null,null,{"$f":"IF(AP9=\"\",\"\",AP9)","v":""}]
[{"$f":"IF(TeamA!C7=\"\",\"\",TeamA!C7)","v":"-"},{"$f":"IF(TeamA!D7=\"\",\"\",TeamA!D7)","v":"-"},null,null,null,null,null,null,null,null,null,null,null,null,{"$f":"IF(TeamA!E7=\"\",\"\",TeamA!E7)","v":""},null,null,null,null,{"$f":"IF(TeamA!F7=\"\",\"\",TeamA!F7)","v":"-"},null,null,null,null,null,null,null,null,null,null,null,null,null,null,null,null,null,null,null,null,null,null,null,null,null,null,null,null,null,null,""]
[{"$f":"IF(TeamA!C8=\"\",\"\",TeamA!C8)","v":"-"},{"$f":"IF(TeamA!D8=\"\",\"\",TeamA!D8)","v":"-"},null,null,null,null,null,null,null,null,null,null,null,null,{"$f":"IF(TeamA!E8=\"\",\"\",TeamA!E8)","v":""},null,null,null,null,{"$f":"IF(TeamA!F8=\"\",\"\",TeamA!F8)","v":"-"},null,null,null,null,null,null,null,null,null,null,null,null,null,null,null,null,null,null,null,null,null,null,null,null,null,null,null,null,null,null,""]
[{"$f":"IF(TeamA!C9=\"\",\"\",TeamA!C9)","v":"-"},{"$f":"IF(TeamA!D9=\"\",\"\",TeamA!D9)","v":"-"},null,null,null,null,null,null,null,null,null,null,null,null,{"$f":"IF(TeamA!E9=\"\",\"\",TeamA!E9)","v":""},null,null,null,null,{"$f":"IF(TeamA!F9=\"\",\"\",TeamA!F9)","v":"-"},null,null,null,null,null,null,null,null,null,null,null,null,null,null,null,null,null,null,null,null,null,null,null,null,null,null,null,null,null,null,""]
[{"$f":"IF(TeamA!C10=\"\",\"\",TeamA!C10)","v":"-"},{"$f":"IF(TeamA!D10=\"\",\"\",TeamA!D10)","v":"-"},null,null,null,null,null,null,null,null,null,null,null,null,{"$f":"IF(TeamA!E10=\"\",\"\",TeamA!E10)","v":""},null,null,null,null,{"$f":"IF(TeamA!F10=\"\",\"\",TeamA!F10)","v":"-"},null,null,null,null,null,null,null,null,null,null,null,null,null,null,null,null,null,null,null,null,null,null,null,null,null,null,null,null,null,null,""]
[{"$f":"IF(TeamA!C11=\"\",\"\",TeamA!C11)","v":"-"},{"$f":"IF(TeamA!D11=\"\",\"\",TeamA!D11)","v":"-"},null,null,null,null,null,null,null,null,null,null,null,null,{"$f":"IF(TeamA!E11=\"\",\"\",TeamA!E11)","v":""},null,null,null,null,{"$f":"IF(TeamA!F11=\"\",\"\",TeamA!F11)","v":"-"},null,null,null,null,null,null,null,null,null,null,null,null,null,null,null,null,null,null,null,null,null,null,null,null,null,null,null,null,null,null,""]
[{"$f":"IF(TeamA!C12=\"\",\"\",TeamA!C12)","v":"-"},{"$f":"IF(TeamA!D12=\"\",\"\",TeamA!D12)","v":"-"},null,null,null,null,null,null,null,null,null,null,null,null,{"$f":"IF(TeamA!E12=\"\",\"\",TeamA!E12)","v":""},null,null,null,null,{"$f":"IF(TeamA!F12=\"\",\"\",TeamA!F12)","v":"-"},null,null,null,null,null,null,null,null,null,null,null,null,null,null,null,null,null,null,null,null,null,null,null,null,null,null,null,null,null,null,""]
[{"$f":"IF(TeamA!C13=\"\",\"\",TeamA!C13)","v":"-"},{"$f":"IF(TeamA!D13=\"\",\"\",TeamA!D13)","v":"-"},null,null,null,null,null,null,null,null,null,null,null,null,{"$f":"IF(TeamA!E13=\"\",\"\",TeamA!E13)","v":""},null,null,null,null,{"$f":"IF(TeamA!F13=\"\",\"\",TeamA!F13)","v":"-"},null,null,null,null,null,null,null,null,null,null,null,null,null,null,null,null,null,null,null,null,null,null,null,null,null,null,null,null,null,null,""]
[{"$f":"IF(TeamA!C14=\"\",\"\",TeamA!C14)","v":"-"},{"$f":"IF(TeamA!D14=\"\",\"\",TeamA!D14)","v":"-"},null,null,null,null,null,null,null,null,null,null,null,null,{"$f":"IF(TeamA!E14=\"\",\"\",TeamA!E14)","v":""},null,null,null,null,{"$f":"IF(TeamA!F14=\"\",\"\",TeamA!F14)","v":"-"},null,null,null,null,null,null,null,null,null,null,null,null,null,null,null,null,null,null,null,null,null,null,null,null,null,null,null,null,null,null,""]
[{"$f":"IF(TeamA!C15=\"\",\"\",TeamA!C15)","v":"-"},{"$f":"IF(TeamA!D15=\"\",\"\",TeamA!D15)","v":"-"},null,null,null,null,null,null,null,null,null,null,null,null,{"$f":"IF(TeamA!E15=\"\",\"\",TeamA!E15)","v":""},null,null,null,null,{"$f":"IF(TeamA!F15=\"\",\"\",TeamA!F15)","v":"-"},null,null,null,null,null,null,null,null,null,null,null,null,null,null,null,null,null,null,null,null,null,null,null,null,null,null,null,null,null,null,""]
[{"$f":"IF(TeamA!C16=\"\",\"\",TeamA!C16)","v":"-"},{"$f":"IF(TeamA!D16=\"\",\"\",TeamA!D16)","v":"-"},null,null,null,null,null,null,null,null,null,null,null,null,{"$f":"IF(TeamA!E16=\"\",\"\",TeamA!E16)","v":""},null,null,null,null,{"$f":"IF(TeamA!F16=\"\",\"\",TeamA!F16)","v":"-"},null,null,null,null,null,null,null,null,null,null,null,null,null,null,null,null,null,null,null,null,null,null,null,null,null,null,null,null,null,null,""]
[{"$f":"IF(TeamA!C17=\"\",\"\",TeamA!C17)","v":"-"},{"$f":"IF(TeamA!D17=\"\",\"\",TeamA!D17)","v":"-"},null,null,null,null,null,null,null,null,null,null,null,null,{"$f":"IF(TeamA!E17=\"\",\"\",TeamA!E17)","v":""},null,null,null,null,{"$f":"IF(TeamA!F17=\"\",\"\",TeamA!F17)","v":"-"},null,null,null,null,null,null,null,null,null,null,null,null,null,null,null,null,null,null,null,null,null,null,null,null,null,null,null,null,null,null,""]
[{"$f":"IF(TeamA!C18=\"\",\"\",TeamA!C18)","v":"-"},{"$f":"IF(TeamA!D18=\"\",\"\",TeamA!D18)","v":"-"},null,null,null,null,null,null,null,null,null,null,null,null,{"$f":"IF(TeamA!E18=\"\",\"\",TeamA!E18)","v":""},null,null,null,null,{"$f":"IF(TeamA!F18=\"\",\"\",TeamA!F18)","v":"-"},null,null,null,null,null,null,null,null,null,null,null,null,null,null,null,null,null,null,null,null,null,null,null,null,null,null,null,null,null,null,""]
[{"$f":"IF(TeamA!C19=\"\",\"\",TeamA!C19)","v":"-"},{"$f":"IF(TeamA!D19=\"\",\"\",TeamA!D19)","v":"-"},null,null,null,null,null,null,null,null,null,null,null,null,{"$f":"IF(TeamA!E19=\"\",\"\",TeamA!E19)","v":""},null,null,null,null,{"$f":"IF(TeamA!F19=\"\",\"\",TeamA!F19)","v":"-"},null,null,null,null,null,null,null,null,null,null,null,null,null,null,null,null,null,null,null,null,null,null,null,null,null,null,null,null,null,null,""]
[{"$f":"IF(TeamA!C20=\"\",\"\",TeamA!C20)","v":"-"},{"$f":"IF(TeamA!D20=\"\",\"\",TeamA!D20)","v":"-"},null,null,null,null,null,null,null,null,null,null,null,null,{"$f":"IF(TeamA!E20=\"\",\"\",TeamA!E20)","v":""},null,null,null,null,{"$f":"IF(TeamA!F20=\"\",\"\",TeamA!F20)","v":"-"},null,null,null,null,null,null,null,null,null,null,null,null,null,null,null,null,null,null,null,null,null,null,null,null,null,null,null,null,null,null,""]
[{"$f":"IF(TeamA!C21=\"\",\"\",TeamA!C21)","v":"-"},{"$f":"IF(TeamA!D21=\"\",\"\",TeamA!D21)","v":"-"},null,null,null,null,null,null,null,null,null,null,null,null,{"$f":"IF(TeamA!E21=\"\",\"\",TeamA!E21)","v":""},null,null,null,null,{"$f":"IF(TeamA!F21=\"\",\"\",TeamA!F21)","v":"-"},null,null,null,null,null,null,null,null,null,null,null,null,null,null,null,null,null,null,null,null,null,null,null,null,null,null,null,null,null,null,""]
[{"$f":"IF(TeamA!C22=\"\",\"\",TeamA!C22)","v":"-"},{"$f":"IF(TeamA!D22=\"\",\"\",TeamA!D22)","v":"-"},null,null,null,null,null,null,null,null,null,null,null,null,{"$f":"IF(TeamA!E22=\"\",\"\",TeamA!E22)","v":""},null,null,null,null,{"$f":"IF(TeamA!F22=\"\",\"\",TeamA!F22)","v":"-"},null,null,null,null,null,null,null,null,null,null,null,null,null,null,null,null,null,null,null,null,null,null,null,null,null,null,null,null,null,null,""]
[{"$f":"IF(TeamA!C23=\"\",\"\",TeamA!C23)","v":"-"},{"$f":"IF(TeamA!D23=\"\",\"\",TeamA!D23)","v":"-"},null,null,null,null,null,null,null,null,null,null,null,null,{"$f":"IF(TeamA!E23=\"\",\"\",TeamA!E23)","v":""},null,null,null,null,{"$f":"IF(TeamA!F23=\"\",\"\",TeamA!F23)","v":"-"},null,null,null,null,null,null,null,null,null,null,null,null,null,null,null,null,null,null,null,null,null,null,null,null,null,null,null,null,null,null,""]
[{"$f":"IF(TeamA!C24=\"\",\"\",TeamA!C24)","v":"-"},{"$f":"IF(TeamA!D24=\"\",\"\",TeamA!D24)","v":"-"},null,null,null,null,null,null,null,null,null,null,null,null,{"$f":"IF(TeamA!E24=\"\",\"\",TeamA!E24)","v":""},null,null,null,null,{"$f":"IF(TeamA!F24=\"\",\"\",TeamA!F24)","v":"-"},null,null,null,null,null,null,null,null,null,null,null,null,null,null,null,null,null,null,null,null,null,null,null,null,null,null,null,null,null,null,""]
[{"$f":"IF(TeamA!C25=\"\",\"\",TeamA!C25)","v":"-"},{"$f":"IF(TeamA!D25=\"\",\"\",TeamA!D25)","v":"-"},null,null,null,null,null,null,null,null,null,null,null,null,{"$f":"IF(TeamA!E25=\"\",\"\",TeamA!E25)","v":""},null,null,null,null,{"$f":"IF(TeamA!F25=\"\",\"\",TeamA!F25)","v":"-"},null,null,null,null,null,null,null,null,null,"Team official in bench",null,null,null,null,null,{"$f":"IF(TeamA!D26=\"\",\"\",TeamA!D26)","v":"-"},null,null,null,null,null,null,null,null,null,null,null,null,null,null,""]
["Visiting Team (B)",null,null,null,null,null,{"$f":"IF(GameSheet!G29=\"\",\"\",GameSheet!G29)","v":"BERKS"},null,null,null,null,null,null,null,null,null,null,null,null,null,null,"Goals",null,null,null,null,null,null,null,"Penalty Shot Shootout",null,null,null,null,null,null,null,null,null,null,null,"Penalties"]
[]
["No.","Family and Given Name",null,null,null,null,null,null,null,null,null,null,null,null,"(+BP+C/A)",null,null,null,null,"Pos",null,"#","Time",null,null,"G","A1","A2","GS","A","B","GKA","GKB","GF:GA",null,null,null,null,null,null,null,"Time",null,null,"No.","Min","Offence",null,null,null,"Start",null,"End"]
[{"$f":"IF(TeamB!C4=\"\",\"\",TeamB!C4)","v":"-"},{"$f":"IF(TeamB!D4=\"\",\"\",TeamB!D4)","v":"-"},null,null,null,null,null,null,null,null,null,null,null,null,{"$f":"IF(TeamB!E4=\"\",\"\",TeamB!E4)","v":""},null,null,null,null,{"$f":"IF(TeamB!F4=\"\",\"\",TeamB!F4)","v":"G"},null,null,null,null,null,null,null,null,null,null,null,null,null,null,null,null,null,null,null,null,null,null,null,null,null,null,null,null,null,null,{"$f":"IF(AP32=\"\",\"\",AP32)","v":""}]
[{"$f":"IF(TeamB!C5=\"\",\"\",TeamB!C5)","v":"-"},{"$f":"IF(TeamB!D5=\"\",\"\",TeamB!D5)","v":"-"},null,null,null,null,null,null,null,null,null,null,null,null,{"$f":"IF(TeamB!E5=\"\",\"\",TeamB!E5)","v":""},null,null,null,null,{"$f":"IF(TeamB!F5=\"\",\"\",TeamB!F5)","v":"-"},null,null,null,null,null,null,null,null,null,null,null,null,null,null,null,null,null,null,null,null,null,null,null,null,null,null,null,null,null,null,{"$f":"IF(AP33=\"\",\"\",AP33)","v":""}]
[{"$f":"IF(TeamB!C6=\"\",\"\",TeamB!C6)","v":"-"},{"$f":"IF(TeamB!D6=\"\",\"\",TeamB!D6)","v":"-"},null,null,null,null,null,null,null,null,null,null,null,null,{"$f":"IF(TeamB!E6=\"\",\"\",TeamB!E6)","v":""},null,null,null,null,{"$f":"IF(TeamB!F6=\"\",\"\",TeamB!F6)","v":"-"},null,null,null,null,null,null,null,null,null,null,null,null,null,null,null,null,null,null,null,null,null,null,null,null,null,null,null,null,null,null,""]
[{"$f":"IF(TeamB!C7=\"\",\"\",TeamB!C7)","v":"-"},{"$f":"IF(TeamB!D7=\"\",\"\",TeamB!D7)","v":"-"},null,null,null,null,null,null,null,null,null,null,null,null,{"$f":"IF(TeamB!E7=\"\",\"\",TeamB!E7)","v":""},null,null,null,null,{"$f":"IF(TeamB!F7=\"\",\"\",TeamB!F7)","v":"-"},null,null,null,null,null,null,null,null,null,null,null,null,null,null,null,null,null,null,null,null,null,null,null,null,null,null,null,null,null,null,""]
[{"$f":"IF(TeamB!C8=\"\",\"\",TeamB!C8)","v":"-"},{"$f":"IF(TeamB!D8=\"\",\"\",TeamB!D8)","v":"-"},null,null,null,null,null,null,null,null,null,null,null,null,{"$f":"IF(TeamB!E8=\"\",\"\",TeamB!E8)","v":""},null,null,null,null,{"$f":"IF(TeamB!F8=\"\",\"\",TeamB!F8)","v":"-"},null,null,null,null,null,null,null,null,null,null,null,null,null,null,null,null,null,null,null,null,null,null,null,null,null,null,null,null,null,null,""]
[{"$f":"IF(TeamB!C9=\"\",\"\",TeamB!C9)","v":"-"},{"$f":"IF(TeamB!D9=\"\",\"\",TeamB!D9)","v":"-"},null,null,null,null,null,null,null,null,null,null,null,null,{"$f":"IF(TeamB!E9=\"\",\"\",TeamB!E9)","v":""},null,null,null,null,{"$f":"IF(TeamB!F9=\"\",\"\",TeamB!F9)","v":"-"},null,null,null,null,null,null,null,null,null,null,null,null,null,null,null,null,null,null,null,null,null,null,null,null,null,null,null,null,null,null,""]
[{"$f":"IF(TeamB!C10=\"\",\"\",TeamB!C10)","v":"-"},{"$f":"IF(TeamB!D10=\"\",\"\",TeamB!D10)","v":"-"},null,null,null,null,null,null,null,null,null,null,null,null,{"$f":"IF(TeamB!E10=\"\",\"\",TeamB!E10)","v":""},null,null,null,null,{"$f":"IF(TeamB!F10=\"\",\"\",TeamB!F10)","v":"-"},null,null,null,null,null,null,null,null,null,null,null,null,null,null,null,null,null,null,null,null,null,null,null,null,null,null,null,null,null,null,""]
[{"$f":"IF(TeamB!C11=\"\",\"\",TeamB!C11)","v":"-"},{"$f":"IF(TeamB!D11=\"\",\"\",TeamB!D11)","v":"-"},null,null,null,null,null,null,null,null,null,null,null,null,{"$f":"IF(TeamB!E11=\"\",\"\",TeamB!E11)","v":""},null,null,null,null,{"$f":"IF(TeamB!F11=\"\",\"\",TeamB!F11)","v":"-"},null,null,null,null,null,null,null,null,null,null,null,null,null,null,null,null,null,null,null,null,null,null,null,null,null,null,null,null,null,null,""]
[{"$f":"IF(TeamB!C12=\"\",\"\",TeamB!C12)","v":"-"},{"$f":"IF(TeamB!D12=\"\",\"\",TeamB!D12)","v":"-"},null,null,null,null,null,null,null,null,null,null,null,null,{"$f":"IF(TeamB!E12=\"\",\"\",TeamB!E12)","v":""},null,null,null,null,{"$f":"IF(TeamB!F12=\"\",\"\",TeamB!F12)","v":"-"},null,null,null,null,null,null,null,null,null,null,null,null,null,null,null,null,null,null,null,null,null,null,null,null,null,null,null,null,null,null,""]
[{"$f":"IF(TeamB!C13=\"\",\"\",TeamB!C13)","v":"-"},{"$f":"IF(TeamB!D13=\"\",\"\",TeamB!D13)","v":"-"},null,null,null,null,null,null,null,null,null,null,null,null,{"$f":"IF(TeamB!E13=\"\",\"\",TeamB!E13)","v":""},null,null,null,null,{"$f":"IF(TeamB!F13=\"\",\"\",TeamB!F13)","v":"-"},null,null,null,null,null,null,null,null,null,null,null,null,null,null,null,null,null,null,null,null,null,null,null,null,null,null,null,null,null,null,""]
[{"$f":"IF(TeamB!C14=\"\",\"\",TeamB!C14)","v":"-"},{"$f":"IF(TeamB!D14=\"\",\"\",TeamB!D14)","v":"-"},null,null,null,null,null,null,null,null,null,null,null,null,{"$f":"IF(TeamB!E14=\"\",\"\",TeamB!E14)","v":""},null,null,null,null,{"$f":"IF(TeamB!F14=\"\",\"\",TeamB!F14)","v":"-"},null,null,null,null,null,null,null,null,null,null,null,null,null,null,null,null,null,null,null,null,null,null,null,null,null,null,null,null,null,null,""]
[{"$f":"IF(TeamB!C15=\"\",\"\",TeamB!C15)","v":"-"},{"$f":"IF(TeamB!D15=\"\",\"\",TeamB!D15)","v":"-"},null,null,null,null,null,null,null,null,null,null,null,null,{"$f":"IF(TeamB!E15=\"\",\"\",TeamB!E15)","v":""},null,null,null,null,{"$f":"IF(TeamB!F15=\"\",\"\",TeamB!F15)","v":"-"},null,null,null,null,null,null,null,null,null,null,null,null,null,null,null,null,null,null,null,null,null,null,null,null,null,null,null,null,null,null,""]
[{"$f":"IF(TeamB!C16=\"\",\"\",TeamB!C16)","v":"-"},{"$f":"IF(TeamB!D16=\"\",\"\",TeamB!D16)","v":"-"},null,null,null,null,null,null,null,null,null,null,null,null,{"$f":"IF(TeamB!E16=\"\",\"\",TeamB!E16)","v":""},null,null,null,null,{"$f":"IF(TeamB!F16=\"\",\"\",TeamB!F16)","v":"-"},null,null,null,null,null,null,null,null,null,null,null,null,null,null,null,null,null,null,null,null,null,null,null,null,null,null,null,null,null,null,""]
[{"$f":"IF(TeamB!C17=\"\",\"\",TeamB!C17)","v":"-"},{"$f":"IF(TeamB!D17=\"\",\"\",TeamB!D17)","v":"-"},null,null,null,null,null,null,null,null,null,null,null,null,{"$f":"IF(TeamB!E17=\"\",\"\",TeamB!E17)","v":""},null,null,null,null,{"$f":"IF(TeamB!F17=\"\",\"\",TeamB!F17)","v":"-"},null,null,null,null,null,null,null,null,null,null,null,null,null,null,null,null,null,null,null,null,null,null,null,null,null,null,null,null,null,null,""]
[{"$f":"IF(TeamB!C18=\"\",\"\",TeamB!C18)","v":"-"},{"$f":"IF(TeamB!D18=\"\",\"\",TeamB!D18)","v":"-"},null,null,null,null,null,null,null,null,null,null,null,null,{"$f":"IF(TeamB!E18=\"\",\"\",TeamB!E18)","v":""},null,null,null,null,{"$f":"IF(TeamB!F18=\"\",\"\",TeamB!F18)","v":"-"},null,null,null,null,null,null,null,null,null,null,null,null,null,null,null,null,null,null,null,null,null,null,null,null,null,null,null,null,null,null,""]
[{"$f":"IF(TeamB!C19=\"\",\"\",TeamB!C19)","v":"-"},{"$f":"IF(TeamB!D19=\"\",\"\",TeamB!D19)","v":"-"},null,null,null,null,null,null,null,null,null,null,null,null,{"$f":"IF(TeamB!E19=\"\",\"\",TeamB!E19)","v":""},null,null,null,null,{"$f":"IF(TeamB!F19=\"\",\"\",TeamB!F19)","v":"-"},null,null,null,null,null,null,null,null,null,null,null,null,null,null,null,null,null,null,null,null,null,null,null,null,null,null,null,null,null,null,""]
[{"$f":"IF(TeamB!C20=\"\",\"\",TeamB!C20)","v":"-"},{"$f":"IF(TeamB!D20=\"\",\"\",TeamB!D20)","v":"-"},null,null,null,null,null,null,null,null,null,null,null,null,{"$f":"IF(TeamB!E20=\"\",\"\",TeamB!E20)","v":""},null,null,null,null,{"$f":"IF(TeamB!F20=\"\",\"\",TeamB!F20)","v":"-"},null,null,null,null,null,null,null,null,null,null,null,null,null,null,null,null,null,null,null,null,null,null,null,null,null,null,null,null,null,null,""]
[{"$f":"IF(TeamB!C21=\"\",\"\",TeamB!C21)","v":"-"},{"$f":"IF(TeamB!D21=\"\",\"\",TeamB!D21)","v":"-"},null,null,null,null,null,null,null,null,null,null,null,null,{"$f":"IF(TeamB!E21=\"\",\"\",TeamB!E21)","v":""},null,null,null,null,{"$f":"IF(TeamB!F21=\"\",\"\",TeamB!F21)","v":"-"},null,null,null,null,null,null,null,null,null,null,null,null,null,null,null,null,null,null,null,null,null,null,null,null,null,null,null,null,null,null,""]
[{"$f":"IF(TeamB!C22=\"\",\"\",TeamB!C22)","v":"-"},{"$f":"IF(TeamB!D22=\"\",\"\",TeamB!D22)","v":"-"},null,null,null,null,null,null,null,null,null,null,null,null,{"$f":"IF(TeamB!E22=\"\",\"\",TeamB!E22)","v":""},null,null,null,null,{"$f":"IF(TeamB!F22=\"\",\"\",TeamB!F22)","v":"-"},null,null,null,null,null,null,null,null,null,null,null,null,null,null,null,null,null,null,null,null,null,null,null,null,null,null,null,null,null,null,""]
[{"$f":"IF(TeamB!C23=\"\",\"\",TeamB!C23)","v":"-"},{"$f":"IF(TeamB!D23=\"\",\"\",TeamB!D23)","v":"-"},null,null,null,null,null,null,null,null,null,null,null,null,{"$f":"IF(TeamB!E23=\"\",\"\",TeamB!E23)","v":""},null,null,null,null,{"$f":"IF(TeamB!F23=\"\",\"\",TeamB!F23)","v":"-"},null,null,null,null,null,null,null,null,null,null,null,null,null,null,null,null,null,null,null,null,null,null,null,null,null,null,null,null,null,null,""]
[{"$f":"IF(TeamB!C24=\"\",\"\",TeamB!C24)","v":"-"},{"$f":"IF(TeamB!D24=\"\",\"\",TeamB!D24)","v":"-"},null,null,null,null,null,null,null,null,null,null,null,null,{"$f":"IF(TeamB!E24=\"\",\"\",TeamB!E24)","v":""},null,null,null,null,{"$f":"IF(TeamB!F24=\"\",\"\",TeamB!F24)","v":"-"},null,null,null,null,null,null,null,null,null,null,null,null,null,null,null,null,null,null,null,null,null,null,null,null,null,null,null,null,null,null,""]
[{"$f":"IF(TeamB!C25=\"\",\"\",TeamB!C25)","v":"-"},{"$f":"IF(TeamB!D25=\"\",\"\",TeamB!D25)","v":"-"},null,null,null,null,null,null,null,null,null,null,null,null,{"$f":"IF(TeamB!E25=\"\",\"\",TeamB!E25)","v":""},null,null,null,null,{"$f":"IF(TeamB!F25=\"\",\"\",TeamB!F25)","v":"-"},null,null,null,null,null,null,null,null,null,"Team official in bench",null,null,null,null,null,{"$f":"IF(TeamB!D27=\"\",\"\",TeamB!D27)","v":"-"},null,null,null,null,null,null,null,null,null,null,null,null,null,null,""]
["Game Summary",null,null,null,null,null,null,null,null,null,null,null,null,null,null,null,null,null,null,null,null,"Saves",null,null,null,null,null,null,null,null,"Goaltender Records",null,null,null,null,null,null,null,null,null,null,null,null,null,null,null,null,"Goaltenders Changes"]
["Period",null,"G A:B",null,null,"SOG A:B",null,null,"PIM A:B",null,null,"PPGF A:B",null,null,null,null,null,"SHGF A:B",null,null,null,"GKA1",null,"GKA2",null,"GKB1",null,"GKB2",null,null,"GKA",null,"MIP",null,"GA",null,"GKB",null,"MIP",null,"GA",null,null,null,null,null,null,"Time",null,null,"GKA",null,"GKB"]
[1,null,{"$f":"GameSheet!C56","v":0},":",{"$f":"GameSheet!E56","v":0},{"$f":"GameSheet!F56","v":0},":",{"$f":"GameSheet!H56","v":0},{"$f":"GameSheet!I56","v":0},":",{"$f":"GameSheet!K56","v":0},{"$f":"GameSheet!L56","v":0},null,":",null,{"$f":"GameSheet!P56","v":0},null,{"$f":"GameSheet!R56","v":0},":",null,{"$f":"GameSheet!U56","v":0},{"$f":"GameSheet!V56","v":0},null,{"$f":"GameSheet!X56","v":"-"},null,{"$f":"GameSheet!Z56","v":0},null,{"$f":"GameSheet!AB56","v":"-"},null,null,{"$f":"GameSheet!AE56","v":"-"},null,{"$f":"GameSheet!AG56","v":0},null,{"$f":"GameSheet!AI56","v":"0"},null,{"$f":"GameSheet!AK56","v":"-"},null,{"$f":"GameSheet!AM56","v":0},null,{"$f":"GameSheet!AO56","v":"0"},null,null,null,null,null,null,{"$f":"GameSheet!AV56","v":0},null,null,{"$f":"IF(GameSheet!AY56=\"\",\"\",GameSheet!AY56)","v":"-"},null,{"$f":"IF(GameSheet!BA56=\"\",\"\",GameSheet!BA56)","v":"-"}]
[2,null,{"$f":"GameSheet!C57","v":0},":",{"$f":"GameSheet!E57","v":0},{"$f":"GameSheet!F57","v":0},":",{"$f":"GameSheet!H57","v":0},{"$f":"GameSheet!I57","v":0},":",{"$f":"GameSheet!K57","v":0},{"$f":"GameSheet!L57","v":0},null,":",null,{"$f":"GameSheet!P57","v":0},null,{"$f":"GameSheet!R57","v":0},":",null,{"$f":"GameSheet!U57","v":0},{"$f":"GameSheet!V57","v":"-"},null,{"$f":"GameSheet!X57","v":"-"},null,{"$f":"GameSheet!Z57","v":"-"},null,{"$f":"GameSheet!AB57","v":"-"},null,null,{"$f":"GameSheet!AE57","v":"-"},null,{"$f":"GameSheet!AG57","v":"-"},null,{"$f":"GameSheet!AI57","v":"-"},null,{"$f":"GameSheet!AK57","v":"-"},null,{"$f":"GameSheet!AM57","v":"-"},null,{"$f":"GameSheet!AO57","v":"-"},null,null,null,null,null,null,{"$f":"IF(GameSheet!AV57=\"\",\"\",GameSheet!AV57)","v":""},null,null,{"$f":"IF(GameSheet!AY57=\"\",\"\",GameSheet!AY57)","v":""},null,{"$f":"IF(GameSheet!BA57=\"\",\"\",GameSheet!BA57)","v":""}]
[3,null,{"$f":"GameSheet!C58","v":0},":",{"$f":"GameSheet!E58","v":0},{"$f":"GameSheet!F58","v":0},":",{"$f":"GameSheet!H58","v":0},{"$f":"GameSheet!I58","v":0},":",{"$f":"GameSheet!K58","v":0},{"$f":"GameSheet!L58","v":0},null,":",null,{"$f":"GameSheet!P58","v":0},null,{"$f":"GameSheet!R58","v":0},":",null,{"$f":"GameSheet!U58","v":0},{"$f":"GameSheet!V58","v":"-"},null,{"$f":"GameSheet!X58","v":"-"},null,{"$f":"GameSheet!Z58","v":"-"},null,{"$f":"GameSheet!AB58","v":"-"},null,null,"Start of game:",null,null,{"$f":"IF(GameSheet!AH58=\"\",\"\",GameSheet!AH58)","v":""},null,null,"End of game:",null,null,{"$f":"IF(GameSheet!AN58=\"\",\"\",GameSheet!AN58)","v":""},null,null,null,null,null,null,null,{"$f":"IF(GameSheet!AV58=\"\",\"\",GameSheet!AV58)","v":""},null,null,{"$f":"IF(GameSheet!AY58=\"\",\"\",GameSheet!AY58)","v":""},null,{"$f":"IF(GameSheet!BA58=\"\",\"\",GameSheet!BA58)","v":""}]
["OVT",null,{"$f":"GameSheet!C59","v":"-"},":",{"$f":"GameSheet!E59","v":"-"},{"$f":"GameSheet!F59","v":"-"},":",{"$f":"GameSheet!H59","v":"-"},{"$f":"GameSheet!I59","v":"-"},":",{"$f":"GameSheet!K59","v":"-"},{"$f":"GameSheet!L59","v":"-"},null,":",null,{"$f":"GameSheet!P59","v":"-"},null,{"$f":"GameSheet!R59","v":"-"},":",null,{"$f":"GameSheet!U59","v":"-"},{"$f":"GameSheet!V59","v":"-"},null,{"$f":"GameSheet!X59","v":"-"},null,{"$f":"GameSheet!Z59","v":"-"},null,{"$f":"GameSheet!AB59","v":"-"},null,null,"Timeout A:",null,null,{"$f":"IF(GameSheet!AH59=\"\",\"\",GameSheet!AH59)","v":"-"},null,null,"Timeout B:",null,null,{"$f":"IF(GameSheet!AN59=\"\",\"\",GameSheet!AN59)","v":"-"},null,null,null,null,null,null,null,{"$f":"IF(GameSheet!AV59=\"\",\"\",GameSheet!AV59)","v":""},null,null,{"$f":"IF(GameSheet!AY59=\"\",\"\",GameSheet!AY59)","v":""},null,{"$f":"IF(GameSheet!BA59=\"\",\"\",GameSheet!BA59)","v":""}]
["PSS",null,{"$f":"GameSheet!C60","v":"-"},":",{"$f":"GameSheet!E60","v":"-"},{"$f":"GameSheet!F60","v":"-"},":",{"$f":"GameSheet!H60","v":"-"},{"$f":"GameSheet!I60","v":"-"},":",{"$f":"GameSheet!K60","v":"-"},{"$f":"GameSheet!L60","v":"-"},null,":",null,{"$f":"GameSheet!P60","v":"-"},null,{"$f":"GameSheet!R60","v":"-"},":",null,{"$f":"GameSheet!U60","v":"-"},{"$f":"GameSheet!V60","v":"-"},null,{"$f":"GameSheet!X60","v":"-"},null,{"$f":"GameSheet!Z60","v":"-"},null,{"$f":"GameSheet!AB60","v":"-"},null,null,"Game Supervisor :",null,null,null,null,{"$f":"IF(GameSheet!AJ60=\"\",\"\",GameSheet!AJ60)","v":""},null,null,null,null,null,null,null,null,null,null,null,{"$f":"IF(GameSheet!AV60=\"\",\"\",GameSheet!AV60)","v":""},null,null,{"$f":"IF(GameSheet!AY60=\"\",\"\",GameSheet!AY60)","v":""},null,{"$f":"IF(GameSheet!BA60=\"\",\"\",GameSheet!BA60)","v":""}]
["TOTAL",null,{"$f":"IF(ISBLANK(C56),\"\",SUM(C56:C60))","v":0},":",{"$f":"IF(ISBLANK(E56),\"\",SUM(E56:E60))","v":0},{"$f":"SUM(F56:F60)","v":0},":",{"$f":"SUM(H56:H60)","v":0},{"$f":"SUM(I56:I60)","v":0},":",{"$f":"SUM(K56:K60)","v":0},{"$f":"SUM(L56:M60)","v":0},null,":",null,{"$f":"SUM(P56:Q60)","v":0},null,{"$f":"SUM(R56:R60)","v":0},":",null,{"$f":"SUM(U56:U60)","v":0},{"$f":"GameSheet!V61","v":0},null,{"$f":"GameSheet!X61","v":"-"},null,{"$f":"GameSheet!Z61","v":0},null,{"$f":"GameSheet!AB61","v":"-"},null,null,"Referee Supervisor :",null,null,null,null,{"$f":"IF(GameSheet!AJ61=\"\",\"\",GameSheet!AJ61)","v":"-"},null,null,null,null,null,null,null,null,null,null,null,{"$f":"IF(GameSheet!AV61=\"\",\"\",GameSheet!AV61)","v":""},null,null,{"$f":"IF(GameSheet!AY61=\"\",\"\",GameSheet!AY61)","v":""},null,{"$f":"IF(GameSheet!BA61=\"\",\"\",GameSheet!BA61)","v":""}]
["Head Coaches and Off-Ice Officials",null,null,null,null,null,null,null,null,null,null,null,null,null,null,null,null,null,null,null,null,null,null,null,null,null,null,null,null,null,null,null,null,null,null,null,null,null,null,null,null,null,null,null,null,null,null,{"$f":"IF(GameSheet!AV62=\"\",\"\",GameSheet!AV62)","v":""},null,null,{"$f":"IF(GameSheet!AY62=\"\",\"\",GameSheet!AY62)","v":""},null,{"$f":"IF(GameSheet!BA62=\"\",\"\",GameSheet!BA62)","v":""}]
["Head Coach A:",null,null,null,null,null,{"$f":"IF(GameSheet!G63=\"\",\"\",GameSheet!G63)","v":"-"},null,null,null,null,null,null,null,null,null,null,null,"Goal Judge:",null,null,null,null,null,{"$f":"IF(GameSheet!Y63=\"\",\"\",GameSheet!Y63)","v":""},null,null,null,null,null,null,"Linesperson:",null,null,null,"=IF(GameSheet!AP63=\"\",\"\",GameSheet!AP63)",null,null,null,null,null,"=IF(GameSheet!AP63=\"\",\"\",GameSheet!AP63)",null,null,null,null,null,{"$f":"IF(GameSheet!AV63=\"\",\"\",GameSheet!AV63)","v":""},null,null,{"$f":"IF(GameSheet!AY63=\"\",\"\",GameSheet!AY63)","v":""},null,{"$f":"IF(GameSheet!BA63=\"\",\"\",GameSheet!BA63)","v":""}]
["Head Coach B:",null,null,null,null,null,{"$f":"IF(GameSheet!G64=\"\",\"\",GameSheet!G64)","v":"-"},null,null,null,null,null,null,null,null,null,null,null,"Goal Judge:",null,null,null,null,null,{"$f":"IF(GameSheet!Y64=\"\",\"\",GameSheet!Y64)","v":""},null,null,null,null,null,null,"Referee:",null,null,null,"=IF(GameSheet!AJ63=\"\",\"\",GameSheet!AJ64)",null,null,null,null,null,"=IF(GameSheet!AP63=\"\",\"\",GameSheet!AP64)",null,null,null,null,null,{"$f":"IF(GameSheet!AV64=\"\",\"\",GameSheet!AV64)","v":""},null,null,{"$f":"IF(GameSheet!AY64=\"\",\"\",GameSheet!AY64)","v":""},null,{"$f":"IF(GameSheet!BA64=\"\",\"\",GameSheet!BA64)","v":""}]
["Timekeeper:",null,null,null,null,null,{"$f":"IF(GameSheet!G65=\"\",\"\",GameSheet!G65)","v":""},null,null,null,null,null,null,null,null,null,null,null,"Penalty Bench Attendant:",null,null,null,null,null,{"$f":"IF(GameSheet!Y65=\"\",\"\",GameSheet!Y65)","v":""},null,null,null,null,null,null,"Sign. Referee:",null,null,null,null,null,null,null,null,null,null,null,null,null,null,null,{"$f":"IF(GameSheet!AV65=\"\",\"\",GameSheet!AV65)","v":""},null,null,{"$f":"IF(GameSheet!AY65=\"\",\"\",GameSheet!AY65)","v":""},null,{"$f":"IF(GameSheet!BA65=\"\",\"\",GameSheet!BA65)","v":""}]
["Penalty Timekeeper:",null,null,null,null,null,{"$f":"IF(GameSheet!G66=\"\",\"\",GameSheet!G66)","v":""},null,null,null,null,null,null,null,null,null,null,null,"Penalty Bench Attendant:",null,null,null,null,null,{"$f":"IF(GameSheet!Y66=\"\",\"\",GameSheet!Y66)","v":""},null,null,null,null,null,null,null,null,null,null,null,null,null,null,null,null,null,null,null,null,null,null,{"$f":"IF(GameSheet!AV66=\"\",\"\",GameSheet!AV66)","v":""},null,null,{"$f":"IF(GameSheet!AY66=\"\",\"\",GameSheet!AY66)","v":""},null,{"$f":"IF(GameSheet!BA66=\"\",\"\",GameSheet!BA66)","v":""}]
["Announcer:",null,null,null,null,null,{"$f":"IF(GameSheet!G67=\"\",\"\",GameSheet!G67)","v":""},null,null,null,null,null,null,null,null,null,null,null,"Scorekeeper:",null,null,null,null,null,{"$f":"IF(GameSheet!Y67=\"\",\"\",GameSheet!Y67)","v":""},null,null,null,null,null,null,null,null,null,null,null,null,null,null,null,null,null,null,null,null,null,null,{"$f":"IF(GameSheet!AV67=\"\",\"\",GameSheet!AV67)","v":""},null,null,{"$f":"IF(GameSheet!AY67=\"\",\"\",GameSheet!AY67)","v":""},null,{"$f":"IF(GameSheet!BA67=\"\",\"\",GameSheet!BA67)","v":""}]
[]
["Notes",null,null,null,null,null,"2枚目です。"]

{"sheet":"TeamA","index":6,"n_rows":80,"n_cols":13,"rows_kept":80,"cut":false,"hidden":false,"merged":[[1,1,1,5]]}
[]
[null,"チームＡ入力　　　　　　　　　　　　　　       H列の登録番号をB列に入力すると選手名をＤ列に代入します　　　　　　"]
[null,"登録番号","背番号","出場者氏名","(C/A)","Pos",null,"登録番号","登録者氏名","Status","POS","#","C/A"]
["GK1->",null,{"$f":"IF(B4=\"\",\"-\",VLOOKUP(B4,$H$4:$M$80,5,FALSE))","v":"-"},{"$f":"IF(B4=\"\",\"-\",VLOOKUP(B4,$H$4:$I$80,2,FALSE))","v":"-"},{"$f":"IF((IF(B4=\"\",\"\",VLOOKUP(B4,$H$4:$M$80,6,FALSE)))=\"\",\"\",(IF(B4=\"\",\"\",VLOOKUP(B4,$H$4:$M$80,6,FALSE))))","v":""},"G",null,"1"]
["GK2->",null,"-",{"$f":"IF(B5=\"\",\"-\",VLOOKUP(B5,$H$4:$I$80,2,FALSE))","v":"-"},{"$f":"IF((IF(B5=\"\",\"\",VLOOKUP(B5,$H$4:$M$80,6,FALSE)))=\"\",\"\",(IF(B5=\"\",\"\",VLOOKUP(B5,$H$4:$M$80,6,FALSE))))","v":""},{"$f":"IF(D5=\"-\",\"-\",\"G\")","v":"-"},null,"2"]
[null,null,"-",{"$f":"IF(B6=\"\",\"-\",VLOOKUP(B6,$H$4:$I$80,2,FALSE))","v":"-"},{"$f":"IF((IF(B6=\"\",\"\",VLOOKUP(B6,$H$4:$M$80,6,FALSE)))=\"\",\"\",(IF(B6=\"\",\"\",VLOOKUP(B6,$H$4:$M$80,6,FALSE))))","v":""},{"$f":"IF(B6=\"\",\"-\",VLOOKUP(B6,$H$4:$M$80,4,FALSE))","v":"-"},null,"3"]
[null,null,"-","-",{"$f":"IF((IF(B7=\"\",\"\",VLOOKUP(B7,$H$4:$M$80,6,FALSE)))=\"\",\"\",(IF(B7=\"\",\"\",VLOOKUP(B7,$H$4:$M$80,6,FALSE))))","v":""},{"$f":"IF(B7=\"\",\"-\",VLOOKUP(B7,$H$4:$M$80,4,FALSE))","v":"-"},null,"4"]
[null,null,"-","-","","-",null,"5"]
[null,null,"-","-","","-",null,"6"]
[null,null,"-","-","","-",null,"7"]
[null,null,"-","-","","-",null,"8"]
[null,null,"-","-","","-",null,"9"]
[null,null,"-","-","","-",null,"10"]
[null,null,"-","-","","-",null,"11"]
[null,null,"-","-","","-",null,"12"]
[null,null,"-","-","","-",null,"13"]
[null,null,"-","-","","-",null,"14"]
[null,null,"-","-","","-",null,"15"]
[null,null,"-","-","","-",null,"16"]
[null,null,"-","-","","-",null,"17"]
[null,null,"-","-","","-",null,"18"]
[null,null,"-","-","","-",null,"19"]
[null,null,"-","-","","-",null,"20"]
[null,null,"-","-","","-",null,"21"]
[null,null,"-","-","","-",null,"22"]
[null,null,"監督","-",null,"-",null,"23"]
[null,null,"ベンチ役員","-",null,"-",null,"24"]
[null,null,null,null,null,null,null,"25"]
[null,null,null,null,null,null,null,"26"]
[null,null,null,null,null,null,null,"27"]
[null,null,null,null,null,null,null,"28"]
[null,null,null,null,null,null,null,"29"]
[null,null,null,null,null,null,null,"30"]
[null,null,null,null,null,null,null,"31"]
[null,null,null,null,null,null,null,"32"]
[null,null,null,null,null,null,null,"33"]
[null,null,null,null,null,null,null,"34"]
[null,null,null,null,null,null,null,"35"]
[null,null,null,null,null,null,null,"36"]
[null,null,null,null,null,null,null,"37"]
[null,null,null,null,null,null,null,"38"]
[null,null,null,null,null,null,null,"39"]
[null,null,null,null,null,null,null,"40"]
[null,null,null,null,null,null,null,"41"]
[null,null,null,null,null,null,null,"42"]
[null,null,null,null,null,null,null,"43"]
[null,null,null,null,null,null,null,"44"]
[null,null,null,null,null,null,null,"45"]
[null,null,null,null,null,null,null,"46"]
[null,null,null,null,null,null,null,"47"]
[null,null,null,null,null,null,null,"48"]
[null,null,null,null,null,null,null,"49"]
[null,null,null,null,null,null,null,"50"]
[null,null,null,null,null,null,null,"51"]
[null,null,null,null,null,null,null,"52"]
[null,null,null,null,null,null,null,"53"]
[null,null,null,null,null,null,null,"54"]
[null,null,null,null,null,null,null,"55"]
[null,null,null,null,null,null,null,"56"]
[null,null,null,null,null,null,null,"57"]
[null,null,null,null,null,null,null,"58"]
[null,null,null,null,null,null,null,"59"]
[null,null,null,null,null,null,null,"60"]
[null,null,null,null,null,null,null,"61"]
[null,null,null,null,null,null,null,"62"]
[null,null,null,null,null,null,null,"63"]
[null,null,null,null,null,null,null,"64"]
[null,null,null,null,null,null,null,"65"]
[null,null,null,null,null,null,null,"66"]
[null,null,null,null,null,null,null,"67"]
[null,null,null,null,null,null,null,"68"]
[null,null,null,null,null,null,null,"69"]
[null,null,null,null,null,null,null,"70"]
[null,null,null,null,null,null,null,"71"]
[null,null,null,null,null,null,null,"72"]
[null,null,null,null,null,null,null,"73"]
[null,null,null,null,null,null,null,"74"]
[null,null,null,null,null,null,null,"75"]
[null,null,null,null,null,null,null,"76"]
[null,null,null,null,null,null,null,"77"]

{"sheet":"TeamB","index":7,"n_rows":80,"n_cols":57,"rows_kept":80,"cut":false,"hidden":false,"merged":[[1,1,1,5]]}
[]
[null,"チームＢ入力　　　　　　　　　　　　　　       H列の登録番号をB列に入力すると選手名をＤ列に代入します　　　　　　",null,null,null,null,null,null,null,null,703,722,null,null,null,null,null,null,null,"TeB-T",null,null,null,null,null,null,null,null,null,null,null,null,null,null,null,null,null,null,null,null,null,null,null,null,null,null,null,null,null,null,null,null,null,89,122,null,"ゴール   3番 :  井出  哲郎"]
[null,"登録番号","背番号","出場者氏名","(C/A)","Pos",null,"登録番号","登録者氏名","Status","POS","#","C/A"]
["GK1->",null,{"$f":"IF(B4=\"\",\"-\",VLOOKUP(B4,$H$4:$M$80,5,FALSE))","v":"-"},{"$f":"IF(B4=\"\",\"-\",VLOOKUP(B4,$H$4:$I$80,2,FALSE))","v":"-"},{"$f":"IF((IF(B4=\"\",\"\",VLOOKUP(B4,$H$4:$M$80,6,FALSE)))=\"\",\"\",(IF(B4=\"\",\"\",VLOOKUP(B4,$H$4:$M$80,6,FALSE))))","v":""},"G",null,"1","　 　早川　裕美","役員のみ"]
["GK2->",null,{"$f":"IF(B5=\"\",\"-\",VLOOKUP(B5,$H$4:$M$80,5,FALSE))","v":"-"},{"$f":"IF(B5=\"\",\"-\",VLOOKUP(B5,$H$4:$I$80,2,FALSE))","v":"-"},"",{"$f":"IF(D5=\"-\",\"-\",\"G\")","v":"-"},null,"2","　 　黒木　彩加","役員のみ"]
[null,null,"-",{"$f":"IF(B6=\"\",\"-\",VLOOKUP(B6,$H$4:$I$80,2,FALSE))","v":"-"},"",{"$f":"IF(B6=\"\",\"-\",VLOOKUP(B6,$H$4:$M$80,4,FALSE))","v":"-"},null,"3","　 　松下　笑","役員のみ"]
[null,null,"-","-","",{"$f":"IF(B7=\"\",\"-\",VLOOKUP(B7,$H$4:$M$80,4,FALSE))","v":"-"},null,"4","V　　山田　和範","選手・役員"]
[null,null,"-","-","","-",null,"5","V　　大森　正輝","選手・役員"]
[null,null,"-","-","","-",null,"6","V　　佐藤　文彦","選手・役員"]
[null,null,"-","-","","-",null,"7","V　　吉澤　幸次郎","選手・役員"]
[null,null,"-","-","","-",null,"8","V　　小澤　博史","選手・役員"]
[null,null,"-","-","","-",null,"9","V　　齊藤　慶介","選手・役員"]
[null,null,"-","-","","-",null,"10","V　　岡崎　淳司","選手・役員"]
[null,null,"-","-","","-",null,"11","V　　村木　亮","選手・役員"]
[null,null,"-","-","","-",null,"12","V　　平松　靖隆","選手・役員"]
[null,null,"-","-","","-",null,"13","V　　朝倉　嘉彦","選手・役員"]
[null,null,"-","-","","-",null,"14","V　　鈴木　竜斗","選手・役員"]
[null,null,"-","-","","-",null,"15","V　　河北　光","選手・役員"]
[null,null,"-","-","","-",null,"16","V　　上井　大舟","選手・役員"]
[null,null,"-","-","","-",null,"17","V　　高岸　龍之介","選手・役員"]
[null,null,"-","-","","-",null,"18","V　　横田　崚","選手・役員"]
[null,null,"-","-","","-",null,"19","V　　甲田　柊馬","選手・役員"]
[null,null,"-","-","","-",null,"20","V　　近田　一哲","選手・役員"]
[null,null,"-","-",{"$f":"IF((IF(B24=\"\",\"\",VLOOKUP(B24,$H$4:$M$80,6,FALSE)))=\"\",\"\",(IF(B24=\"\",\"\",VLOOKUP(B24,$H$4:$M$80,6,FALSE))))","v":""},"-",null,"21"]
[null,null,"-","-",{"$f":"IF((IF(B25=\"\",\"\",VLOOKUP(B25,$H$4:$M$80,6,FALSE)))=\"\",\"\",(IF(B25=\"\",\"\",VLOOKUP(B25,$H$4:$M$80,6,FALSE))))","v":""},"-",null,"22"]
[null,null,"監督","-",{"$f":"IF((IF(B26=\"\",\"\",VLOOKUP(B26,$H$4:$M$80,6,FALSE)))=\"\",\"\",(IF(B26=\"\",\"\",VLOOKUP(B26,$H$4:$M$80,6,FALSE))))","v":""},"-",null,"23"]
[null,null,"ベンチ役員","-",{"$f":"IF((IF(B27=\"\",\"\",VLOOKUP(B27,$H$4:$M$80,6,FALSE)))=\"\",\"\",(IF(B27=\"\",\"\",VLOOKUP(B27,$H$4:$M$80,6,FALSE))))","v":""},"-",null,"24"]
[null,null,null,null,null,null,null,"25"]
[null,null,null,null,null,null,null,"26"]
[null,null,null,null,null,null,null,"27"]
[null,null,null,null,null,null,null,"28"]
[null,null,null,null,null,null,null,"29"]
[null,null,null,null,null,null,null,"30"]
[null,null,null,null,null,null,null,"31"]
[null,null,null,null,null,null,null,"32"]
[null,null,null,null,null,null,null,"33"]
[null,null,null,null,null,null,null,"34"]
[null,null,null,null,null,null,null,"35"]
[null,null,null,null,null,null,null,"36"]
[null,null,null,null,null,null,null,"37"]
[null,null,null,null,null,null,null,"38"]
[null,null,null,null,null,null,null,"39"]
[null,null,null,null,null,null,null,"40"]
[null,null,null,null,null,null,null,"41"]
[null,null,null,null,null,null,null,"42"]
[null,null,null,null,null,null,null,"43"]
[null,null,null,null,null,null,null,"44"]
[null,null,null,null,null,null,null,"45"," "," "]
[null,null,null,null,null,null,null,"46"," "," "]
[null,null,null,null,null,null,null,"47"," "," "]
[null,null,null,null,null,null,null,"48"," "," "]
[null,null,null,null,null,null,null,"49"," "," "]
[null,null,null,null,null,null,null,"50"," "," "]
[null,null,null,null,null,null,null,"51"," "," "]
[null,null,null,null,null,null,null,"52"," "," "]
[null,null,null,null,null,null,null,"53"," "," "]
[null,null,null,null,null,null,null,"54"," "," "]
[null,null,null,null,null,null,null,"55"," "," "]
[null,null,null,null,null,null,null,"56"," "," "]
[null,null,null,null,null,null,null,"57"," "," "]
[null,null,null,null,null,null,null,"58"," "," "]
[null,null,null,null,null,null,null,"59"," "," "]
[null,null,null,null,null,null,null,"60"," "," "]
[null,null,null,null,null,null,null,"61"," "," "]
[null,null,null,null,null,null,null,"62"," "," "]
[null,null,null,null,null,null,null,"63"," "," "]
[null,null,null,null,null,null,null,"64"," "," "]
[null,null,null,null,null,null,null,"65"," "," "]
[null,null,null,null,null,null,null,"66"," "," "]
[null,null,null,null,null,null,null,"67"," "," "]
[null,null,null,null,null,null,null,"68"," "," "]
[null,null,null,null,null,null,null,"69"," "," "]
[null,null,null,null,null,null,null,"70"," "," "]
[null,null,null,null,null,null,null,"71"," "," "]
[null,null,null,null,null,null,null,"72"," "," "]
[null,null,null,null,null,null,null,"73"," "," "]
[null,null,null,null,null,null,null,"74"," "," "]
[null,null,null,null,null,null,null,"75"," "," "]
[null,null,null,null,null,null,null,"76"," "," "]
[null,null,null,null,null,null,null,"77",null," "]

{"sheet":"List","index":8,"n_rows":890,"n_cols":40,"rows_kept":890,"cut":false,"hidden":false,"merged":[[22,23,22,30],[22,31,22,32],[23,23,23,30],[23,31,23,32],[20,23,20,30],[20,31,20,32],[19,23,19,30],[19,31,19,32],[21,23,21,30],[21,31,21,32],[9,23,9,30],[9,31,9,32],[17,23,17,30],[17,31,17,32],[18,23,18,30],[18,31,18,32],[16,23,16,30],[16,31,16,32],[15,23,15,30],[15,31,15,32],[0,22,0,26],[0,27,0,33],[14,23,14,30],[14,31,14,32],[4,23,4,30],[4,31,4,32],[1,23,1,30],[1,31,1,32],[2,23,2,30],[2,31,2,32],[3,23,3,30],[3,31,3,32],[12,23,12,30],[12,31,12,32],[8,23,8,30],[8,31,8,32],[5,23,5,30],[5,31,5,32],[6,23,6,30],[6,31,6,32],[13,23,13,30],[13,31,13,32],[10,23,10,30],[10,31,10,32],[11,23,11,30],[11,31,11,32],[7,23,7,30],[7,31,7,32],[22,14,22,15],[46,14,46,15],[63,14,63,15],[91,14,91,15],[118,14,118,15],[141,14,141,15],[161,14,161,15],[185,14,185,15],[215,14,215,15],[242,14,242,15],[261,14,261,15],[283,14,283,15],[306,14,306,15],[331,14,331,15],[357,14,357,15],[384,14,384,15],[401,14,401,15],[429,14,429,15],[454,14,454,15],[476,14,476,15],[507,14,507,15],[526,14,526,15],[541,14,541,15],[562,14,562,15],[582,14,582,15],[602,14,602,15],[620,14,620,15],[641,14,641,15],[659,14,659,15],[678,14,678,15],[815,14,815,15],[831,14,831,15],[701,14,701,15],[722,14,722,15],[743,14,743,15],[774,14,774,15],[794,14,794,15]]}
["Date","GAME_No","PLACE","No","CA","POS",null,"GS","MIN","Penalty","PS","teams","top","bottom","members","status","pos","nbr","c/a","referee","SV",null,null,null,null,null,null,null,null,null,null,null,null,null,null,"Vacu2"]
[null,null,null,null,null,null,null,null,null,"ABUSE",null,"NEC-A",2,22,"　 　藤原　忠士","役員のみ",null,null,null,null,null,null,null,null,null,null,null,null,null,null,null,null,null,null,null,"myPlayer",null,"myPos","myNbr","myCa"]
["2023-12-01","1-1","相模原銀河アリーナ","0","(C)","G",null,"EQ","-","BENCH","G","NEC-B",24,46,"　 　中村　秀岳","役員のみ",null,null,null,"－－－","赤坂　隆之"]
["2023-12-01","1-2","横浜銀行アイスアリーナ","1","(A)","-",null,"+1","PS","BITE ","N","イワトビペンギンズ",48,63,"　 　鎮守　正昭","役員のみ",null,null,null,"安藤 仁詩","菊地　拓海"]
["2023-12-01","1-3","KOSÉ新横浜スケートセンター","2","(BP)","F",null,"+2","2","BOARD","-","ケッターズ",65,91,"　 　伊東　順","役員のみ",null,null,null,"大山 訓弘"]
["2023-12-01","1-4","bottom","3","(C)(BP)","D",null,"-1","5","BR-ST","bottom","スーパー・ケッターズ",93,118," 　　早川　昭仁","選手・役員",null,null,null,"奥山 美紀"]
["2023-12-02","1-5",null,"4","(A)(BP)","-",null,"-2","10","BUT-E",null,"サザンレッドウイングス",120,141,"V　　小野　真","選手・役員",null,null,null,"鍵和田 和明"]
["2023-12-02","1-6",null,"5","bottom","bottom",null,"PS","20","CHARG",null,"EAGLES",143,161,"V　　角丸　貴洋","選手・役員",null,null,null,"勝山 栄"]
["2023-12-02","1-7",null,"6",null,null,null,"EN","25","CHE-B",null,"S Blitz",163,185,"V　　林　要","選手・役員",null,null,null,"河久保 昌利"]
["2023-12-02","1-8","1500","7",null,null,null,"bottom","bottom","CHE-H",null,"チームハセガワB",187,215,"V　　金田　慎一","選手・役員",null,null,null,"近藤 健一"]
["2023-12-03","1-9","2000","8",null,null,null,null,null,"CLIPP",null,"ハマクラブB",217,242,"V　　竹内　景介","選手・役員",null,null,null,"佐久間　剛"]
["2023-12-03","1-10",null,"9",null,null,null,null,null,"CLOS ",null,"横浜ガルズ",244,261,"V　　菅原　徹也","選手・役員",null,null,null,"櫻井 信孝"]
[null,"1-11",null,"10",null,null,null,null,null,"CROSS",null,"スパイラルスケートクラブ",263,283,"V　　大熊　成地","選手・役員",null,null,null,"佐々木 暁"]
[null,"1-12","11:30","11",null,null,null,null,null,"DANG ",null,"YOKOHAMA BAY JAZZ",285,306,"V　　藤澤　崇順","選手・役員",null,null,null,"佐々木 基喜"]
[null,"1-13","12:45","12",null,null,null,null,null,"DELAY ",null,"YOKOHAMA BAY BLUES",308,331,"V　　森　泰憲","選手・役員",null,null,null,"佐藤 仁衣奈"]
["bottom","1-14","14:00","13",null,null,null,null,null,"ELBOW",null,"上條会Mao’s",333,357,"V　　岩田　光義","選手・役員",null,null,null,"下山 浩二"]
[null,"1-15","15:30","14",null,null,null,null,null,"EMBEL",null,"常盤台ユベントス",359,384,"V　　中西　航一","選手・役員",null,null,null,"世利　謙太郎"]
[null,"1-16","16:45","15",null,null,null,"EQ",null,"ENG-S",null,"神奈川メープルリーフA",386,401,"V　　下斗米　伊吹","選手・役員",null,null,null,"立花 勝彦"]
[null,"1-17","18:15","16",null,null,null,"PP1",null,"FIGHT",null,"神奈川メープルリーフB",403,429,"V　　小池　康文","選手・役員",null,null,null,"田中 哲治"]
[null,"1-18","19:30","17",null,null,null,"PP2",null,"GA-MI",null,"横浜JETS",431,454,"V　　桶谷　康祐","選手・役員",null,null,null,"戸高 英明"]
[null,"1-19",null,"18",null,null,null,"SH1",null,"GK-INT",null,"Mavericks",456,476,"V　　平野　祐規","選手・役員",null,null,null,"中村 秀岳"]
[null,"1-20","21:00","19",null,null,null,"SH2",null,"GK-PEN",null,"日産自動車ピストンズ",478,507,"V　　坂本　峻太郎","選手・役員",null,null,null,"長谷川 宜彦"]
[null,"1-21","21:30","20",null,null,null,"EQ･EA",null,"H-BUT",null,"ENEOS WAVES",509,526,"NEC-A",null,null,null,null,"畑中 和幸"]
[null,"1-22","22:00","21",null,null,null,"PP1･EA",null,"HELM",null,"箱根クラブ",528,541,"　 　早川　昭仁","役員のみ",null,null,null,"Hufford  Benjamin"]
[null,"1-23","22:30","22","gka",null,null,"PP2･EA",null,"HI-ST",null,"富士通RED BULLETS",543,562,"　 　角丸　貴洋","役員のみ",null,null,null,"本田 翔馬"]
[null,"1-24","23:00","23",{"$f":"IF(GameSheet!A7=\"\",\"\",GameSheet!A7)","v":"-"},null,null,"SH1･EA",null,"HO-ST",null,"ゼロックス・アイスホッケークラブ",564,582,"　 　林　要","役員のみ",null,null,null,"町井　勝輝"]
[null,"1-25",null,"24",{"$f":"IF(GameSheet!A8=\"\",\"\",GameSheet!A8)","v":"-"},null,null,"SH2･EA",null,"HOLD",null,"B.B.KINGS",584,602,"　 　竹内　景介","役員のみ",null,null,null,"山本 秀彦"]
[null,"1-26",null,"25","-",null,null,"EQ･EN",null,"HOOK",null,"ロックホッパーペンギンズ",604,620," 　　有田　典生","選手・役員",null,null,null,"吉岡　唯"]
[null,"1-27",null,"26",null,null,null,"PP1･EN",null,"ILL-H",null,"Big Buzz",622,641," 　　藤原　忠士","選手・役員",null,null,null,"吉田 見登留"]
[null,"1-28",null,"27","gkb",null,null,"PP2･EN",null,"ILL-ST",null,"ハマクラブA",643,659," 　　中村　秀岳","選手・役員"]
[null,"2-1",null,"28",{"$f":"IF(GameSheet!A32=\"\",\"\",GameSheet!A32)","v":"-"},null,null,"SH1･EN",null,"INJUR",null,"アイスバンディッツ",661,678," 　　鎮守　正昭","選手・役員"]
[null,"2-2",null,"29",{"$f":"IF(GameSheet!A33=\"\",\"\",GameSheet!A33)","v":"-"},null,null,"SH2･EN",null,"INTRF",null,"S Lightning",680,701," 　　小橋口　貴","選手・役員"]
[null,"2-3",null,"30","-",null,null,"PS",null,"KICK",null,"BERKS",703,722," 　　加賀谷　大輔","選手・役員"]
[null,"2-4","第72回神奈川県アイスホッケー選手権","31",null,null,null,"GWG",null,"KNEE",null,"サンダーバード",724,743," 　　小出　誠","選手・役員"]
[null,"2-5","第79回国民スポーツ大会神奈川県予選会","32",null,null,null,null,null,"L-BCH",null,"横浜ダイヤモンズ",745,774," 　　伊東　順","選手・役員"]
[null,"2-6",null,"33",null,null,null,null,null,"LA-HI",null,"TUSオリオンズ",776,794," 　　中山　高志","選手・役員"]
[null,"2-7",null,"34",null,null,null,null,null,"MATCH",null,"湘南BRUTUS",796,815," 　　久保田　真","選手・役員"]
[null,"2-8",null,"35",null,null,null,null,null,"MISC",null,"神奈川大学",817,831," 　　竹村　隆博","選手・役員"]
[null,"2-9",null,"36",null,null,null,null,null,"OTHER",null,null,null,null," 　　前川　健太郎","選手・役員"]
[null,"2-10",null,"37",null,null,null,null,null,"PULL",null,"慶應義塾高等学校",2,22,"V　　山中　章","選手・役員"]
[null,"2-11","枕辺 勝美","38",null,null,null,null,null,"REFUS",null,"武相高等学校",24,40,"V　　山下　勝史","選手・役員"]
[null,"2-12","藤島 墨久","39",null,null,null,null,null,"ROUGH",null,"C高校",42,null,"V　　眞貝　晋平","選手・役員"]
[null,"2-13","我妻 光男","40",null,null,null,null,null,"SLASH",null,"D高校",null,null,"V　　渡辺　貴之","選手・役員"]
[null,"2-14","澤田 可和","41",null,null,null,null,null,"SLEW",null,"E高校",null,null,"V　　南島　晋","選手・役員"]
[null,"2-15","杉山 節生","42",null,null,null,null,null,"SPEAR",null,"F高校",null,null,"V　　竹田　増蔵","選手・役員"]
[null,"2-16","阿部山　勝弘","43",null,null,null,null,null,"SPIT",null,"G高校",null,null,"V　　門井　健三","選手・役員"]
[null,"2-17","小岩　敦子","44",null,null,null,null,null,"T-BCH",null,"H高校",null,null,"NEC-B"]
[null,"2-18","佐藤　康夫","45",null,null,null,null,null,"TAUNT",null,"I高校",null,null,"　 　渡辺　浩彰","役員のみ"]
[null,"2-19","花本　宜裕","46",null,null,null,null,null,"TEE",null,"J高校",null,null,"　 　池田　隆","役員のみ"]
[null,"2-20","皆川　きよみ","47",null,null,null,null,null,"THR-ST",null,null,null,null,"　 　池田　あや","役員のみ"]
[null,"2-21","有田　典生","48",null,null,null,null,null,"TOO-M",null,null,null,null," 　　河村　直正","選手・役員"]
[null,"2-22",null,"49",null,null,null,null,null,"TRIP",null,"parameter",null,null,"V　　菊田　幸生","選手・役員"]
[null,"2-23",null,"50",null,null,null,null,null,"UN-SP",null,null,null,null,"V　　渡辺　貴郎","選手・役員"]
[null,"2-24",null,"51",null,null,null,null,null,"PS",null,null,null,null,"V　　北野　郷史","選手・役員"]
[null,"2-25",null,"52",null,null,null,null,null,null,null,null,null,null,"V　　田中　悟","選手・役員"]
[null,"2-26",null,"53",null,null,null,null,null,"bottom",null,null,null,null,"V　　生田目　健次","選手・役員"]
[null,"2-27",null,"54",null,null,null,null,null,null,null,null,null,null,"V　　今井　耕一","選手・役員"]
[null,"2-28",null,"55",null,null,null,null,null,null,null,null,null,null,"V　　長島　利行","選手・役員"]
[null,"3-1",null,"56",null,null,null,null,null,null,null,null,null,null,"V　　飛田　信太郎","選手・役員"]
[null,"3-2",null,"57",null,null,null,null,null,null,null,null,null,null,"V　　齊藤　義之","選手・役員"]
[null,"3-3",null,"58",null,null,null,null,null,null,null,null,null,null,"V　　安原　幸雄","選手・役員"]
[null,"3-4",null,"59",null,null,null,null,null,null,null,null,null,null,"V　　檀上　諒太","選手・役員"]
[null,"3-5",null,"60",null,null,null,null,null,null,null,null,null,null,"V　　町井　勝輝","選手・役員"]
[null,"3-6",null,"61",null,null,null,null,null,null,null,null,null,null,"イワトビペンギンズ"]
[null,"3-7",null,"62",null,null,null,null,null,null,null,null,null,null,"　 　田中　龍一","役員のみ"]
[null,"3-8",null,"63",null,null,null,null,null,null,null,null,null,null,"　 　笹島　宏之","役員のみ"]
[null,"3-9",null,"64",null,null,null,null,null,null,null,null,null,null,"　 　木戸　葉月","役員のみ"]
[null,"3-10",null,"65",null,null,null,null,null,null,null,null,null,null,"　 　河野　佳介","役員のみ"]
[null,"3-11",null,"66",null,null,null,null,null,null,null,null,null,null," 　　柏木　満","選手・役員"]
[null,"3-12",null,"67",null,null,null,null,null,null,null,null,null,null," 　　西村　三雄","選手・役員"]
[null,"3-13",null,"68",null,null,null,null,null,null,null,null,null,null,"V　　氏次　祐貴","選手・役員"]
[null,"3-14",null,"69",null,null,null,null,null,null,null,null,null,null,"V　　堀田　喜信","選手・役員"]
[null,"3-15",null,"70",null,null,null,null,null,null,null,null,null,null,"V　　青山　直人","選手・役員"]
[null,"3-16",null,"71",null,null,null,null,null,null,null,null,null,null,"V　　寺田　祐也","選手・役員"]
[null,"3-17",null,"72",null,null,null,null,null,null,null,null,null,null,"V　　山浦　淳志","選手・役員"]
[null,"3-18",null,"73",null,null,null,null,null,null,null,null,null,null,"V　　上原　士門","選手・役員"]
[null,"3-19",null,"74",null,null,null,null,null,null,null,null,null,null,"V　　栗原　秀直","選手・役員"]
[null,"3-20",null,"75",null,null,null,null,null,null,null,null,null,null,"V　　矢吹　涼","選手・役員"]
[null,"3-21",null,"76",null,null,null,null,null,null,null,null,null,null,"V　　松浦　大貴","選手・役員"]
[null,"4-1",null,"77",null,null,null,null,null,null,null,null,null,null,"V　　上村　秀幸","選手・役員"]
[null,"4-2",null,"78",null,null,null,null,null,null,null,null,null,null,"V　　加賀　雄貴","選手・役員"]
[null,"4-3",null,"79",null,null,null,null,null,null,null,null,null,null,"V　　鎌田　健太","選手・役員"]
[null,"4-4",null,"80",null,null,null,null,null,null,null,null,null,null,"V　　西口　開羅","選手・役員"]
[null,"4-5",null,"81",null,null,null,null,null,null,null,null,null,null,"V　　冨永　悠介","選手・役員"]
[null,"4-6",null,"82",null,null,null,null,null,null,null,null,null,null,"V　　越川　諒大","選手・役員"]
[null,"4-7",null,"83",null,null,null,null,null,null,null,null,null,null,"V　　佐藤　諒","選手・役員"]
[null,"4-8",null,"84",null,null,null,null,null,null,null,null,null,null,"V　　土田　啓太","選手・役員"]
[null,"4-9",null,"85",null,null,null,null,null,null,null,null,null,null,"V　　近藤　謙成","選手・役員"]
[null,"4-10",null,"86",null,null,null,null,null,null,null,null,null,null,"V　　関　佑次朗","選手・役員"]
[null,"4-11",null,"87",null,null,null,null,null,null,null,null,null,null,"V　　小川原　由基","選手・役員"]
[null,"4-12",null,"88",null,null,null,null,null,null,null,null,null,null,"V　　上村　哲也","選手・役員"]
[null,"4-13",null,"89",null,null,null,null,null,null,null,null,null,null,"ケッターズ"]
[null,"4-14",null,"90",null,null,null,null,null,null,null,null,null,null,"　 　田中　紀子","役員のみ"]
[null,"4-15",null,"91",null,null,null,null,null,null,null,null,null,null,"　 　田中　真樹","役員のみ"]
[null,"4-16",null,"92",null,null,null,null,null,null,null,null,null,null," 　　宮本　淳平","選手・役員"]
[null,"4-17",null,"93",null,null,null,null,null,null,null,null,null,null," 　　男全　修二","選手・役員"]
[null,"4-18",null,"94",null,null,null,null,null,null,null,null,null,null," 　　工藤　哲也","選手・役員"]
[null,"4-19",null,"95",null,null,null,null,null,null,null,null,null,null," 　　柳谷　正寿","選手・役員"]
[null,"4-20",null,"96",null,null,null,null,null,null,null,null,null,null," 　　加藤　康之","選手・役員"]
[null,"4-21",null,"97",null,null,null,null,null,null,null,null,null,null," 　　川崎　雅弘","選手・役員"]
[null,"4-22",null,"98",null,null,null,null,null,null,null,null,null,null," 　　田中　龍一","選手・役員"]
[null,"4-23",null,"99",null,null,null,null,null,null,null,null,null,null," 　　菅原　勝","選手・役員"]
[null,"4-24",null,"T0",null,null,null,null,null,null,null,null,null,null," 　　治山　純也","選手・役員"]
[null,"4-25",null,"T1",null,null,null,null,null,null,null,null,null,null,"V　　畑中　和幸","選手・役員"]
[null,"4-26",null,"T2",null,null,null,null,null,null,null,null,null,null,"V　　首藤　紳介","選手・役員"]
[null,"4-27",null,"T3",null,null,null,null,null,null,null,null,null,null,"V　　内藤　信仁","選手・役員"]
[null,"4-28",null,"T4",null,null,null,null,null,null,null,null,null,null,"V　　内藤　信和","選手・役員"]
[null,"5-1",null,"T5",null,null,null,null,null,null,null,null,null,null,"V　　加藤　春比古","選手・役員"]
[null,"5-2",null,"T6",null,null,null,null,null,null,null,null,null,null,"V　　渡部　一麿","選手・役員"]
[null,"5-3",null,"T7",null,null,null,null,null,null,null,null,null,null,"V　　氏次　孝征","選手・役員"]
[null,"5-4",null,"T8",null,null,null,null,null,null,null,null,null,null,"V　　佐々木　卓","選手・役員"]
[null,"5-5",null,"T9",null,null,null,null,null,null,null,null,null,null,"V　　今井　慎吾","選手・役員"]
[null,"5-6",null,"T10",null,null,null,null,null,null,null,null,null,null,"V　　河野　佳介","選手・役員"]
[null,"5-7",null,"T11",null,null,null,null,null,null,null,null,null,null,"V　　金子　圭之介","選手・役員"]
[null,"5-8",null,"T12",null,null,null,null,null,null,null,null,null,null,"V　　源口　晴一朗","選手・役員"]
[null,"5-9",null,"T13",null,null,null,null,null,null,null,null,null,null,"V　　佐々木　賢蔵","選手・役員"]
[null,"5-10",null,"T14",null,null,null,null,null,null,null,null,null,null,"V　　渡辺　信勝","選手・役員"]
[null,"5-11",null,"T15",null,null,null,null,null,null,null,null,null,null,"V　　小川　航平","選手・役員"]
[null,"5-12",null,"T16",null,null,null,null,null,null,null,null,null,null,"スーパー・ケッターズ"]
[null,"5-13",null,"T17",null,null,null,null,null,null,null,null,null,null,"　 　成田　克巳","役員のみ"]
[null,"5-14",null,"T18",null,null,null,null,null,null,null,null,null,null," 　　葛西　臣央","選手・役員"]
[null,"5-15",null,"T19",null,null,null,null,null,null,null,null,null,null," 　　鹿野　義隆","選手・役員"]
[null,"5-16",null,"T20",null,null,null,null,null,null,null,null,null,null," 　　福田　峰之","選手・役員"]
[null,"5-17",null,"T21",null,null,null,null,null,null,null,null,null,null," 　　菅野　大介","選手・役員"]
[null,"5-18",null,"T22",null,null,null,null,null,null,null,null,null,null," 　　島田　佳和","選手・役員"]
[null,"5-19",null,"T23",null,null,null,null,null,null,null,null,null,null," 　　竹内　誠司","選手・役員"]
[null,"5-20",null,"T24",null,null,null,null,null,null,null,null,null,null," 　　小倉　琢也","選手・役員"]
[null,"5-21",null,"T25",null,null,null,null,null,null,null,null,null,null," 　　齋藤　英敏","選手・役員"]
[null,null,null,"T26",null,null,null,null,null,null,null,null,null,null,"V　　山田　直史","選手・役員"]
[null,null,null,"T27",null,null,null,null,null,null,null,null,null,null,"V　　滝川　博嗣","選手・役員"]
[null,null,null,"T28",null,null,null,null,null,null,null,null,null,null,"V　　田村　航平","選手・役員"]
[null,"bottom",null,"T29",null,null,null,null,null,null,null,null,null,null,"V　　後藤　忠幸","選手・役員"]
[null,null,null,"T30",null,null,null,null,null,null,null,null,null,null,"V　　ブラウン　ロバート","選手・役員"]
[null,null,null,"T31",null,null,null,null,null,null,null,null,null,null,"V　　寺内　照雄","選手・役員"]
[null,null,null,"T32",null,null,null,null,null,null,null,null,null,null,"V　　高田　剛輔","選手・役員"]
[null,null,null,"T33",null,null,null,null,null,null,null,null,null,null,"V　　須藤　優","選手・役員"]
[null,null,null,"T34",null,null,null,null,null,null,null,null,null,null,"V　　高野　一馬","選手・役員"]
[null,null,null,"T35",null,null,null,null,null,null,null,null,null,null,"V　　新村　翔太","選手・役員"]
[null,null,null,"T36",null,null,null,null,null,null,null,null,null,null,"V　　菅野　祐","選手・役員"]
[null,null,null,"T37",null,null,null,null,null,null,null,null,null,null,"T　　西脇　壮摩","選手・役員"]
[null,null,null,"T38",null,null,null,null,null,null,null,null,null,null,"T　　西脇　風摩","選手・役員"]
[null,null,null,"T39",null,null,null,null,null,null,null,null,null,null,"サザンレッドウイングス"]
[null,null,null,"T40",null,null,null,null,null,null,null,null,null,null,"　 　金　誠実","役員のみ"]
[null,null,null,"T41",null,null,null,null,null,null,null,null,null,null," 　　杉浦　弘章","選手・役員"]
[null,null,null,"T42",null,null,null,null,null,null,null,null,null,null," 　　鈴木　孝昌","選手・役員"]
[null,null,null,"T43",null,null,null,null,null,null,null,null,null,null," 　　鄭　高延","選手・役員"]
[null,null,null,"T44",null,null,null,null,null,null,null,null,null,null," 　　熊谷　義行","選手・役員"]
[null,null,null,"T45",null,null,null,null,null,null,null,null,null,null," 　　室橋　勇","選手・役員"]
[null,null,null,"T46",null,null,null,null,null,null,null,null,null,null," 　　中村　勝二","選手・役員"]
[null,null,null,"T47",null,null,null,null,null,null,null,null,null,null,"V　　鈴木　惇平","選手・役員"]
[null,null,null,"T48",null,null,null,null,null,null,null,null,null,null,"V　　清水　省吾","選手・役員"]
[null,null,null,"T49",null,null,null,null,null,null,null,null,null,null,"V　　紺谷　大","選手・役員"]
[null,null,null,"T50",null,null,null,null,null,null,null,null,null,null,"V　　鈴木　啓介","選手・役員"]
[null,null,null,"T51",null,null,null,null,null,null,null,null,null,null,"V　　杉浦　祐哉","選手・役員"]
[null,null,null,"T52",null,null,null,null,null,null,null,null,null,null,"V　　松本　力也","選手・役員"]
[null,null,null,"T53",null,null,null,null,null,null,null,null,null,null,"V　　沼田　智也","選手・役員"]
[null,null,null,"T54",null,null,null,null,null,null,null,null,null,null,"V　　石倉　浩規","選手・役員"]
[null,null,null,"T55",null,null,null,null,null,null,null,null,null,null,"V　　中島　崚","選手・役員"]
[null,null,null,"T56",null,null,null,null,null,null,null,null,null,null,"V　　日高　正也","選手・役員"]
[null,null,null,"T57",null,null,null,null,null,null,null,null,null,null,"V　　眞保　慶之","選手・役員"]
[null,null,null,"T58",null,null,null,null,null,null,null,null,null,null,"V　　漆畑　慶","選手・役員"]
[null,null,null,"T59",null,null,null,null,null,null,null,null,null,null,"EAGLES"]
[null,null,null,"T60",null,null,null,null,null,null,null,null,null,null,"　 　西村　憲","役員のみ"]
[null,null,null,"T61",null,null,null,null,null,null,null,null,null,null,"　 　木下　和則","役員のみ"]
[null,null,null,"T62",null,null,null,null,null,null,null,null,null,null,"　 　岩崎　佑樹","役員のみ"]
[null,null,null,"T63",null,null,null,null,null,null,null,null,null,null," 　　田中　伸史","選手・役員"]
[null,null,null,"T64",null,null,null,null,null,null,null,null,null,null," 　　持山　剛","選手・役員"]
[null,null,null,"T65",null,null,null,null,null,null,null,null,null,null," 　　渡邊　誠","選手・役員"]
[null,null,null,"T66",null,null,null,null,null,null,null,null,null,null," 　　折目　啓伯","選手・役員"]
[null,null,null,"T67",null,null,null,null,null,null,null,null,null,null," 　　山本　秀彦","選手・役員"]
[null,null,null,"T68",null,null,null,null,null,null,null,null,null,null," 　　山田　知久","選手・役員"]
[null,null,null,"T69",null,null,null,null,null,null,null,null,null,null," 　　岸井　貴志","選手・役員"]
[null,null,null,"T70",null,null,null,null,null,null,null,null,null,null," 　　三浦　雅也","選手・役員"]
[null,null,null,"T71",null,null,null,null,null,null,null,null,null,null,"V　　小山田　晃","選手・役員"]
[null,null,null,"T72",null,null,null,null,null,null,null,null,null,null,"V　　石川　鐘日","選手・役員"]
[null,null,null,"T73",null,null,null,null,null,null,null,null,null,null,"V　　Sheen　Yale","選手・役員"]
[null,null,null,"T74",null,null,null,null,null,null,null,null,null,null,"V　　山下　直樹","選手・役員"]
[null,null,null,"T75",null,null,null,null,null,null,null,null,null,null,"V　　Betters　Ryan","選手・役員"]
[null,null,null,"T76",null,null,null,null,null,null,null,null,null,null,"V　　Andrews　John","選手・役員"]
[null,null,null,"T77",null,null,null,null,null,null,null,null,null,null,"V　　今里　悠人","選手・役員"]
[null,null,null,"T78",null,null,null,null,null,null,null,null,null,null,"V　　藤澤　岳瞭","選手・役員"]
[null,null,null,"T79",null,null,null,null,null,null,null,null,null,null,"V　　道祖土　貴大","選手・役員"]
[null,null,null,"T80",null,null,null,null,null,null,null,null,null,null,"V　　巴　龍太郎","選手・役員"]
[null,null,null,"T81",null,null,null,null,null,null,null,null,null,null,"V　　青木　亮","選手・役員"]
[null,null,null,"T82",null,null,null,null,null,null,null,null,null,null,"V　　山田　竜久","選手・役員"]
[null,null,null,"T83",null,null,null,null,null,null,null,null,null,null,"S Blitz"]
[null,null,null,"T84",null,null,null,null,null,null,null,null,null,null,"　 　長谷川　清","役員のみ"]
[null,null,null,"T85",null,null,null,null,null,null,null,null,null,null,"　 　天明　太郎","役員のみ"]
[null,null,null,"T86",null,null,null,null,null,null,null,null,null,null,"V　　林　風汰","選手・役員"]
[null,null,null,"T87",null,null,null,null,null,null,null,null,null,null,"V　　佐々中　健人","選手・役員"]
[null,null,null,"T88",null,null,null,null,null,null,null,null,null,null,"V　　金井　真","選手・役員"]
[null,null,null,"T89",null,null,null,null,null,null,null,null,null,null," 　　水原　健司","選手・役員"]
[null,null,null,"T90",null,null,null,null,null,null,null,null,null,null," 　　小暮　勇男","選手・役員"]
[null,null,null,"T91",null,null,null,null,null,null,null,null,null,null," 　　山口　敬介","選手・役員"]
[null,null,null,"T92",null,null,null,null,null,null,null,null,null,null," 　　長谷川　大介","選手・役員"]
[null,null,null,"T93",null,null,null,null,null,null,null,null,null,null," 　　長谷川　宜彦","選手・役員"]
[null,null,null,"T94",null,null,null,null,null,null,null,null,null,null," 　　松田　未央","選手・役員"]
[null,null,null,"T95",null,null,null,null,null,null,null,null,null,null," 　　小森　和之","選手・役員"]
[null,null,null,"T96",null,null,null,null,null,null,null,null,null,null,"V　　齊藤　大知","選手・役員"]
[null,null,null,"T97",null,null,null,null,null,null,null,null,null,null,"V　　中島　清人","選手・役員"]
[null,null,null,"T98",null,null,null,null,null,null,null,null,null,null,"V　　岡野　宏","選手・役員"]
[null,null,null,"T99",null,null,null,null,null,null,null,null,null,null,"V　　西脇　雅仁","選手・役員"]
[null,null,null,"T",null,null,null,null,null,null,null,null,null,null,"V　　林　寛和","選手・役員"]
[null,null,null,"-",null,null,null,null,null,null,null,null,null,null,"V　　笠井　龍","選手・役員"]
[null,null,null,"bottom",null,null,null,null,null,null,null,null,null,null,"V　　有波　典","選手・役員"]
[null,null,null,null,null,null,null,null,null,null,null,null,null,null,"V　　土塚　直哉","選手・役員"]
[null,null,null,null,null,null,null,null,null,null,null,null,null,null,"V　　飯田　篤史","選手・役員"]
[null,null,null,null,null,null,null,null,null,null,null,null,null,null,"V　　鈴木　彰","選手・役員"]
[null,null,null,null,null,null,null,null,null,null,null,null,null,null,"V　　重野　駿佑","選手・役員"]
[null,null,null,null,null,null,null,null,null,null,null,null,null,null,"V　　中沢　竜大","選手・役員"]
[null,null,null,null,null,null,null,null,null,null,null,null,null,null,"V　　大久保　和音","選手・役員"]
[null,null,null,null,null,null,null,null,null,null,null,null,null,null,"V　　佐々木　悠","選手・役員"]
[null,null,null,null,null,null,null,null,null,null,null,null,null,null,"V　　中田　聡史","選手・役員"]
[null,null,null,null,null,null,null,null,null,null,null,null,null,null,"V　　寺崎　達也","選手・役員"]
[null,null,null,null,null,null,null,null,null,null,null,null,null,null,"V　　水戸部　凌也","選手・役員"]
[null,null,null,null,null,null,null,null,null,null,null,null,null,null,"チーム　ハセガワＢ"]
[null,null,null,null,null,null,null,null,null,null,null,null,null,null,"　 　岡部　由美","役員のみ"]
[null,null,null,null,null,null,null,null,null,null,null,null,null,null,"　 　安藤　好","役員のみ"]
[null,null,null,null,null,null,null,null,null,null,null,null,null,null," 　　阿辺　信明","選手・役員"]
[null,null,null,null,null,null,null,null,null,null,null,null,null,null," 　　落合　一也","選手・役員"]
[null,null,null,null,null,null,null,null,null,null,null,null,null,null," 　　荒木　裕一郎","選手・役員"]
[null,null,null,null,null,null,null,null,null,null,null,null,null,null," 　　伊藤　智","選手・役員"]
[null,null,null,null,null,null,null,null,null,null,null,null,null,null," 　　林　直孝","選手・役員"]
[null,null,null,null,null,null,null,null,null,null,null,null,null,null," 　　藤川　浩幸","選手・役員"]
[null,null,null,null,null,null,null,null,null,null,null,null,null,null," 　　海部　義英","選手・役員"]
[null,null,null,null,null,null,null,null,null,null,null,null,null,null," 　　岡部　勇人","選手・役員"]
[null,null,null,null,null,null,null,null,null,null,null,null,null,null," 　　伊藤　進","選手・役員"]
[null,null,null,null,null,null,null,null,null,null,null,null,null,null," 　　小田　義也","選手・役員"]
[null,null,null,null,null,null,null,null,null,null,null,null,null,null," 　　藤本　昭宏","選手・役員"]
[null,null,null,null,null,null,null,null,null,null,null,null,null,null," 　　芹生　昇","選手・役員"]
[null,null,null,null,null,null,null,null,null,null,null,null,null,null," 　　田口　和哉","選手・役員"]
[null,null,null,null,null,null,null,null,null,null,null,null,null,null," 　　藤本　悟","選手・役員"]
[null,null,null,null,null,null,null,null,null,null,null,null,null,null," 　　加藤　直哉","選手・役員"]
[null,null,null,null,null,null,null,null,null,null,null,null,null,null," 　　酒井　寿一","選手・役員"]
[null,null,null,null,null,null,null,null,null,null,null,null,null,null,"V　　池永　武史","選手・役員"]
[null,null,null,null,null,null,null,null,null,null,null,null,null,null,"V　　加藤　彰仁","選手・役員"]
[null,null,null,null,null,null,null,null,null,null,null,null,null,null,"V　　Ｎｉｅｄｅｒｂｅｒｇｅｒ　Ｃａｒｌｏ","選手・役員"]
[null,null,null,null,null,null,null,null,null,null,null,null,null,null,"V　　八木　佑介","選手・役員"]
[null,null,null,null,null,null,null,null,null,null,null,null,null,null,"V　　小出　晋","選手・役員"]
[null,null,null,null,null,null,null,null,null,null,null,null,null,null,"V　　青木　人志","選手・役員"]
[null,null,null,null,null,null,null,null,null,null,null,null,null,null,"V　　岡田　俊亮","選手・役員"]
[null,null,null,null,null,null,null,null,null,null,null,null,null,null,"V　　佐藤　智希","選手・役員"]
[null,null,null,null,null,null,null,null,null,null,null,null,null,null,"ハマクラブＢ"]
[null,null,null,null,null,null,null,null,null,null,null,null,null,null,"　 　大室　理沙","役員のみ"]
[null,null,null,null,null,null,null,null,null,null,null,null,null,null,"　 　小松　葵","役員のみ"]
[null,null,null,null,null,null,null,null,null,null,null,null,null,null," 　　長谷川　和弘","選手・役員"]
[null,null,null,null,null,null,null,null,null,null,null,null,null,null," 　　内田　信隆","選手・役員"]
[null,null,null,null,null,null,null,null,null,null,null,null,null,null,"V　　轟　啓介","選手・役員"]
[null,null,null,null,null,null,null,null,null,null,null,null,null,null,"V　　奥野　洋章","選手・役員"]
[null,null,null,null,null,null,null,null,null,null,null,null,null,null,"V　　吉羽　隆行","選手・役員"]
[null,null,null,null,null,null,null,null,null,null,null,null,null,null,"V　　大室　純太","選手・役員"]
[null,null,null,null,null,null,null,null,null,null,null,null,null,null,"V　　小田　拓史","選手・役員"]
[null,null,null,null,null,null,null,null,null,null,null,null,null,null,"V　　小竹　勇輝","選手・役員"]
[null,null,null,null,null,null,null,null,null,null,null,null,null,null,"V　　武井　充","選手・役員"]
[null,null,null,null,null,null,null,null,null,null,null,null,null,null,"V　　村山　弥","選手・役員"]
[null,null,null,null,null,null,null,null,null,null,null,null,null,null,"V　　虎岩　正典","選手・役員"]
[null,null,null,null,null,null,null,null,null,null,null,null,null,null,"V　　志村　慎次朗","選手・役員"]
[null,null,null,null,null,null,null,null,null,null,null,null,null,null,"V　　川嶋　翔太","選手・役員"]
[null,null,null,null,null,null,null,null,null,null,null,null,null,null,"V　　小松　湧暉","選手・役員"]
[null,null,null,null,null,null,null,null,null,null,null,null,null,null,"V　　川原　大樹","選手・役員"]
[null,null,null,null,null,null,null,null,null,null,null,null,null,null,"V　　西村　航平","選手・役員"]
[null,null,null,null,null,null,null,null,null,null,null,null,null,null,"横浜ガルズ"]
[null,null,null,null,null,null,null,null,null,null,null,null,null,null,"　 　生部　碧衣","役員のみ"]
[null,null,null,null,null,null,null,null,null,null,null,null,null,null,"　 　加藤　明日香","役員のみ"]
[null,null,null,null,null,null,null,null,null,null,null,null,null,null,"　 　渋井　菜々子","役員のみ"]
[null,null,null,null,null,null,null,null,null,null,null,null,null,null,"　 　川畑　心優","役員のみ"]
[null,null,null,null,null,null,null,null,null,null,null,null,null,null,"V　　佐藤　世安","選手・役員"]
[null,null,null,null,null,null,null,null,null,null,null,null,null,null,"V　　須田　雅彦","選手・役員"]
[null,null,null,null,null,null,null,null,null,null,null,null,null,null,"V　　八木　颯斗","選手・役員"]
[null,null,null,null,null,null,null,null,null,null,null,null,null,null,"V　　森　風雅","選手・役員"]
[null,null,null,null,null,null,null,null,null,null,null,null,null,null,"V　　森田　勇希","選手・役員"]
[null,null,null,null,null,null,null,null,null,null,null,null,null,null,"V　　勝田　遥空","選手・役員"]
[null,null,null,null,null,null,null,null,null,null,null,null,null,null,"V　　中下　真壯","選手・役員"]
[null,null,null,null,null,null,null,null,null,null,null,null,null,null,"V　　西村　龍太郎","選手・役員"]
[null,null,null,null,null,null,null,null,null,null,null,null,null,null,"V　　茂呂　倫弥","選手・役員"]
[null,null,null,null,null,null,null,null,null,null,null,null,null,null,"T　　有本　侑樹","選手・役員"]
[null,null,null,null,null,null,null,null,null,null,null,null,null,null,"V　　名雪　良","選手・役員"]
[null,null,null,null,null,null,null,null,null,null,null,null,null,null,"V　　佐々木　航","選手・役員"]
[null,null,null,null,null,null,null,null,null,null,null,null,null,null,"V　　西塚　創太","選手・役員"]
[null,null,null,null,null,null,null,null,null,null,null,null,null,null,"T　　奥田　創大","選手・役員"]
[null,null,null,null,null,null,null,null,null,null,null,null,null,null,"V　　冨澤　英寿","選手・役員"]
[null,null,null,null,null,null,null,null,null,null,null,null,null,null,"V　　田中　一成","選手・役員"]
[null,null,null,null,null,null,null,null,null,null,null,null,null,null,"V　　阪井　瞭介","選手・役員"]
[null,null,null,null,null,null,null,null,null,null,null,null,null,null,"スパイラルスケートクラブ"]
[null,null,null,null,null,null,null,null,null,null,null,null,null,null,"　 　東山　祐介","役員のみ"]
[null,null,null,null,null,null,null,null,null,null,null,null,null,null,"　 　細田　渉","役員のみ"]
[null,null,null,null,null,null,null,null,null,null,null,null,null,null," 　　酒井　丈嗣","選手・役員"]
[null,null,null,null,null,null,null,null,null,null,null,null,null,null," 　　下大沢　博之","選手・役員"]
[null,null,null,null,null,null,null,null,null,null,null,null,null,null," 　　田島　浩伸","選手・役員"]
[null,null,null,null,null,null,null,null,null,null,null,null,null,null," 　　久原　徹哉","選手・役員"]
[null,null,null,null,null,null,null,null,null,null,null,null,null,null," 　　山本　茂雄","選手・役員"]
[null,null,null,null,null,null,null,null,null,null,null,null,null,null," 　　栗林　良治","選手・役員"]
[null,null,null,null,null,null,null,null,null,null,null,null,null,null," 　　高橋　貞夫","選手・役員"]
[null,null,null,null,null,null,null,null,null,null,null,null,null,null," 　　神山　賢","選手・役員"]
[null,null,null,null,null,null,null,null,null,null,null,null,null,null," 　　大武　敏朗","選手・役員"]
[null,null,null,null,null,null,null,null,null,null,null,null,null,null," 　　須賀　淳一","選手・役員"]
[null,null,null,null,null,null,null,null,null,null,null,null,null,null," 　　加納　圭吾","選手・役員"]
[null,null,null,null,null,null,null,null,null,null,null,null,null,null," 　　冨樫　智輝","選手・役員"]
[null,null,null,null,null,null,null,null,null,null,null,null,null,null," 　　裏辻　秀樹","選手・役員"]
[null,null,null,null,null,null,null,null,null,null,null,null,null,null," 　　細谷　潤","選手・役員"]
[null,null,null,null,null,null,null,null,null,null,null,null,null,null," 　　今野　泰孝","選手・役員"]
[null,null,null,null,null,null,null,null,null,null,null,null,null,null," 　　三橋　修士","選手・役員"]
[null,null,null,null,null,null,null,null,null,null,null,null,null,null," 　　岡田　健司","選手・役員"]
[null,null,null,null,null,null,null,null,null,null,null,null,null,null,"V　　鳥居　信之介","選手・役員"]
[null,null,null,null,null,null,null,null,null,null,null,null,null,null,"V　　久保　周作","選手・役員"]
[null,null,null,null,null,null,null,null,null,null,null,null,null,null,"V　　瀧澤　洋平","選手・役員"]
[null,null,null,null,null,null,null,null,null,null,null,null,null,null,"ＹＯＫＯＨＡＭＡ　ＢＡＹ　ＪＡＺＺ"]
[null,null,null,null,null,null,null,null,null,null,null,null,null,null,"　 　下大沢　博之","役員のみ"]
[null,null,null,null,null,null,null,null,null,null,null,null,null,null,"　 　山本　茂雄","役員のみ"]
[null,null,null,null,null,null,null,null,null,null,null,null,null,null,"　 　神山　賢","役員のみ"]
[null,null,null,null,null,null,null,null,null,null,null,null,null,null,"　 　鳥居　信之介","役員のみ"]
[null,null,null,null,null,null,null,null,null,null,null,null,null,null," 　　近藤　健一","選手・役員"]
[null,null,null,null,null,null,null,null,null,null,null,null,null,null," 　　杉村　栄仁","選手・役員"]
[null,null,null,null,null,null,null,null,null,null,null,null,null,null,"V　　宇都宮　智宏","選手・役員"]
[null,null,null,null,null,null,null,null,null,null,null,null,null,null,"V　　富山　大輔","選手・役員"]
[null,null,null,null,null,null,null,null,null,null,null,null,null,null,"V　　山内　祐介","選手・役員"]
[null,null,null,null,null,null,null,null,null,null,null,null,null,null,"V　　東山　祐介","選手・役員"]
[null,null,null,null,null,null,null,null,null,null,null,null,null,null,"V　　須田　隆宏","選手・役員"]
[null,null,null,null,null,null,null,null,null,null,null,null,null,null,"V　　赤阪　彰吾","選手・役員"]
[null,null,null,null,null,null,null,null,null,null,null,null,null,null,"V　　横山　雄一","選手・役員"]
[null,null,null,null,null,null,null,null,null,null,null,null,null,null,"V　　増尾　圭悟","選手・役員"]
[null,null,null,null,null,null,null,null,null,null,null,null,null,null,"V　　細田　渉","選手・役員"]
[null,null,null,null,null,null,null,null,null,null,null,null,null,null,"V　　寺坂　仁芳","選手・役員"]
[null,null,null,null,null,null,null,null,null,null,null,null,null,null,"V　　亀田　真吾","選手・役員"]
[null,null,null,null,null,null,null,null,null,null,null,null,null,null,"V　　吉田　穣理","選手・役員"]
[null,null,null,null,null,null,null,null,null,null,null,null,null,null,"V　　濱野　集","選手・役員"]
[null,null,null,null,null,null,null,null,null,null,null,null,null,null,"V　　久保田　颯","選手・役員"]
[null,null,null,null,null,null,null,null,null,null,null,null,null,null,"V　　大野　勇次","選手・役員"]
[null,null,null,null,null,null,null,null,null,null,null,null,null,null,"V　　河田　哲弥","選手・役員"]
[null,null,null,null,null,null,null,null,null,null,null,null,null,null,"V　　藤井　佳佑","選手・役員"]
[null,null,null,null,null,null,null,null,null,null,null,null,null,null,"V　　田邊　凌","選手・役員"]
[null,null,null,null,null,null,null,null,null,null,null,null,null,null,"ＹＯＫＯＨＡＭＡ　ＢＡＹ　ＢＬＵＥＳ"]
[null,null,null,null,null,null,null,null,null,null,null,null,null,null,"　 　栗岡　辰典","役員のみ"]
[null,null,null,null,null,null,null,null,null,null,null,null,null,null,"　 　築地　可奈","役員のみ"]
[null,null,null,null,null,null,null,null,null,null,null,null,null,null," 　　宇佐美　信乃","選手・役員"]
[null,null,null,null,null,null,null,null,null,null,null,null,null,null," 　　竹味　利晃","選手・役員"]
[null,null,null,null,null,null,null,null,null,null,null,null,null,null," 　　神谷　雄己","選手・役員"]
[null,null,null,null,null,null,null,null,null,null,null,null,null,null,"V　　土屋　洋道","選手・役員"]
[null,null,null,null,null,null,null,null,null,null,null,null,null,null,"V　　原田　真吾","選手・役員"]
[null,null,null,null,null,null,null,null,null,null,null,null,null,null,"V　　諸星　北人","選手・役員"]
[null,null,null,null,null,null,null,null,null,null,null,null,null,null,"V　　百々　悠介","選手・役員"]
[null,null,null,null,null,null,null,null,null,null,null,null,null,null,"V　　石井　克政","選手・役員"]
[null,null,null,null,null,null,null,null,null,null,null,null,null,null,"V　　渡邊　健","選手・役員"]
[null,null,null,null,null,null,null,null,null,null,null,null,null,null,"V　　長石　将大","選手・役員"]
[null,null,null,null,null,null,null,null,null,null,null,null,null,null,"V　　山崎　喜貴","選手・役員"]
[null,null,null,null,null,null,null,null,null,null,null,null,null,null,"V　　佐藤　圭之輔","選手・役員"]
[null,null,null,null,null,null,null,null,null,null,null,null,null,null,"V　　伊藤　恵吾","選手・役員"]
[null,null,null,null,null,null,null,null,null,null,null,null,null,null,"V　　中村　明弘","選手・役員"]
[null,null,null,null,null,null,null,null,null,null,null,null,null,null,"V　　杉山　大輝","選手・役員"]
[null,null,null,null,null,null,null,null,null,null,null,null,null,null,"V　　大岩　輝彦","選手・役員"]
[null,null,null,null,null,null,null,null,null,null,null,null,null,null,"V　　伊藤　圭太","選手・役員"]
[null,null,null,null,null,null,null,null,null,null,null,null,null,null,"V　　金森　捷太","選手・役員"]
[null,null,null,null,null,null,null,null,null,null,null,null,null,null,"V　　伊藤　悠吾","選手・役員"]
[null,null,null,null,null,null,null,null,null,null,null,null,null,null,"V　　田島　和明","選手・役員"]
[null,null,null,null,null,null,null,null,null,null,null,null,null,null,"V　　半沢　俊樹","選手・役員"]
[null,null,null,null,null,null,null,null,null,null,null,null,null,null,"V　　下形　明賢","選手・役員"]
[null,null,null,null,null,null,null,null,null,null,null,null,null,null,"V　　能見　俊真","選手・役員"]
[null,null,null,null,null,null,null,null,null,null,null,null,null,null,"上條会Ｍａｏ’ｓ"]
[null,null,null,null,null,null,null,null,null,null,null,null,null,null,"　 　藤原　奈帆","役員のみ"]
[null,null,null,null,null,null,null,null,null,null,null,null,null,null,"　 　永春　里望","役員のみ"]
[null,null,null,null,null,null,null,null,null,null,null,null,null,null,"　 　土門　開耶","役員のみ"]
[null,null,null,null,null,null,null,null,null,null,null,null,null,null," 　　沢田　明真左","選手・役員"]
[null,null,null,null,null,null,null,null,null,null,null,null,null,null," 　　鍵和田　和明","選手・役員"]
[null,null,null,null,null,null,null,null,null,null,null,null,null,null," 　　萱嶋　誠","選手・役員"]
[null,null,null,null,null,null,null,null,null,null,null,null,null,null," 　　戸高　英明","選手・役員"]
[null,null,null,null,null,null,null,null,null,null,null,null,null,null,"V　　清水　謙介","選手・役員"]
[null,null,null,null,null,null,null,null,null,null,null,null,null,null,"V　　北野　真章","選手・役員"]
[null,null,null,null,null,null,null,null,null,null,null,null,null,null,"V　　三橋　正人","選手・役員"]
[null,null,null,null,null,null,null,null,null,null,null,null,null,null,"V　　小林　晴信","選手・役員"]
[null,null,null,null,null,null,null,null,null,null,null,null,null,null,"V　　浅海　太郎","選手・役員"]
[null,null,null,null,null,null,null,null,null,null,null,null,null,null,"V　　岡部　太郎","選手・役員"]
[null,null,null,null,null,null,null,null,null,null,null,null,null,null,"V　　山根　旭弘","選手・役員"]
[null,null,null,null,null,null,null,null,null,null,null,null,null,null,"V　　原　圭太","選手・役員"]
[null,null,null,null,null,null,null,null,null,null,null,null,null,null,"V　　山田　翔太","選手・役員"]
[null,null,null,null,null,null,null,null,null,null,null,null,null,null,"V　　川端　翔","選手・役員"]
[null,null,null,null,null,null,null,null,null,null,null,null,null,null,"V　　藤原　諒","選手・役員"]
[null,null,null,null,null,null,null,null,null,null,null,null,null,null,"V　　河合　兼朋","選手・役員"]
[null,null,null,null,null,null,null,null,null,null,null,null,null,null,"V　　大久保　颯人","選手・役員"]
[null,null,null,null,null,null,null,null,null,null,null,null,null,null,"V　　市瀬　達也","選手・役員"]
[null,null,null,null,null,null,null,null,null,null,null,null,null,null,"V　　高橋　龍ノ介","選手・役員"]
[null,null,null,null,null,null,null,null,null,null,null,null,null,null,"V　　竹村　颯","選手・役員"]
[null,null,null,null,null,null,null,null,null,null,null,null,null,null,"V　　海老原　聖大","選手・役員"]
[null,null,null,null,null,null,null,null,null,null,null,null,null,null,"V　　本多　歩維希","選手・役員"]
[null,null,null,null,null,null,null,null,null,null,null,null,null,null,"V　　吉田　幸太郎","選手・役員"]
[null,null,null,null,null,null,null,null,null,null,null,null,null,null,"常盤台ユベントス"]
[null,null,null,null,null,null,null,null,null,null,null,null,null,null,"　 　淵之上　光廣","役員のみ"]
[null,null,null,null,null,null,null,null,null,null,null,null,null,null,"　 　斉藤　昭彦","役員のみ"]
[null,null,null,null,null,null,null,null,null,null,null,null,null,null,"　 　野田　剛志","役員のみ"]
[null,null,null,null,null,null,null,null,null,null,null,null,null,null,"　 　鍋嶋　順子","役員のみ"]
[null,null,null,null,null,null,null,null,null,null,null,null,null,null," 　　Ｓｕｍｍｅｒｈａｙｓ　Ｇａｒｙ","選手・役員"]
[null,null,null,null,null,null,null,null,null,null,null,null,null,null,"V　　丹野　桂太","選手・役員"]
[null,null,null,null,null,null,null,null,null,null,null,null,null,null,"V　　小野　寿弥","選手・役員"]
[null,null,null,null,null,null,null,null,null,null,null,null,null,null,"V　　鈴木　秀治","選手・役員"]
[null,null,null,null,null,null,null,null,null,null,null,null,null,null,"V　　ホルト　ケビン","選手・役員"]
[null,null,null,null,null,null,null,null,null,null,null,null,null,null,"V　　深澤　友紀","選手・役員"]
[null,null,null,null,null,null,null,null,null,null,null,null,null,null,"V　　松谷　俊輔","選手・役員"]
[null,null,null,null,null,null,null,null,null,null,null,null,null,null,"V　　廣瀬　適汰","選手・役員"]
[null,null,null,null,null,null,null,null,null,null,null,null,null,null,"V　　大木　周","選手・役員"]
[null,null,null,null,null,null,null,null,null,null,null,null,null,null,"V　　松本　小次郎","選手・役員"]
[null,null,null,null,null,null,null,null,null,null,null,null,null,null,"V　　藤島　克也","選手・役員"]
[null,null,null,null,null,null,null,null,null,null,null,null,null,null,"V　　高瀬　友人","選手・役員"]
[null,null,null,null,null,null,null,null,null,null,null,null,null,null,"神奈川メープルリーフ　Ａ"]
[null,null,null,null,null,null,null,null,null,null,null,null,null,null,"　 　淵之上　光廣","役員のみ"]
[null,null,null,null,null,null,null,null,null,null,null,null,null,null,"　 　平間　初恵","役員のみ"]
[null,null,null,null,null,null,null,null,null,null,null,null,null,null,"　 　鍋嶋　順子","役員のみ"]
[null,null,null,null,null,null,null,null,null,null,null,null,null,null," 　　斉藤　昭彦","選手・役員"]
[null,null,null,null,null,null,null,null,null,null,null,null,null,null," 　　廣瀬　大介","選手・役員"]
[null,null,null,null,null,null,null,null,null,null,null,null,null,null," 　　野田　剛志","選手・役員"]
[null,null,null,null,null,null,null,null,null,null,null,null,null,null," 　　楠美　将来","選手・役員"]
[null,null,null,null,null,null,null,null,null,null,null,null,null,null," 　　戸井　康夫","選手・役員"]
[null,null,null,null,null,null,null,null,null,null,null,null,null,null," 　　黒岩　周一郎","選手・役員"]
[null,null,null,null,null,null,null,null,null,null,null,null,null,null," 　　佐藤　哲也","選手・役員"]
[null,null,null,null,null,null,null,null,null,null,null,null,null,null," 　　吉村　建太郎","選手・役員"]
[null,null,null,null,null,null,null,null,null,null,null,null,null,null," 　　飯塚　祐介","選手・役員"]
[null,null,null,null,null,null,null,null,null,null,null,null,null,null," 　　中村　謙太郎","選手・役員"]
[null,null,null,null,null,null,null,null,null,null,null,null,null,null,"V　　長谷川　公威","選手・役員"]
[null,null,null,null,null,null,null,null,null,null,null,null,null,null,"V　　渡邊　邦彦","選手・役員"]
[null,null,null,null,null,null,null,null,null,null,null,null,null,null,"V　　米田　富雄","選手・役員"]
[null,null,null,null,null,null,null,null,null,null,null,null,null,null,"V　　漆畑　豪","選手・役員"]
[null,null,null,null,null,null,null,null,null,null,null,null,null,null,"V　　宮脇　昇","選手・役員"]
[null,null,null,null,null,null,null,null,null,null,null,null,null,null,"V　　高木　哲","選手・役員"]
[null,null,null,null,null,null,null,null,null,null,null,null,null,null,"V　　小池　博之","選手・役員"]
[null,null,null,null,null,null,null,null,null,null,null,null,null,null,"V　　駒宮　愛朗","選手・役員"]
[null,null,null,null,null,null,null,null,null,null,null,null,null,null,"V　　北出　雅也","選手・役員"]
[null,null,null,null,null,null,null,null,null,null,null,null,null,null,"V　　種田　貴文","選手・役員"]
[null,null,null,null,null,null,null,null,null,null,null,null,null,null,"V　　平間　達也","選手・役員"]
[null,null,null,null,null,null,null,null,null,null,null,null,null,null,"V　　今埜　望","選手・役員"]
[null,null,null,null,null,null,null,null,null,null,null,null,null,null,"V　　平田　憲真","選手・役員"]
[null,null,null,null,null,null,null,null,null,null,null,null,null,null,"V　　藤田　遼河","選手・役員"]
[null,null,null,null,null,null,null,null,null,null,null,null,null,null,"神奈川メープルリーフ　Ｂ"]
[null,null,null,null,null,null,null,null,null,null,null,null,null,null,"　 　加納　諒","役員のみ"]
[null,null,null,null,null,null,null,null,null,null,null,null,null,null," 　　平塚　譲治","選手・役員"]
[null,null,null,null,null,null,null,null,null,null,null,null,null,null," 　　Ｇｉｕｆｆｒｅ　Ｔｈｏｍａｓ","選手・役員"]
[null,null,null,null,null,null,null,null,null,null,null,null,null,null," 　　Ｂａｌｍｕｔｈ　Ａｎｄｒｅｗ","選手・役員"]
[null,null,null,null,null,null,null,null,null,null,null,null,null,null," 　　ＫＯＵＨＩＡ　ＭＩＫＡ","選手・役員"]
[null,null,null,null,null,null,null,null,null,null,null,null,null,null," 　　MacGregor　Robert","選手・役員"]
[null,null,null,null,null,null,null,null,null,null,null,null,null,null," 　　後藤　仁","選手・役員"]
[null,null,null,null,null,null,null,null,null,null,null,null,null,null," 　　関川　秀一郎","選手・役員"]
[null,null,null,null,null,null,null,null,null,null,null,null,null,null," 　　Wolfe　Eric","選手・役員"]
[null,null,null,null,null,null,null,null,null,null,null,null,null,null," 　　Ｌｏｔｏｃｋｉ　Ｄａｖｉｄ","選手・役員"]
[null,null,null,null,null,null,null,null,null,null,null,null,null,null," 　　安部　浩明","選手・役員"]
[null,null,null,null,null,null,null,null,null,null,null,null,null,null," 　　Ｄｕｐｕｉｓ　Ｊａｍｉｅ","選手・役員"]
[null,null,null,null,null,null,null,null,null,null,null,null,null,null," 　　Anderson　Mikael","選手・役員"]
[null,null,null,null,null,null,null,null,null,null,null,null,null,null,"V　　Ｄｏｂｒｅｓｃｕ　Ａｒｒｏｎ","選手・役員"]
[null,null,null,null,null,null,null,null,null,null,null,null,null,null,"V　　後藤　雄真","選手・役員"]
[null,null,null,null,null,null,null,null,null,null,null,null,null,null,"V　　Ｄｕｒｋｅｅ　Ｊｏｅｌ","選手・役員"]
[null,null,null,null,null,null,null,null,null,null,null,null,null,null,"V　　赤堀　聡彦","選手・役員"]
[null,null,null,null,null,null,null,null,null,null,null,null,null,null,"V　　Ｖｅｒｓｉｃａｌ　Ｊｏｓｅｐｈ","選手・役員"]
[null,null,null,null,null,null,null,null,null,null,null,null,null,null,"V　　田中　修一郎","選手・役員"]
[null,null,null,null,null,null,null,null,null,null,null,null,null,null,"V　　Ｓｔａｒｏｓｔａ　Ｊｅｓｓｅ","選手・役員"]
[null,null,null,null,null,null,null,null,null,null,null,null,null,null,"V　　Lukasiewicz　Todd","選手・役員"]
[null,null,null,null,null,null,null,null,null,null,null,null,null,null,"V　　Ｎｅｓｔｌｅ　Ａｌｅｘａｎｄｅｒ","選手・役員"]
[null,null,null,null,null,null,null,null,null,null,null,null,null,null,"V　　東峰　拳","選手・役員"]
[null,null,null,null,null,null,null,null,null,null,null,null,null,null,"V　　Ｖｅｌｅｚ　Ｐａｔｒｉｃｋ","選手・役員"]
[null,null,null,null,null,null,null,null,null,null,null,null,null,null,"横浜JETS"]
[null,null,null,null,null,null,null,null,null,null,null,null,null,null,"　 　荻野　哲男","役員のみ"]
[null,null,null,null,null,null,null,null,null,null,null,null,null,null,"　 　荒木　理沙","役員のみ"]
[null,null,null,null,null,null,null,null,null,null,null,null,null,null," 　　坂井　康一郎","選手・役員"]
[null,null,null,null,null,null,null,null,null,null,null,null,null,null,"V　　鬼頭　穣","選手・役員"]
[null,null,null,null,null,null,null,null,null,null,null,null,null,null,"V　　田中　洋範","選手・役員"]
[null,null,null,null,null,null,null,null,null,null,null,null,null,null,"V　　栗谷　達郎","選手・役員"]
[null,null,null,null,null,null,null,null,null,null,null,null,null,null,"V　　石神　翔平","選手・役員"]
[null,null,null,null,null,null,null,null,null,null,null,null,null,null,"V　　大下　正明","選手・役員"]
[null,null,null,null,null,null,null,null,null,null,null,null,null,null,"V　　伊東　哲志","選手・役員"]
[null,null,null,null,null,null,null,null,null,null,null,null,null,null,"V　　永塚　勇斗","選手・役員"]
[null,null,null,null,null,null,null,null,null,null,null,null,null,null,"V　　中村　修大","選手・役員"]
[null,null,null,null,null,null,null,null,null,null,null,null,null,null,"V　　李　昌河","選手・役員"]
[null,null,null,null,null,null,null,null,null,null,null,null,null,null,"V　　松村　夏海","選手・役員"]
[null,null,null,null,null,null,null,null,null,null,null,null,null,null,"V　　吉原　純徳","選手・役員"]
[null,null,null,null,null,null,null,null,null,null,null,null,null,null,"V　　山内　拓海","選手・役員"]
[null,null,null,null,null,null,null,null,null,null,null,null,null,null,"V　　福井　健太郎","選手・役員"]
[null,null,null,null,null,null,null,null,null,null,null,null,null,null,"V　　田中　涼","選手・役員"]
[null,null,null,null,null,null,null,null,null,null,null,null,null,null,"V　　上野　葵斗","選手・役員"]
[null,null,null,null,null,null,null,null,null,null,null,null,null,null,"V　　南山　剣大","選手・役員"]
[null,null,null,null,null,null,null,null,null,null,null,null,null,null,"V　　水野　侑武","選手・役員"]
[null,null,null,null,null,null,null,null,null,null,null,null,null,null,"V　　榎本　郷佑","選手・役員"]
[null,null,null,null,null,null,null,null,null,null,null,null,null,null,"Ｍａｖｅｒｉｃｋｓ"]
[null,null,null,null,null,null,null,null,null,null,null,null,null,null,"　 　吾妻　めぐみ","役員のみ"]
[null,null,null,null,null,null,null,null,null,null,null,null,null,null,"　 　松井　郁実","役員のみ"]
[null,null,null,null,null,null,null,null,null,null,null,null,null,null,"　 　神谷　想比亜","役員のみ"]
[null,null,null,null,null,null,null,null,null,null,null,null,null,null," 　　武井　康博","選手・役員"]
[null,null,null,null,null,null,null,null,null,null,null,null,null,null," 　　吉田　英宏","選手・役員"]
[null,null,null,null,null,null,null,null,null,null,null,null,null,null," 　　Ｌｏｎｇｃｏｐｅ　Ｐｅｔｅｒ","選手・役員"]
[null,null,null,null,null,null,null,null,null,null,null,null,null,null," 　　小南　正春","選手・役員"]
[null,null,null,null,null,null,null,null,null,null,null,null,null,null," 　　高林　健","選手・役員"]
[null,null,null,null,null,null,null,null,null,null,null,null,null,null," 　　宮寺　和之","選手・役員"]
[null,null,null,null,null,null,null,null,null,null,null,null,null,null," 　　清水　和人","選手・役員"]
[null,null,null,null,null,null,null,null,null,null,null,null,null,null," 　　竹村　康","選手・役員"]
[null,null,null,null,null,null,null,null,null,null,null,null,null,null," 　　中藪　暢宏","選手・役員"]
[null,null,null,null,null,null,null,null,null,null,null,null,null,null," 　　佐久間　剛","選手・役員"]
[null,null,null,null,null,null,null,null,null,null,null,null,null,null,"V　　横田　英剛","選手・役員"]
[null,null,null,null,null,null,null,null,null,null,null,null,null,null,"V　　野坂　和正","選手・役員"]
[null,null,null,null,null,null,null,null,null,null,null,null,null,null,"V　　足立　敦俊","選手・役員"]
[null,null,null,null,null,null,null,null,null,null,null,null,null,null,"V　　長柄　君志","選手・役員"]
[null,null,null,null,null,null,null,null,null,null,null,null,null,null,"V　　山梨　雄一","選手・役員"]
[null,null,null,null,null,null,null,null,null,null,null,null,null,null,"V　　和田　等","選手・役員"]
[null,null,null,null,null,null,null,null,null,null,null,null,null,null,"V　　坂上　永悟","選手・役員"]
[null,null,null,null,null,null,null,null,null,null,null,null,null,null,"V　　臼田　高志","選手・役員"]
[null,null,null,null,null,null,null,null,null,null,null,null,null,null,"V　　益田　丈輔","選手・役員"]
[null,null,null,null,null,null,null,null,null,null,null,null,null,null,"V　　佐藤　晃平","選手・役員"]
[null,null,null,null,null,null,null,null,null,null,null,null,null,null,"V　　京野　新達","選手・役員"]
[null,null,null,null,null,null,null,null,null,null,null,null,null,null,"V　　小林　太郎","選手・役員"]
[null,null,null,null,null,null,null,null,null,null,null,null,null,null,"V　　小南　亮太","選手・役員"]
[null,null,null,null,null,null,null,null,null,null,null,null,null,null,"V　　本間　竜太郎","選手・役員"]
[null,null,null,null,null,null,null,null,null,null,null,null,null,null,"V　　金子　純平","選手・役員"]
[null,null,null,null,null,null,null,null,null,null,null,null,null,null,"V　　宮下　祐真","選手・役員"]
[null,null,null,null,null,null,null,null,null,null,null,null,null,null,"V　　菊川　篤郎","選手・役員"]
[null,null,null,null,null,null,null,null,null,null,null,null,null,null,"日産自動車ピストンズ"]
[null,null,null,null,null,null,null,null,null,null,null,null,null,null,"　 　北川　邦晴","役員のみ"]
[null,null,null,null,null,null,null,null,null,null,null,null,null,null," 　　小西　勇二","選手・役員"]
[null,null,null,null,null,null,null,null,null,null,null,null,null,null," 　　荻野　哲男","選手・役員"]
[null,null,null,null,null,null,null,null,null,null,null,null,null,null," 　　鈴木　仁","選手・役員"]
[null,null,null,null,null,null,null,null,null,null,null,null,null,null," 　　石川　誠","選手・役員"]
[null,null,null,null,null,null,null,null,null,null,null,null,null,null," 　　中妻　孝之","選手・役員"]
[null,null,null,null,null,null,null,null,null,null,null,null,null,null," 　　平野　実紀雄","選手・役員"]
[null,null,null,null,null,null,null,null,null,null,null,null,null,null," 　　花本　孝治","選手・役員"]
[null,null,null,null,null,null,null,null,null,null,null,null,null,null," 　　中山　泰三","選手・役員"]
[null,null,null,null,null,null,null,null,null,null,null,null,null,null," 　　渡邊　浩平","選手・役員"]
[null,null,null,null,null,null,null,null,null,null,null,null,null,null," 　　青木　理","選手・役員"]
[null,null,null,null,null,null,null,null,null,null,null,null,null,null," 　　奈良　康博","選手・役員"]
[null,null,null,null,null,null,null,null,null,null,null,null,null,null," 　　城島　景明","選手・役員"]
[null,null,null,null,null,null,null,null,null,null,null,null,null,null," 　　山口　純一","選手・役員"]
[null,null,null,null,null,null,null,null,null,null,null,null,null,null,"V　　石崎　貴寛","選手・役員"]
[null,null,null,null,null,null,null,null,null,null,null,null,null,null,"V　　大島　崇","選手・役員"]
[null,null,null,null,null,null,null,null,null,null,null,null,null,null,"V　　岩淵　真悟","選手・役員"]
[null,null,null,null,null,null,null,null,null,null,null,null,null,null,"V　　窪田　昌佳","選手・役員"]
[null,null,null,null,null,null,null,null,null,null,null,null,null,null,"ENEOS WAVES"]
[null,null,null,null,null,null,null,null,null,null,null,null,null,null,"　 　田島　その佳","役員のみ"]
[null,null,null,null,null,null,null,null,null,null,null,null,null,null,"　 　新村　翔太","役員のみ"]
[null,null,null,null,null,null,null,null,null,null,null,null,null,null," 　　下山　浩二","選手・役員"]
[null,null,null,null,null,null,null,null,null,null,null,null,null,null," 　　佐藤　茂之","選手・役員"]
[null,null,null,null,null,null,null,null,null,null,null,null,null,null,"V　　西村　パトリック","選手・役員"]
[null,null,null,null,null,null,null,null,null,null,null,null,null,null,"V　　水庭　宜隆","選手・役員"]
[null,null,null,null,null,null,null,null,null,null,null,null,null,null,"V　　荒木　卓三","選手・役員"]
[null,null,null,null,null,null,null,null,null,null,null,null,null,null,"V　　佐藤　謙治","選手・役員"]
[null,null,null,null,null,null,null,null,null,null,null,null,null,null,"V　　新村　正哉","選手・役員"]
[null,null,null,null,null,null,null,null,null,null,null,null,null,null,"V　　今井田　拓也","選手・役員"]
[null,null,null,null,null,null,null,null,null,null,null,null,null,null,"V　　湯山　元太","選手・役員"]
[null,null,null,null,null,null,null,null,null,null,null,null,null,null,"V　　叶多　洸大","選手・役員"]
[null,null,null,null,null,null,null,null,null,null,null,null,null,null,"V　　笛木　雄太","選手・役員"]
[null,null,null,null,null,null,null,null,null,null,null,null,null,null,"V　　石渡　逸成","選手・役員"]
[null,null,null,null,null,null,null,null,null,null,null,null,null,null,"箱根クラブ"]
[null,null,null,null,null,null,null,null,null,null,null,null,null,null,"　 　二見　穏彰","役員のみ"]
[null,null,null,null,null,null,null,null,null,null,null,null,null,null,"　 　金田一　千春","役員のみ"]
[null,null,null,null,null,null,null,null,null,null,null,null,null,null," 　　大迫　健","選手・役員"]
[null,null,null,null,null,null,null,null,null,null,null,null,null,null," 　　吉田　裕司","選手・役員"]
[null,null,null,null,null,null,null,null,null,null,null,null,null,null," 　　内田　貴典","選手・役員"]
[null,null,null,null,null,null,null,null,null,null,null,null,null,null," 　　La Cara　Eric","選手・役員"]
[null,null,null,null,null,null,null,null,null,null,null,null,null,null,"V　　平田　昌義","選手・役員"]
[null,null,null,null,null,null,null,null,null,null,null,null,null,null,"V　　加畑　大輔","選手・役員"]
[null,null,null,null,null,null,null,null,null,null,null,null,null,null,"V　　平山　隆介","選手・役員"]
[null,null,null,null,null,null,null,null,null,null,null,null,null,null,"V　　今村　賢志","選手・役員"]
[null,null,null,null,null,null,null,null,null,null,null,null,null,null,"V　　浅井　崇太","選手・役員"]
[null,null,null,null,null,null,null,null,null,null,null,null,null,null,"V　　Eriksson　Ken","選手・役員"]
[null,null,null,null,null,null,null,null,null,null,null,null,null,null,"V　　堀　高誌","選手・役員"]
[null,null,null,null,null,null,null,null,null,null,null,null,null,null,"V　　原　達也","選手・役員"]
[null,null,null,null,null,null,null,null,null,null,null,null,null,null,"V　　館田　隼","選手・役員"]
[null,null,null,null,null,null,null,null,null,null,null,null,null,null,"V　　Adamson　Christopher","選手・役員"]
[null,null,null,null,null,null,null,null,null,null,null,null,null,null,"V　　古野　駿","選手・役員"]
[null,null,null,null,null,null,null,null,null,null,null,null,null,null,"V　　La Cara　Toma","選手・役員"]
[null,null,null,null,null,null,null,null,null,null,null,null,null,null,"V　　片桐　士慧瑠","選手・役員"]
[null,null,null,null,null,null,null,null,null,null,null,null,null,null,"V　　森　隼涼","選手・役員"]
[null,null,null,null,null,null,null,null,null,null,null,null,null,null,"富士通ＲＥＤ　ＢＵＬＬＥＴＳ"]
[null,null,null,null,null,null,null,null,null,null,null,null,null,null," 　　古川　浩史","選手・役員"]
[null,null,null,null,null,null,null,null,null,null,null,null,null,null," 　　菊地　雄三","選手・役員"]
[null,null,null,null,null,null,null,null,null,null,null,null,null,null," 　　杉立　淳","選手・役員"]
[null,null,null,null,null,null,null,null,null,null,null,null,null,null,"V　　大島　泰平","選手・役員"]
[null,null,null,null,null,null,null,null,null,null,null,null,null,null,"V　　佐藤　圭","選手・役員"]
[null,null,null,null,null,null,null,null,null,null,null,null,null,null,"V　　河村　啓介","選手・役員"]
[null,null,null,null,null,null,null,null,null,null,null,null,null,null,"V　　星野　敦生","選手・役員"]
[null,null,null,null,null,null,null,null,null,null,null,null,null,null,"V　　杉本　大","選手・役員"]
[null,null,null,null,null,null,null,null,null,null,null,null,null,null,"V　　江島　明彦","選手・役員"]
[null,null,null,null,null,null,null,null,null,null,null,null,null,null,"V　　村田　真","選手・役員"]
[null,null,null,null,null,null,null,null,null,null,null,null,null,null,"V　　布澤　隼人","選手・役員"]
[null,null,null,null,null,null,null,null,null,null,null,null,null,null,"V　　乗越　理俊","選手・役員"]
[null,null,null,null,null,null,null,null,null,null,null,null,null,null,"V　　中村　啓一","選手・役員"]
[null,null,null,null,null,null,null,null,null,null,null,null,null,null,"V　　高橋　京太","選手・役員"]
[null,null,null,null,null,null,null,null,null,null,null,null,null,null,"V　　丸山　朋宏","選手・役員"]
[null,null,null,null,null,null,null,null,null,null,null,null,null,null,"V　　藤井　洋平","選手・役員"]
[null,null,null,null,null,null,null,null,null,null,null,null,null,null,"V　　内藤　洋平","選手・役員"]
[null,null,null,null,null,null,null,null,null,null,null,null,null,null,"V　　倉本　健史","選手・役員"]
[null,null,null,null,null,null,null,null,null,null,null,null,null,null,"V　　明田　優大","選手・役員"]
[null,null,null,null,null,null,null,null,null,null,null,null,null,null,"ゼロックス・アイスホッケークラブ"]
[null,null,null,null,null,null,null,null,null,null,null,null,null,null,"　 　堀越　彰子","役員のみ"]
[null,null,null,null,null,null,null,null,null,null,null,null,null,null,"　 　中山　伸子","役員のみ"]
[null,null,null,null,null,null,null,null,null,null,null,null,null,null," 　　田口　雄一","選手・役員"]
[null,null,null,null,null,null,null,null,null,null,null,null,null,null," 　　坪山　睦","選手・役員"]
[null,null,null,null,null,null,null,null,null,null,null,null,null,null," 　　田邊　啓太","選手・役員"]
[null,null,null,null,null,null,null,null,null,null,null,null,null,null,"V　　菊地　竜次","選手・役員"]
[null,null,null,null,null,null,null,null,null,null,null,null,null,null,"V　　池田　博俊","選手・役員"]
[null,null,null,null,null,null,null,null,null,null,null,null,null,null,"V　　川越　祥樹","選手・役員"]
[null,null,null,null,null,null,null,null,null,null,null,null,null,null,"V　　佐藤　慎吾","選手・役員"]
[null,null,null,null,null,null,null,null,null,null,null,null,null,null,"V　　畠山　悠","選手・役員"]
[null,null,null,null,null,null,null,null,null,null,null,null,null,null,"V　　江本　精二","選手・役員"]
[null,null,null,null,null,null,null,null,null,null,null,null,null,null,"V　　大泉　泰志","選手・役員"]
[null,null,null,null,null,null,null,null,null,null,null,null,null,null,"V　　西垣　匡人","選手・役員"]
[null,null,null,null,null,null,null,null,null,null,null,null,null,null,"V　　藤井　飛翔","選手・役員"]
[null,null,null,null,null,null,null,null,null,null,null,null,null,null,"V　　迫中　兼吾","選手・役員"]
[null,null,null,null,null,null,null,null,null,null,null,null,null,null,"V　　尾崎　亮介","選手・役員"]
[null,null,null,null,null,null,null,null,null,null,null,null,null,null,"V　　加藤　優斗","選手・役員"]
[null,null,null,null,null,null,null,null,null,null,null,null,null,null,"V　　山極　隆覚","選手・役員"]
[null,null,null,null,null,null,null,null,null,null,null,null,null,null,"V　　ダワードルジ　トゥブデンドルジ","選手・役員"]
[null,null,null,null,null,null,null,null,null,null,null,null,null,null,"Ｂ．Ｂ．ＫＩＮＧＳ"]
[null,null,null,null,null,null,null,null,null,null,null,null,null,null,"　 　早野　知美","役員のみ"]
[null,null,null,null,null,null,null,null,null,null,null,null,null,null,"　 　池田　あや","役員のみ"]
[null,null,null,null,null,null,null,null,null,null,null,null,null,null,"　 　長島　利行","役員のみ"]
[null,null,null,null,null,null,null,null,null,null,null,null,null,null," 　　渡辺　浩彰","選手・役員"]
[null,null,null,null,null,null,null,null,null,null,null,null,null,null," 　　西海　敬恭","選手・役員"]
[null,null,null,null,null,null,null,null,null,null,null,null,null,null," 　　神保　剛","選手・役員"]
[null,null,null,null,null,null,null,null,null,null,null,null,null,null," 　　佐藤　慎","選手・役員"]
[null,null,null,null,null,null,null,null,null,null,null,null,null,null," 　　余宮　賢","選手・役員"]
[null,null,null,null,null,null,null,null,null,null,null,null,null,null," 　　池田　隆","選手・役員"]
[null,null,null,null,null,null,null,null,null,null,null,null,null,null," 　　清水　尚樹","選手・役員"]
[null,null,null,null,null,null,null,null,null,null,null,null,null,null," 　　吉岡　俊介","選手・役員"]
[null,null,null,null,null,null,null,null,null,null,null,null,null,null," 　　田口　篤史","選手・役員"]
[null,null,null,null,null,null,null,null,null,null,null,null,null,null,"V　　今野　賢治","選手・役員"]
[null,null,null,null,null,null,null,null,null,null,null,null,null,null,"V　　生駒　陽一郎","選手・役員"]
[null,null,null,null,null,null,null,null,null,null,null,null,null,null,"V　　村田　行謙","選手・役員"]
[null,null,null,null,null,null,null,null,null,null,null,null,null,null,"V　　柊　一哉","選手・役員"]
[null,null,null,null,null,null,null,null,null,null,null,null,null,null,"V　　谷田貝　晃大","選手・役員"]
[null,null,null,null,null,null,null,null,null,null,null,null,null,null,"ロックホッパーペンギンズ"]
[null,null,null,null,null,null,null,null,null,null,null,null,null,null,"　 　星野　和美","役員のみ"]
[null,null,null,null,null,null,null,null,null,null,null,null,null,null,"　 　長岡　彩子","役員のみ"]
[null,null,null,null,null,null,null,null,null,null,null,null,null,null,"　 　田中　志乃","役員のみ"]
[null,null,null,null,null,null,null,null,null,null,null,null,null,null," 　　長谷川　滋","選手・役員"]
[null,null,null,null,null,null,null,null,null,null,null,null,null,null," 　　田中　直樹","選手・役員"]
[null,null,null,null,null,null,null,null,null,null,null,null,null,null," 　　青木　丈夫","選手・役員"]
[null,null,null,null,null,null,null,null,null,null,null,null,null,null," 　　藤波　一典","選手・役員"]
[null,null,null,null,null,null,null,null,null,null,null,null,null,null," 　　奥澤　智明","選手・役員"]
[null,null,null,null,null,null,null,null,null,null,null,null,null,null," 　　長岡　正樹","選手・役員"]
[null,null,null,null,null,null,null,null,null,null,null,null,null,null," 　　黒澤　大介","選手・役員"]
[null,null,null,null,null,null,null,null,null,null,null,null,null,null," 　　小倉　実","選手・役員"]
[null,null,null,null,null,null,null,null,null,null,null,null,null,null," 　　斉藤　徳史","選手・役員"]
[null,null,null,null,null,null,null,null,null,null,null,null,null,null," 　　田中　哲治","選手・役員"]
[null,null,null,null,null,null,null,null,null,null,null,null,null,null," 　　小泉　康理","選手・役員"]
[null,null,null,null,null,null,null,null,null,null,null,null,null,null,"V　　垣平　祐基","選手・役員"]
[null,null,null,null,null,null,null,null,null,null,null,null,null,null,"V　　村山　貴弘","選手・役員"]
[null,null,null,null,null,null,null,null,null,null,null,null,null,null,"V　　鈴木　大智","選手・役員"]
[null,null,null,null,null,null,null,null,null,null,null,null,null,null,"V　　安達　健太郎","選手・役員"]
[null,null,null,null,null,null,null,null,null,null,null,null,null,null,"V　　尾関　俊介","選手・役員"]
[null,null,null,null,null,null,null,null,null,null,null,null,null,null,"V　　小幡　優佑","選手・役員"]
[null,null,null,null,null,null,null,null,null,null,null,null,null,null,"Big Buzz"]
[null,null,null,null,null,null,null,null,null,null,null,null,null,null,"　 　北尾　暁江","役員のみ"]
[null,null,null,null,null,null,null,null,null,null,null,null,null,null,"　 　渡邊　百合子","役員のみ"]
[null,null,null,null,null,null,null,null,null,null,null,null,null,null,"　 　村松　薫","役員のみ"]
[null,null,null,null,null,null,null,null,null,null,null,null,null,null," 　　石橋　俊基","選手・役員"]
[null,null,null,null,null,null,null,null,null,null,null,null,null,null," 　　高橋　俊勝","選手・役員"]
[null,null,null,null,null,null,null,null,null,null,null,null,null,null," 　　宇佐美　孝忠","選手・役員"]
[null,null,null,null,null,null,null,null,null,null,null,null,null,null," 　　森田　修一","選手・役員"]
[null,null,null,null,null,null,null,null,null,null,null,null,null,null,"V　　崎山　剛","選手・役員"]
[null,null,null,null,null,null,null,null,null,null,null,null,null,null,"V　　林　慎一郎","選手・役員"]
[null,null,null,null,null,null,null,null,null,null,null,null,null,null,"V　　永島　亮","選手・役員"]
[null,null,null,null,null,null,null,null,null,null,null,null,null,null,"V　　諸橋　岳","選手・役員"]
[null,null,null,null,null,null,null,null,null,null,null,null,null,null,"V　　相馬　正寛","選手・役員"]
[null,null,null,null,null,null,null,null,null,null,null,null,null,null,"V　　上原　圭祐","選手・役員"]
[null,null,null,null,null,null,null,null,null,null,null,null,null,null,"V　　野口　光希","選手・役員"]
[null,null,null,null,null,null,null,null,null,null,null,null,null,null,"V　　野本　大志","選手・役員"]
[null,null,null,null,null,null,null,null,null,null,null,null,null,null,"V　　伊藤　翔太","選手・役員"]
[null,null,null,null,null,null,null,null,null,null,null,null,null,null,"V　　川田　泰我","選手・役員"]
[null,null,null,null,null,null,null,null,null,null,null,null,null,null,"ハマクラブA"]
[null,null,null,null,null,null,null,null,null,null,null,null,null,null,"　 　高橋　幸則","選手・役員"]
[null,null,null,null,null,null,null,null,null,null,null,null,null,null,"　 　高橋　多恵子","選手・役員"]
[null,null,null,null,null,null,null,null,null,null,null,null,null,null,"　 　馬場　康平","選手・役員"]
[null,null,null,null,null,null,null,null,null,null,null,null,null,null," 　　馬場　浩","選手・役員"]
[null,null,null,null,null,null,null,null,null,null,null,null,null,null,"V　　広瀬　健太郎","選手・役員"]
[null,null,null,null,null,null,null,null,null,null,null,null,null,null,"V　　梅原　弘幸","選手・役員"]
[null,null,null,null,null,null,null,null,null,null,null,null,null,null,"V　　生田　和之","選手・役員"]
[null,null,null,null,null,null,null,null,null,null,null,null,null,null,"V　　前田　晋吾","選手・役員"]
[null,null,null,null,null,null,null,null,null,null,null,null,null,null,"V　　加藤　翔太","選手・役員"]
[null,null,null,null,null,null,null,null,null,null,null,null,null,null,"V　　矢野　泰良","選手・役員"]
[null,null,null,null,null,null,null,null,null,null,null,null,null,null,"V　　佐藤　秀斗","選手・役員"]
[null,null,null,null,null,null,null,null,null,null,null,null,null,null,"V　　松原　虎風","選手・役員"]
[null,null,null,null,null,null,null,null,null,null,null,null,null,null,"V　　岩崎　拓斗","選手・役員"]
[null,null,null,null,null,null,null,null,null,null,null,null,null,null,"V　　栗田　孟龍","選手・役員"]
[null,null,null,null,null,null,null,null,null,null,null,null,null,null,"V　　戸田　一世","選手・役員"]
[null,null,null,null,null,null,null,null,null,null,null,null,null,null,"V　　梅原　翼","選手・役員"]
[null,null,null,null,null,null,null,null,null,null,null,null,null,null,"V　　高橋　凛之介","選手・役員"]
[null,null,null,null,null,null,null,null,null,null,null,null,null,null,"T　　梅原　柊翔","選手・役員"]
[null,null,null,null,null,null,null,null,null,null,null,null,null,null,"アイスバンディッツ"]
[null,null,null,null,null,null,null,null,null,null,null,null,null,null,"　 　田中　伸史","役員のみ"]
[null,null,null,null,null,null,null,null,null,null,null,null,null,null,"　 　折目　啓伯","役員のみ"]
[null,null,null,null,null,null,null,null,null,null,null,null,null,null,"　 　小山田　晃","役員のみ"]
[null,null,null,null,null,null,null,null,null,null,null,null,null,null," 　　星野　敬司","選手・役員"]
[null,null,null,null,null,null,null,null,null,null,null,null,null,null," 　　原口　信也","選手・役員"]
[null,null,null,null,null,null,null,null,null,null,null,null,null,null," 　　西村　憲","選手・役員"]
[null,null,null,null,null,null,null,null,null,null,null,null,null,null," 　　駒井　巌","選手・役員"]
[null,null,null,null,null,null,null,null,null,null,null,null,null,null," 　　木下　和則","選手・役員"]
[null,null,null,null,null,null,null,null,null,null,null,null,null,null," 　　岩本　純","選手・役員"]
[null,null,null,null,null,null,null,null,null,null,null,null,null,null," 　　賀川　寛之","選手・役員"]
[null,null,null,null,null,null,null,null,null,null,null,null,null,null," 　　塩谷　雅之","選手・役員"]
[null,null,null,null,null,null,null,null,null,null,null,null,null,null," 　　次田　智一","選手・役員"]
[null,null,null,null,null,null,null,null,null,null,null,null,null,null," 　　岸田　孝広","選手・役員"]
[null,null,null,null,null,null,null,null,null,null,null,null,null,null," 　　勝山　栄","選手・役員"]
[null,null,null,null,null,null,null,null,null,null,null,null,null,null,"V　　川口　健司","選手・役員"]
[null,null,null,null,null,null,null,null,null,null,null,null,null,null,"V　　萩原　拓","選手・役員"]
[null,null,null,null,null,null,null,null,null,null,null,null,null,null,"V　　大塚　純","選手・役員"]
[null,null,null,null,null,null,null,null,null,null,null,null,null,null,"V　　岩崎　佑樹","選手・役員"]
[null,null,null,null,null,null,null,null,null,null,null,null,null,null,"V　　鈴木　政洋","選手・役員"]
[null,null,null,null,null,null,null,null,null,null,null,null,null,null,"V　　松本　知之","選手・役員"]
[null,null,null,null,null,null,null,null,null,null,null,null,null,null,"V　　長尾　翔太","選手・役員"]
[null,null,null,null,null,null,null,null,null,null,null,null,null,null,"V　　田村　宙志","選手・役員"]
[null,null,null,null,null,null,null,null,null,null,null,null,null,null,"S Lightning"]
[null,null,null,null,null,null,null,null,null,null,null,null,null,null,"　 　早川　裕美","役員のみ"]
[null,null,null,null,null,null,null,null,null,null,null,null,null,null,"　 　黒木　彩加","役員のみ"]
[null,null,null,null,null,null,null,null,null,null,null,null,null,null,"　 　松下　笑","役員のみ"]
[null,null,null,null,null,null,null,null,null,null,null,null,null,null,"V　　山田　和範","選手・役員"]
[null,null,null,null,null,null,null,null,null,null,null,null,null,null,"V　　大森　正輝","選手・役員"]
[null,null,null,null,null,null,null,null,null,null,null,null,null,null,"V　　佐藤　文彦","選手・役員"]
[null,null,null,null,null,null,null,null,null,null,null,null,null,null,"V　　吉澤　幸次郎","選手・役員"]
[null,null,null,null,null,null,null,null,null,null,null,null,null,null,"V　　小澤　博史","選手・役員"]
[null,null,null,null,null,null,null,null,null,null,null,null,null,null,"V　　齊藤　慶介","選手・役員"]
[null,null,null,null,null,null,null,null,null,null,null,null,null,null,"V　　岡崎　淳司","選手・役員"]
[null,null,null,null,null,null,null,null,null,null,null,null,null,null,"V　　村木　亮","選手・役員"]
[null,null,null,null,null,null,null,null,null,null,null,null,null,null,"V　　平松　靖隆","選手・役員"]
[null,null,null,null,null,null,null,null,null,null,null,null,null,null,"V　　朝倉　嘉彦","選手・役員"]
[null,null,null,null,null,null,null,null,null,null,null,null,null,null,"V　　鈴木　竜斗","選手・役員"]
[null,null,null,null,null,null,null,null,null,null,null,null,null,null,"V　　河北　光","選手・役員"]
[null,null,null,null,null,null,null,null,null,null,null,null,null,null,"V　　上井　大舟","選手・役員"]
[null,null,null,null,null,null,null,null,null,null,null,null,null,null,"V　　高岸　龍之介","選手・役員"]
[null,null,null,null,null,null,null,null,null,null,null,null,null,null,"V　　横田　崚","選手・役員"]
[null,null,null,null,null,null,null,null,null,null,null,null,null,null,"V　　甲田　柊馬","選手・役員"]
[null,null,null,null,null,null,null,null,null,null,null,null,null,null,"V　　近田　一哲","選手・役員"]
[null,null,null,null,null,null,null,null,null,null,null,null,null,null,"BERKS"]
[null,null,null,null,null,null,null,null,null,null,null,null,null,null,"　 　前田　晶子","役員のみ"]
[null,null,null,null,null,null,null,null,null,null,null,null,null,null," 　　東山　俊男","選手・役員"]
[null,null,null,null,null,null,null,null,null,null,null,null,null,null," 　　福島　敏弘","選手・役員"]
[null,null,null,null,null,null,null,null,null,null,null,null,null,null," 　　藤野　威","選手・役員"]
[null,null,null,null,null,null,null,null,null,null,null,null,null,null," 　　前田　洋介","選手・役員"]
[null,null,null,null,null,null,null,null,null,null,null,null,null,null," 　　谷　一将","選手・役員"]
[null,null,null,null,null,null,null,null,null,null,null,null,null,null,"V　　大山　訓弘","選手・役員"]
[null,null,null,null,null,null,null,null,null,null,null,null,null,null,"V　　森田　真佐宏","選手・役員"]
[null,null,null,null,null,null,null,null,null,null,null,null,null,null,"V　　東海林　孝光","選手・役員"]
[null,null,null,null,null,null,null,null,null,null,null,null,null,null,"V　　山口　鉄平","選手・役員"]
[null,null,null,null,null,null,null,null,null,null,null,null,null,null,"V　　金入　常郎","選手・役員"]
[null,null,null,null,null,null,null,null,null,null,null,null,null,null,"V　　但木　雄大","選手・役員"]
[null,null,null,null,null,null,null,null,null,null,null,null,null,null,"V　　Olszyk　Matt","選手・役員"]
[null,null,null,null,null,null,null,null,null,null,null,null,null,null,"V　　Ｃｏｌｕｃｃｉ　Ｃｈｒｉｓｔｏｐｈｅｒ","選手・役員"]
[null,null,null,null,null,null,null,null,null,null,null,null,null,null,"V　　小田桐　浩希","選手・役員"]
[null,null,null,null,null,null,null,null,null,null,null,null,null,null,"V　　Ｆｒｉｄｅｌｌ　Ｈａｎｓ　Ｎｉｃｋｌａｓ","選手・役員"]
[null,null,null,null,null,null,null,null,null,null,null,null,null,null,"V　　鍵谷　龍樹","選手・役員"]
[null,null,null,null,null,null,null,null,null,null,null,null,null,null,"V　　野村　光平","選手・役員"]
[null,null,null,null,null,null,null,null,null,null,null,null,null,null,"V　　杉本　迅","選手・役員"]
[null,null,null,null,null,null,null,null,null,null,null,null,null,null,"V　　小野　崇晃","選手・役員"]
[null,null,null,null,null,null,null,null,null,null,null,null,null,null,"サンダーバード"]
[null,null,null,null,null,null,null,null,null,null,null,null,null,null,"　 　江連　沙織","役員のみ"]
[null,null,null,null,null,null,null,null,null,null,null,null,null,null,"　 　南部　葉子","役員のみ"]
[null,null,null,null,null,null,null,null,null,null,null,null,null,null,"　 　辻本　真望","役員のみ"]
[null,null,null,null,null,null,null,null,null,null,null,null,null,null,"　 　市村　麻梨子","役員のみ"]
[null,null,null,null,null,null,null,null,null,null,null,null,null,null,"　 　渋沢　ひかり","役員のみ"]
[null,null,null,null,null,null,null,null,null,null,null,null,null,null,"　 　小澤　英利子","役員のみ"]
[null,null,null,null,null,null,null,null,null,null,null,null,null,null," 　　笹山　智弘","選手・役員"]
[null,null,null,null,null,null,null,null,null,null,null,null,null,null,"V　　千代田　智光","選手・役員"]
[null,null,null,null,null,null,null,null,null,null,null,null,null,null,"V　　三宅　圭一","選手・役員"]
[null,null,null,null,null,null,null,null,null,null,null,null,null,null,"V　　Jelinek　Alexander","選手・役員"]
[null,null,null,null,null,null,null,null,null,null,null,null,null,null,"V　　奥原　英修","選手・役員"]
[null,null,null,null,null,null,null,null,null,null,null,null,null,null,"V　　田中　佳介","選手・役員"]
[null,null,null,null,null,null,null,null,null,null,null,null,null,null,"V　　堀江　智生","選手・役員"]
[null,null,null,null,null,null,null,null,null,null,null,null,null,null,"V　　松下　雄一","選手・役員"]
[null,null,null,null,null,null,null,null,null,null,null,null,null,null,"V　　荒木　一修","選手・役員"]
[null,null,null,null,null,null,null,null,null,null,null,null,null,null,"V　　正留　世成","選手・役員"]
[null,null,null,null,null,null,null,null,null,null,null,null,null,null,"V　　反町　尚大","選手・役員"]
[null,null,null,null,null,null,null,null,null,null,null,null,null,null,"V　　図書　優一","選手・役員"]
[null,null,null,null,null,null,null,null,null,null,null,null,null,null,"V　　行木　耀平","選手・役員"]
[null,null,null,null,null,null,null,null,null,null,null,null,null,null,"V　　馬淵　凌","選手・役員"]
[null,null,null,null,null,null,null,null,null,null,null,null,null,null,"V　　栗山　大輝","選手・役員"]
[null,null,null,null,null,null,null,null,null,null,null,null,null,null,"V　　鎌田　雄次","選手・役員"]
[null,null,null,null,null,null,null,null,null,null,null,null,null,null,"V　　林　英明","選手・役員"]
[null,null,null,null,null,null,null,null,null,null,null,null,null,null,"V　　山田　喜寛","選手・役員"]
[null,null,null,null,null,null,null,null,null,null,null,null,null,null,"V　　濱部　紘史","選手・役員"]
[null,null,null,null,null,null,null,null,null,null,null,null,null,null,"V　　木村　友哉","選手・役員"]
[null,null,null,null,null,null,null,null,null,null,null,null,null,null,"V　　市村　豪浩","選手・役員"]
[null,null,null,null,null,null,null,null,null,null,null,null,null,null,"V　　久保井　陸","選手・役員"]
[null,null,null,null,null,null,null,null,null,null,null,null,null,null,"V　　戸田　元","選手・役員"]
[null,null,null,null,null,null,null,null,null,null,null,null,null,null,"V　　土屋　力丸","選手・役員"]
[null,null,null,null,null,null,null,null,null,null,null,null,null,null,"横浜ダイヤモンズ"]
[null,null,null,null,null,null,null,null,null,null,null,null,null,null,"　 　野中　真太","役員のみ"]
[null,null,null,null,null,null,null,null,null,null,null,null,null,null," 　　久保井　誠","選手・役員"]
[null,null,null,null,null,null,null,null,null,null,null,null,null,null,"V　　志賀　正成","選手・役員"]
[null,null,null,null,null,null,null,null,null,null,null,null,null,null,"V　　清水　大暉","選手・役員"]
[null,null,null,null,null,null,null,null,null,null,null,null,null,null,"V　　新沼　拓","選手・役員"]
[null,null,null,null,null,null,null,null,null,null,null,null,null,null,"V　　山口　龍之介","選手・役員"]
[null,null,null,null,null,null,null,null,null,null,null,null,null,null,"V　　町田　颯","選手・役員"]
[null,null,null,null,null,null,null,null,null,null,null,null,null,null,"V　　秋吉　海治","選手・役員"]
[null,null,null,null,null,null,null,null,null,null,null,null,null,null,"V　　中村　一貴","選手・役員"]
[null,null,null,null,null,null,null,null,null,null,null,null,null,null,"V　　世利　謙太郎","選手・役員"]
[null,null,null,null,null,null,null,null,null,null,null,null,null,null,"V　　川瀬　涼","選手・役員"]
[null,null,null,null,null,null,null,null,null,null,null,null,null,null,"V　　田中　楓芽","選手・役員"]
[null,null,null,null,null,null,null,null,null,null,null,null,null,null,"V　　山口　優","選手・役員"]
[null,null,null,null,null,null,null,null,null,null,null,null,null,null,"V　　飯盛　冴紀","選手・役員"]
[null,null,null,null,null,null,null,null,null,null,null,null,null,null,"V　　石川　遼丞","選手・役員"]
[null,null,null,null,null,null,null,null,null,null,null,null,null,null,"V　　佐藤　天馬","選手・役員"]
[null,null,null,null,null,null,null,null,null,null,null,null,null,null,"V　　竹内　涼太","選手・役員"]
[null,null,null,null,null,null,null,null,null,null,null,null,null,null,"V　　北　遥生","選手・役員"]
[null,null,null,null,null,null,null,null,null,null,null,null,null,null,"V　　竹内　蒼平","選手・役員"]
[null,null,null,null,null,null,null,null,null,null,null,null,null,null,"TUSオリオンズ"]
[null,null,null,null,null,null,null,null,null,null,null,null,null,null,"　 　加畑　大輔","役員のみ"]
[null,null,null,null,null,null,null,null,null,null,null,null,null,null,"　 　菊池　梓","役員のみ"]
[null,null,null,null,null,null,null,null,null,null,null,null,null,null,"　 　奥井　明日香","役員のみ"]
[null,null,null,null,null,null,null,null,null,null,null,null,null,null," 　　丸山　展弘","選手・役員"]
[null,null,null,null,null,null,null,null,null,null,null,null,null,null," 　　二見　穏彰","選手・役員"]
[null,null,null,null,null,null,null,null,null,null,null,null,null,null," 　　多賀　薫","選手・役員"]
[null,null,null,null,null,null,null,null,null,null,null,null,null,null," 　　藤井　大輔","選手・役員"]
[null,null,null,null,null,null,null,null,null,null,null,null,null,null," 　　飯田　巨樹","選手・役員"]
[null,null,null,null,null,null,null,null,null,null,null,null,null,null," 　　近藤　雄介","選手・役員"]
[null,null,null,null,null,null,null,null,null,null,null,null,null,null," 　　北村　達哉","選手・役員"]
[null,null,null,null,null,null,null,null,null,null,null,null,null,null,"V　　佐藤　琢也","選手・役員"]
[null,null,null,null,null,null,null,null,null,null,null,null,null,null,"V　　古谷　聡司","選手・役員"]
[null,null,null,null,null,null,null,null,null,null,null,null,null,null,"V　　津崎　兼一","選手・役員"]
[null,null,null,null,null,null,null,null,null,null,null,null,null,null,"V　　川邊　健吾","選手・役員"]
[null,null,null,null,null,null,null,null,null,null,null,null,null,null,"V　　細見　健吾","選手・役員"]
[null,null,null,null,null,null,null,null,null,null,null,null,null,null,"V　　加藤　將文","選手・役員"]
[null,null,null,null,null,null,null,null,null,null,null,null,null,null,"V　　市川　雅樹","選手・役員"]
[null,null,null,null,null,null,null,null,null,null,null,null,null,null,"V　　平野　達也","選手・役員"]
[null,null,null,null,null,null,null,null,null,null,null,null,null,null,"V　　早川　貴大","選手・役員"]
[null,null,null,null,null,null,null,null,null,null,null,null,null,null,"V　　立花　宏樹","選手・役員"]
[null,null,null,null,null,null,null,null,null,null,null,null,null,null,"湘南BRUTUS"]
[null,null,null,null,null,null,null,null,null,null,null,null,null,null,"　 　小林　辰也","役員のみ"]
[null,null,null,null,null,null,null,null,null,null,null,null,null,null,"　 　小山田　峻","役員のみ"]
[null,null,null,null,null,null,null,null,null,null,null,null,null,null,"　 　松本　昂大","役員のみ"]
[null,null,null,null,null,null,null,null,null,null,null,null,null,null,"　 　信楽　幸大","役員のみ"]
[null,null,null,null,null,null,null,null,null,null,null,null,null,null,"　 　田中　涼","役員のみ"]
[null,null,null,null,null,null,null,null,null,null,null,null,null,null,"　 　山口　実桜","役員のみ"]
[null,null,null,null,null,null,null,null,null,null,null,null,null,null,"　 　高橋　藍","役員のみ"]
[null,null,null,null,null,null,null,null,null,null,null,null,null,null,"V　　太田　陸都","選手・役員"]
[null,null,null,null,null,null,null,null,null,null,null,null,null,null,"V　　馬場　康平","選手・役員"]
[null,null,null,null,null,null,null,null,null,null,null,null,null,null,"V　　高橋　笙真","選手・役員"]
[null,null,null,null,null,null,null,null,null,null,null,null,null,null,"V　　山本　真也","選手・役員"]
[null,null,null,null,null,null,null,null,null,null,null,null,null,null,"V　　平子　湧","選手・役員"]
[null,null,null,null,null,null,null,null,null,null,null,null,null,null,"V　　佐藤　幹","選手・役員"]
[null,null,null,null,null,null,null,null,null,null,null,null,null,null,"V　　島田　彪太郎","選手・役員"]
[null,null,null,null,null,null,null,null,null,null,null,null,null,null,"T　　葉山　陽翔","選手・役員"]
[null,null,null,null,null,null,null,null,null,null,null,null,null,null,"神奈川大学"]
[]
[]
[]
[]
[]
[]
[]
[]
[]
[]
[]
[]
[]
[]
[]
[]
[]
[]
[]
[]
[]
[]
[null,null,null,null,null,null,null,null,null,null,null,null,null,null,"C高校"]
[null,null,null,null,null,null,null,null,null,null,null,null,null,null,"V　 石神　翔平","選手・役員"]
[null,null,null,null,null,null,null,null,null,null,null,null,null,null,"V　 伊東　哲志","選手・役員"]
[null,null,null,null,null,null,null,null,null,null,null,null,null,null,"V　 岩本　翔伍","選手・役員"]
[null,null,null,null,null,null,null,null,null,null,null,null,null,null,"V　 永塚　勇斗","選手・役員"]
[null,null,null,null,null,null,null,null,null,null,null,null,null,null,"V　 中村　修大","選手・役員"]
[null,null,null,null,null,null,null,null,null,null,null,null,null,null,"V　 松本　逸輝","選手・役員"]
[null,null,null,null,null,null,null,null,null,null,null,null,null,null,"V　 桶谷　康祐","選手・役員"]
[null,null,null,null,null,null,null,null,null,null,null,null,null,null,"V　 角濱　雄太","選手・役員"]
[null,null,null,null,null,null,null,null,null,null,null,null,null,null,"V　 松村　夏海","選手・役員"]
[null,null,null,null,null,null,null,null,null,null,null,null,null,null,"V　 伊藤　翔太","選手・役員"]
[null,null,null,null,null,null,null,null,null,null,null,null,null,null,"V　 信楽　幸大","選手・役員"]
[null,null,null,null,null,null,null,null,null,null,null,null,null,null,"V　 吉原　純徳","選手・役員"]
[null,null,null,null,null,null,null,null,null,null,null,null,null,null,"V　 田中　涼","選手・役員"]
[null,null,null,null,null,null,null,null,null,null,null,null,null,null,"D高校"]
[null,null,null,null,null,null,null,null,null,null,null,null,null,null," 　　古日山　匡文","選手・役員"]
[null,null,null,null,null,null,null,null,null,null,null,null,null,null," 　　杉浦　弘章","選手・役員"]
[null,null,null,null,null,null,null,null,null,null,null,null,null,null," 　　鈴木　孝昌","選手・役員"]
[null,null,null,null,null,null,null,null,null,null,null,null,null,null," 　　鄭　高延","選手・役員"]
[null,null,null,null,null,null,null,null,null,null,null,null,null,null," 　　室橋　勇","選手・役員"]
[null,null,null,null,null,null,null,null,null,null,null,null,null,null," 　　中村　勝二","選手・役員"]
[null,null,null,null,null,null,null,null,null,null,null,null,null,null,"V　 鈴木　惇平","選手・役員"]
[null,null,null,null,null,null,null,null,null,null,null,null,null,null,"V　 紺谷　大","選手・役員"]
[null,null,null,null,null,null,null,null,null,null,null,null,null,null,"V　 鈴木　啓介","選手・役員"]
[null,null,null,null,null,null,null,null,null,null,null,null,null,null,"V　 杉浦　祐哉","選手・役員"]
[null,null,null,null,null,null,null,null,null,null,null,null,null,null,"V　 松本　力也","選手・役員"]
[null,null,null,null,null,null,null,null,null,null,null,null,null,null,"V　 松永　敦","選手・役員"]
[null,null,null,null,null,null,null,null,null,null,null,null,null,null,"V　 中島　崚","選手・役員"]
[null,null,null,null,null,null,null,null,null,null,null,null,null,null,"V　 日高　正也","選手・役員"]
[null,null,null,null,null,null,null,null,null,null,null,null,null,null,"V　 小川　翼","選手・役員"]
[null,null,null,null,null,null,null,null,null,null,null,null,null,null,"V　 高橋　佑太","選手・役員"]
[null,null,null,null,null,null,null,null,null,null,null,null,null,null,"V　 眞保　慶之","選手・役員"]
[null,null,null,null,null,null,null,null,null,null,null,null,null,null,"V　 沼田　智也","選手・役員"]
[null,null,null,null,null,null,null,null,null,null,null,null,null,null,"V　 椎名　拳志","選手・役員"]
[null,null,null,null,null,null,null,null,null,null,null,null,null,null,"V　 藤田　輝","選手・役員"]
[null,null,null,null,null,null,null,null,null,null,null,null,null,null,"E高校"]

{"sheet":"参考（略語解説)","index":9,"n_rows":67,"n_cols":27,"rows_kept":67,"cut":false,"hidden":false,"merged":[[0,0,0,5],[0,22,0,24],[1,22,1,24],[2,22,2,24],[3,22,3,24],[4,22,4,24],[5,22,5,24],[6,22,6,24],[7,22,7,24],[8,22,8,24],[9,22,9,24],[10,0,10,5],[10,6,10,20],[10,22,10,24],[11,6,11,20],[11,22,11,24],[12,22,12,24],[13,22,13,24],[14,22,23,24],[18,6,18,20],[19,6,19,20],[21,6,21,20],[24,6,24,20],[24,22,24,24],[25,22,25,24],[26,22,26,24],[27,22,27,24],[28,6,28,20],[28,22,28,24],[29,6,29,20],[29,22,29,24],[30,6,30,20],[30,22,34,24],[31,6,31,20],[32,6,32,20],[33,6,33,20],[35,6,35,20],[35,22,35,24],[36,22,36,24],[37,22,37,24],[38,6,38,20],[38,22,38,24],[39,6,39,20],[39,22,39,24],[40,22,40,24],[41,22,41,24],[42,6,42,20],[42,22,42,24],[43,22,43,24],[44,22,44,24],[45,22,45,24],[46,22,46,24],[47,22,47,24],[48,22,48,24],[49,22,49,24],[50,22,50,24],[51,22,51,24],[52,22,52,24],[53,22,53,24],[54,22,54,24],[55,22,55,24],[56,22,56,24],[57,22,57,24],[58,22,58,24],[59,22,59,24],[60,22,60,24],[61,22,61,24],[62,22,62,24],[63,22,63,24],[64,22,64,24],[65,17,66,18],[65,19,66,20],[65,22,65,24],[66,22,66,24]]}
["Explanations of abbreviations:",null,null,null,null,null,"略語の説明",null,null,null,null,null,null,null,null,null,null,null,null,null,null,null,"Abbreviations",null,null,"Explanations of penalty abbreviations:","Rule"]
["Event",null,null,null,null,null,"大会の名称",null,null,null,null,null,null,null,null,null,null,null,null,null,null,null,"ABUSE",null,null,"Abuse of Officials","116"]
["Game No.",null,null,null,null,null,"試合番号",null,null,null,null,null,null,null,null,null,null,null,null,null,null,null,"BENCH",null,null,"Bench Minor Penalty","117"]
["Venue",null,null,null,null,null,"試合の開催地（開催地の連盟），競技場（リンク名）",null,null,null,null,null,null,null,null,null,null,null,null,null,null,null,"BITE ",null,null,"Biting","118"]
["Date",null,null,null,null,null,"試合の開催日",null,null,null,null,null,null,null,null,null,null,null,null,null,null,null,"BOARD",null,null,"Boarding","119"]
["Start",null,null,null,null,null,"実際の試合開始時刻",null,null,null,null,null,null,null,null,null,null,null,null,null,null,null,"BR-ST",null,null,"Broken Stick","120"]
["End",null,null,null,null,null,"実際の試合終了時刻",null,null,null,null,null,null,null,null,null,null,null,null,null,null,null,"BUT-E",null,null,"Butt-Ending","121"]
["Home Team(A)",null,null,null,null,null,"ホームチーム名",null,null,null,null,null,null,null,null,null,null,null,null,null,null,null,"CHARG",null,null,"Charging","122"]
["Visiting Team(B)",null,null,null,null,null,"ビジターチーム名",null,null,null,null,null,null,null,null,null,null,null,null,null,null,null,"CHE-B",null,null,"Checking from Behind ","123"]
["No.",null,null,null,null,null,"選手の背番号",null,null,null,null,null,null,null,null,null,null,null,null,null,null,null,"CHE-H",null,null,"Checking to the Head or Neck","124"]
["Family and Given Name(+BP+C/A)",null,null,null,null,null,"選手の氏名（名字，名前） BP=ゲーム・ベストプレイヤー，C=キャプテン，A=オルタネート・キャプテン",null,null,null,null,null,null,null,null,null,null,null,null,null,null,null,"CLIPP",null,null,"Clipping","125"]
["Pos",null,null,null,null,null,"選手のポジション　　G=ゴールテンダー，D=ディフェンス，F=フォワード",null,null,null,null,null,null,null,null,null,null,null,null,null,null,null,"CLOS ",null,null,"Closing hand on puck","126"]
["#",null,null,null,null,null,"得点順(何点目の得点）",null,null,null,null,null,null,null,null,null,null,null,null,null,null,null,"CROSS",null,null,"Cross-Checking","127"]
["Time",null,null,null,null,null,"得点した時間（累計時間）",null,null,null,null,null,null,null,null,null,null,null,null,null,null,null,"DANG ",null,null,"Dangerous equipment","128"]
["G",null,null,null,null,null,"得点選手の背番号",null,null,null,null,null,null,null,null,null,null,null,null,null,null,null,"DELAY ",null,null,"Delay of Game","-"]
["A1",null,null,null,null,null,"第１アシスト選手の背番号",null,null,null,null,null,null,null,null,null,null,null,null,null,null,null,null,null,null,"** adjustment of equipment (AD-EQ)","129"]
["A2",null,null,null,null,null,"第２アシスト選手の背番号",null,null,null,null,null,null,null,null,null,null,null,null,null,null,null,null,null,null,"** displaced goal net (DIS-N)","130"]
["Time",null,null,null,null,null,"反則をした時間（レフェリーが反則を通告した時間）",null,null,null,null,null,null,null,null,null,null,null,null,null,null,null,null,null,null,"** falling on the puck (FAL-P)","131"]
["No.",null,null,null,null,null,"反則をした選手の背番号（代行選手やチーム・オフィシャルにはTを記入）",null,null,null,null,null,null,null,null,null,null,null,null,null,null,null,null,null,null,"** freezing the puck (FRE-P)","132"]
["Min.",null,null,null,null,null,"反則の分数（2，5，10，20，25，ただしペナルティ･ショットはPSを記入）",null,null,null,null,null,null,null,null,null,null,null,null,null,null,null,null,null,null,"** goal celebration","133"]
["Offence",null,null,null,null,null,"反則内容（反則名の略語）　　※　右記の略語表を参照のこと",null,null,null,null,null,null,null,null,null,null,null,null,null,null,null,null,null,null,"** late lineup","134"]
["Period",null,null,null,null,null,"ピリオド（1，2，3，OVT=オーバータイム，PSS=ペナルティ・ショット・シュートアウト）",null,null,null,null,null,null,null,null,null,null,null,null,null,null,null,null,null,null,"** shooting or throwing the puck out of play (P-OUT)","135"]
["Total",null,null,null,null,null,"各項目の合計",null,null,null,null,null,null,null,null,null,null,null,null,null,null,null,null,null,null,"** substitution after an icing call","136"]
["GOAL ",null,null,null,null,null,"各ピリオドの得点数（A=ホームチーム，B=ビジターチーム）",null,null,null,null,null,null,null,null,null,null,null,null,null,null,null,null,null,null,"** violation of faceoff procedures (F-OFF)","137"]
["SOG ",null,null,null,null,null,"各ピリオドのシュート数（相手Gがセーブしたシュート数＋得点数）　（A=ホームチーム，B=ビジターチーム）",null,null,null,null,null,null,null,null,null,null,null,null,null,null,null,"ELBOW",null,null,"Elbowing",139]
["PIM ",null,null,null,null,null,"各ピリオドの反則分数（A=ホームチーム，B=ビジターチーム）",null,null,null,null,null,null,null,null,null,null,null,null,null,null,null,"EMBEL",null,null,"Diving or Embellishment （DIVE）",138]
["GK No.",null,null,null,null,null,"出場したゴールテンダーの背番号",null,null,null,null,null,null,null,null,null,null,null,null,null,null,null,"ENG-S",null,null,"Engaging with Spectators",140]
["Period",null,null,null,null,null,"ピリオド（1，2，3，OVT=オーバータイム）",null,null,null,null,null,null,null,null,null,null,null,null,null,null,null,"FIGHT",null,null,"Fighting",141]
["GKA1",null,null,null,null,null,"ホームチームの第１（先発した）ゴールテンダーの滞氷時間（各ピリオドごと）",null,null,null,null,null,null,null,null,null,null,null,null,null,null,null,"GA-MI",null,null,"Game Miisconduct Penalty","-"]
["GKA2",null,null,null,null,null,"ホームチームの第２（交代した）ゴールテンダーの滞氷時間（各ピリオドごと）",null,null,null,null,null,null,null,null,null,null,null,null,null,null,null,"GK-INT",null,null,"Interference on a Goaltender",150]
["GKA3",null,null,null,null,null,"ホームチームの第３（交代した）ゴールテンダーの滞氷時間（各ピリオドごと）",null,null,null,null,null,null,null,null,null,null,null,null,null,null,null,"GK-PEN",null,null,"Goaltender Penalties","-"]
["GKB1",null,null,null,null,null,"ビジターチームの第１（先発した）ゴールテンダーの滞氷時間（各ピリオドごと）",null,null,null,null,null,null,null,null,null,null,null,null,null,null,null,null,null,null,"- beyond centre red line","209"]
["GKB2",null,null,null,null,null,"ビジターチームの第２（交代した）ゴールテンダーの滞氷時間（各ピリオドごと）",null,null,null,null,null,null,null,null,null,null,null,null,null,null,null,null,null,null,"- dropping the puck on goal netting","218"]
["GKB3",null,null,null,null,null,"ビジターチームの第３（交代した）ゴールテンダーの滞氷時間（各ピリオドごと）",null,null,null,null,null,null,null,null,null,null,null,null,null,null,null,null,null,null,"- illegally blocking goal net or piling snow","222"]
["MIP",null,null,null,null,null,"各ゴールテンダーの滞氷時間の合計",null,null,null,null,null,null,null,null,null,null,null,null,null,null,null,null,null,null,"- leaving goal crease during player confrontation","223"]
["GA",null,null,null,null,null,"各ゴールテンダーの失点数　※ PSSによる失点は１として加算して記入する。",null,null,null,null,null,null,null,null,null,null,null,null,null,null,null,"H-BUT",null,null,"Head-Butting",142]
["Timeout A",null,null,null,null,null,"ホームチームが30秒間のタイムアウトをとった時間",null,null,null,null,null,null,null,null,null,null,null,null,null,null,null,"HELM",null,null,"Playing without helmet",155]
["Timeout B",null,null,null,null,null,"ビジターチームが30秒間のタイムアウトをとった時間",null,null,null,null,null,null,null,null,null,null,null,null,null,null,null,"HI-ST",null,null,"High sticking  **Accidental injury",143]
["A",null,null,null,null,null,"ペナルティ・ショット・シュートアウトを行うホームチーム選手の背番号（先攻の場合は＊Aと表記）",null,null,null,null,null,null,null,null,null,null,null,null,null,null,null,"HO-ST",null,null,"Holding the Stick",145]
["B",null,null,null,null,null,"ペナルティ・ショット・シュートアウトを行うビジターチーム選手の背番号（先攻の場合は＊Bと表記）",null,null,null,null,null,null,null,null,null,null,null,null,null,null,null,"HOLD",null,null,"Holding an opponent",144]
["GKA",null,null,null,null,null,"ペナルティ・ショット・シュートアウトで守るホームチーム・ゴールテンダーの背番号",null,null,null,null,null,null,null,null,null,null,null,null,null,null,null,"HOOK",null,null,"Hooking",146]
["GKB",null,null,null,null,null,"ペナルティ・ショット・シュートアウトで守るビジターチーム・ゴールテンダーの背番号",null,null,null,null,null,null,null,null,null,null,null,null,null,null,null,"ILL-H",null,null,"Illegal Hit (U12/Women)",169]
["GF:GA",null,null,null,null,null,"ペナルティ・ショット・シュートアウトを行った時点の得点数(ホームチームの得点数：ビジターチームの得点数)",null,null,null,null,null,null,null,null,null,null,null,null,null,null,null,"ILL-ST",null,null,"Illegal Stick - Stick Measurement",147]
["Head Coarch A",null,null,null,null,null,"ホームチームの監督（ヘッドコーチ）の氏名",null,null,null,null,null,null,null,null,null,null,null,null,null,null,null,"INJUR",null,null,"Injured player refusing to leave the ice",148]
["Head Coarch B",null,null,null,null,null,"ビジターチームの監督（ヘッドコーチ)の氏名",null,null,null,null,null,null,null,null,null,null,null,null,null,null,null,"INTRF",null,null,"Interference",149]
["Game Superviser",null,null,null,null,null,"ゲーム・スーパーバイザーの氏名",null,null,null,null,null,null,null,null,null,null,null,null,null,null,null,"KICK",null,null,"Kicking",151]
["Referee Superviser",null,null,null,null,null,"レフェリー・スーパーバイザーの氏名",null,null,null,null,null,null,null,null,null,null,null,null,null,null,null,"KNEE",null,null,"Kneeing",152]
["Timekeeper",null,null,null,null,null,"タイムキーパーの氏名",null,null,null,null,null,null,null,null,null,null,null,null,null,null,null,"L-BCH",null,null,"Penalty Box Violation - Leaving Prematurely",154]
["Penalty Timekeeper",null,null,null,null,null,"ペナルティ・タイムキーパーの氏名",null,null,null,null,null,null,null,null,null,null,null,null,null,null,null,"LA-HI",null,null,"Late Hit",153]
["Announcer",null,null,null,null,null,"アナウンサーの氏名",null,null,null,null,null,null,null,null,null,null,null,null,null,null,null,"MATCH",null,null,"Match Penalty","-"]
["Penalty Bench Attendant:",null,null,null,null,null,"ペナルティ・ベンチ・アテンダントの氏名",null,null,null,null,null,null,null,null,null,null,null,null,null,"　",null,"MISC",null,null,"Misconduct Penalty","-"]
["Goal Judge",null,null,null,null,null,"ゴール・ジャッジの氏名 ",null,null,null,null,null,null,null,null,null,null,null,null,null,null,null,"OTHER",null,null,"Other offences","-"]
["Scorekeeper's Assistant",null,null,null,null,null,"スコアキーパーのアシスタントの氏名 ",null,null,null,null,null,null,null,null,null,null,null,null,null,null,null,"PULL",null,null,"Pulling Hair, Helmet, Cage",156]
["Scorekeeper",null,null,null,null,null,"スコアキーパーの氏名",null,null,null,null,null,null,null,null,null,null,null,null,null,null,null,"REFUS",null,null,"Refusing to Strat Play",157]
["Linesperson",null,null,null,null,null,"ラインズパーソンの氏名",null,null,null,null,null,null,null,null,null,null,null,null,null,null,null,"ROUGH",null,null,"Roughing",158]
["Referee",null,null,null,null,null,"レフェリーの氏名",null,null,null,null,null,null,null,null,null,null,null,null,null,null,null,"SLASH",null,null,"Slashing",159]
["Sign. Referee",null,null,null,null,null,"レフェリーの署名（サイン）",null,null,null,null,null,null,null,null,null,null,null,null,null,null,null,"SLEW",null,null,"Slew-footing",160]
[null,null,null,null,null,null,null,null,null,null,null,null,null,null,null,null,null,null,null,null,null,null,"SPEAR",null,null,"Spearing",161]
["Notes:",null,null,null,null,null,null,null,null,null,null,null,null,null,null,null,null,null,null,null,null,null,"SPIT",null,null,"Spitting",162]
[null,null,null,null,null,null,null,null,null,null,null,null,null,null,null,null,null,null,null,null,null,null,"T-BCH",null,null,"Team Officials Entering the Playing Area",164]
[null,null,null,null,null,null,null,null,null,null,null,null,null,null,null,null,null,null,null,null,null,null,"TAUNT",null,null,"Taunting",163]
[null,null,null,null,null,null,null,null,null,null,null,null,null,null,null,null,null,null,null,null,null,null,"TEE",null,null,"Teeing (Sledge Hockey only)","-"]
[null,null,null,null,null,null,null,null,null,null,null,null,null,null,null,null,null,null,null,null,null,null,"THR-ST",null,null,"Throwing a Stick or Object",165]
[null,null,null,null,null,null,null,null,null,null,null,null,null,null,null,null,null,null,null,null,null,null,"TOO-M",null,null,"Too Many Men",166]
[null,null,null,null,null,null,null,null,null,null,null,null,null,null,null,null,null,null,null,null,null,null,"TRIP",null,null,"Tripping",167]
[null,null,null,null,null,null,null,null,null,null,null,null,null,null,null,null,null,"Game No.:",null,"",null,null,"UN-SP",null,null,"Unsportsmanlike Conduct",168]
[null,null,null,null,null,null,null,null,null,null,null,null,null,null,null,null,null,null,null,null,null,null,"PS",null,null,"Penalty shot","-"]

{"sheet":"追加・削除用","index":10,"n_rows":0,"n_cols":0,"rows_kept":0,"cut":false,"hidden":false,"merged":[]}